Workbook

Sheet 收款1.1-7.31
A1: 账套号 | B1: 到账日期 | C1: 会计期 | D1: 收款编号 | E1: 结算对象 | F1: 金额 | G1: 已核销金额 | H1: 退款金额 | I1: 押金种类 | J1: 类型 | K1: 币种 | L1: 部门 | M1: 是否预收 | N1: 结算方式 | O1: 凭证号 | P1: 是否入账 | Q1: 上传财务 | R1: 银行手续费 | S1: 我方账户 | T1: 我方银行 | U1: 创建人 | V1: 创建时间
A2: (110)广州市生生物流有限公司 | B2: 2019-02-01 | C2: 2019-2 | D2: R0000030592 | E2: 侨益物流股份有限公司 | F2: 2408420 | G2: 2408420 | J2: 内部关联交易 | K2: CNY | L2: 公路运输 | M2: 否 | N2: 电汇 | O2: 1 | P2: 1 | Q2: 1 | S2: 636657738064 | T2: 中行港湾路支行 | U2: 陆倩婷 | V2: 2019-02-11T10:59:18
A3: (110)广州市生生物流有限公司 | B3: 2019-02-26 | C3: 2019-2 | D3: R0000032466 | E3: 侨益物流股份有限公司 | F3: 23100 | G3: 23100 | J3: 内部关联交易 | K3: CNY | L3: 公路运输 | M3: 否 | N3: 电汇 | O3: 5 | P3: 1 | Q3: 1 | S3: 636657738064 | T3: 中行港湾路支行 | U3: 陆倩婷 | V3: 2019-02-27T11:49:27
A4: (110)广州市生生物流有限公司 | B4: 2019-03-04 | C4: 2019-3 | D4: R0000033414 | E4: 侨益物流股份有限公司 | F4: 341191.44 | G4: 341191.44 | J4: 内部关联交易 | K4: CNY | L4: 公路运输 | M4: 否 | N4: 电汇 | O4: 5 | P4: 1 | Q4: 1 | S4: 636657738064 | T4: 中行港湾路支行 | U4: 陆倩婷 | V4: 2019-03-06T15:55:34
A5: (110)广州市生生物流有限公司 | B5: 2019-03-07 | C5: 2019-3 | D5: R0000033798 | E5: 侨益物流股份有限公司 | F5: 284230 | G5: 284230 | J5: 内部关联交易 | K5: CNY | L5: 公路运输 | M5: 否 | N5: 电汇 | O5: 3 | P5: 1 | Q5: 1 | S5: 636657738064 | T5: 中行港湾路支行 | U5: 陆倩婷 | V5: 2019-03-08T17:23:19
A6: (110)广州市生生物流有限公司 | B6: 2019-03-11 | C6: 2019-3 | D6: R0000033950 | E6: 侨益物流股份有限公司 | F6: 77828 | G6: 77828 | J6: 内部关联交易 | K6: CNY | L6: 公路运输 | M6: 否 | N6: 电汇 | O6: 2 | P6: 1 | Q6: 1 | S6: 636657738064 | T6: 中行港湾路支行 | U6: 陆倩婷 | V6: 2019-03-11T17:21:24
A7: (110)广州市生生物流有限公司 | B7: 2019-04-15T11:59:51 | C7: 2019-4 | D7: R9000036871 | E7: 侨益物流股份有限公司 | F7: 443510 | G7: 443220 | J7: 内部关联交易 | K7: CNY | L7: 公路运输 | M7: 否 | N7: 电汇 | O7: 11 | P7: 1 | Q7: 1 | S7: 636657738064 | T7: 中行港湾路支行 | U7: 陈桂香 | V7: 2019-04-15T11:59:51
A8: (110)广州市生生物流有限公司 | B8: 2019-04-23T16:41:58 | C8: 2019-4 | D8: R9000037566 | E8: 侨益物流股份有限公司 | F8: 14599.23 | J8: 内部关联交易 | K8: CNY | L8: 公路运输 | M8: 否 | N8: 电汇 | O8: 30 | P8: 1 | Q8: 1 | S8: 636657738064 | T8: 中行港湾路支行 | U8: 陈桂香 | V8: 2019-04-23T16:41:58
A9: (110)广州市生生物流有限公司 | B9: 2019-04-30T10:02:06 | C9: 2019-4 | D9: R9000037968 | E9: 广州惠安仓储装卸有限公司 | F9: 43688.8 | G9: 43688.8 | J9: 内部关联交易 | K9: CNY | L9: 公路运输 | M9: 否 | N9: 电汇 | O9: 19 | P9: 1 | Q9: 1 | S9: 636657738064 | T9: 中行港湾路支行 | U9: 区贵妹 | V9: 2019-04-30T10:02:06
A10: (110)广州市生生物流有限公司 | B10: 2019-06-12 | C10: 2019-6 | D10: R9000040375 | E10: 侨益物流股份有限公司 | F10: 8748.25 | G10: 8748.25 | J10: 内部关联交易 | K10: CNY | L10: 公路运输 | M10: 否 | N10: 电汇 | O10: 6 | P10: 1 | Q10: 1 | S10: 636657738064 | T10: 中行港湾路支行 | U10: 陈桂香 | V10: 2019-06-12T11:51:08
A11: (110)广州市生生物流有限公司 | B11: 2019-06-14 | C11: 2019-6 | D11: R9000040558 | E11: 广州惠安仓储装卸有限公司 | F11: 73605.88 | G11: 73605.88 | J11: 内部关联交易 | K11: CNY | L11: 公路运输 | M11: 否 | N11: 电汇 | O11: 19 | P11: 1 | Q11: 1 | S11: 636657738064 | T11: 中行港湾路支行 | U11: 陈桂香 | V11: 2019-06-14T15:55:13
A12: (110)广州市生生物流有限公司 | B12: 2019-06-18T18:46:13 | C12: 2019-6 | D12: R9000040763 | E12: 厦门鑫侨益国际货运代理有限公司 | F12: 21986.4 | G12: 21986.4 | J12: 内部关联交易 | K12: CNY | L12: 货运代理 | M12: 否 | N12: 电汇 | O12: 31 | P12: 1 | Q12: 1 | S12: 636657738064 | T12: 中行港湾路支行 | U12: 郭凌凌 | V12: 2019-06-18T18:46:13
A13: (110)广州市生生物流有限公司 | B13: 2019-06-25 | C13: 2019-6 | D13: R0000041812 | E13: 广州惠安仓储装卸有限公司 | F13: 61691 | G13: 61691 | J13: 内部关联交易 | K13: CNY | L13: 水路运输 | M13: 否 | N13: 电汇 | O13: 16 | P13: 1 | Q13: 1 | S13: 636657738064 | T13: 中行港湾路支行 | U13: 陆倩婷 | V13: 2019-07-02T20:10:08
A14: (110)广州市生生物流有限公司 | B14: 2019-07-11T08:51:47 | C14: 2019-7 | D14: R9000042693 | E14: 侨益物流股份有限公司 | F14: 795507.44 | G14: 795507.44 | J14: 内部关联交易 | K14: CNY | L14: 货运代理 | M14: 否 | N14: 电汇 | O14: 11 | P14: 1 | Q14: 1 | S14: 636657738064 | T14: 中行港湾路支行 | U14: 陈桂香 | V14: 2019-07-11T08:51:47
A15: (110)广州市生生物流有限公司 | B15: 2019-07-24 | C15: 2019-7 | D15: R0000044275 | E15: 广州惠安仓储装卸有限公司 | F15: 48800 | G15: 48800 | J15: 内部关联交易 | K15: CNY | L15: 公路运输 | M15: 否 | N15: 电汇 | O15: 27 | P15: 1 | Q15: 1 | S15: 636657738064 | T15: 中行港湾路支行 | U15: 陆倩婷 | V15: 2019-07-24T17:16:48
A16: (110)广州市生生物流有限公司 | B16: 2019-06-14 | C16: 2019-6 | D16: R9000040547 | E16: 侨益物流股份有限公司 | F16: 352997.22 | G16: 352997.22 | I16: 1123.04 | J16: 内部关联交易 | K16: CNY | L16: 公路运输 | M16: 是 | N16: 电汇 | O16: 25 | P16: 1 | Q16: 1 | S16: 636657738064 | T16: 中行港湾路支行 | U16: 陈桂香 | V16: 2019-06-14T11:24:02
A17: (110)广州市生生物流有限公司 | B17: 2019-01-11 | C17: 2019-1 | D17: R0000029199 | E17: 中国广州外轮代理有限公司 | F17: 24000 | H17: 24000 | J17: 押金退款 | K17: CNY | M17: 否 | N17: 电汇 | O17: 49 | P17: 1 | Q17: 1 | S17: 636657738064 | T17: 中行港湾路支行 | U17: 陆倩婷 | V17: 2019-01-23T16:07:21
A18: (110)广州市生生物流有限公司 | B18: 2019-01-11 | C18: 2019-1 | D18: R0000029200 | E18: 广州港股份有限公司新港港务分公司 | F18: 2519 | H18: 2519 | J18: 押金退款 | K18: CNY | L18: 公路运输 | M18: 否 | N18: 电汇 | O18: 48 | P18: 1 | Q18: 1 | S18: 636657738064 | T18: 中行港湾路支行 | U18: 陆倩婷 | V18: 2019-01-23T16:08:51
A19: (110)广州市生生物流有限公司 | B19: 2019-01-16 | C19: 2019-1 | D19: R0000029205 | E19: 广州港股份有限公司黄埔港务分公司 | F19: 7876 | H19: 7876 | J19: 押金退款 | K19: CNY | L19: 公路运输 | M19: 否 | N19: 电汇 | O19: 14 | P19: 1 | Q19: 1 | S19: 636657738064 | T19: 中行港湾路支行 | U19: 陆倩婷 | V19: 2019-01-23T16:23:23
A20: (110)广州市生生物流有限公司 | B20: 2019-03-22 | C20: 2019-3 | D20: R0000035818 | E20: 广州港股份有限公司黄埔港务分公司 | F20: 14707 | H20: 14707 | J20: 押金退款 | K20: CNY | L20: 公路运输 | M20: 否 | N20: 电汇 | O20: 11 | P20: 1 | Q20: 1 | S20: 636657738064 | T20: 中行港湾路支行 | U20: 陆倩婷 | V20: 2019-03-25T17:10:02
A21: (110)广州市生生物流有限公司 | B21: 2019-04-03 | C21: 2019-4 | D21: R0000036545 | E21: 广州港股份有限公司新港港务分公司 | F21: 38796 | H21: 38796 | J21: 押金退款 | K21: CNY | L21: 公路运输 | M21: 否 | N21: 电汇 | O21: 7 | P21: 1 | Q21: 1 | S21: 636657738064 | T21: 中行港湾路支行 | U21: 陆倩婷 | V21: 2019-04-08T10:32:49
A22: (110)广州市生生物流有限公司 | B22: 2019-04-12 | C22: 2019-4 | D22: R0000037125 | E22: 广州中阳国际货运代理有限公司 | F22: 4000 | H22: 4000 | J22: 押金退款 | K22: CNY | M22: 否 | N22: 电汇 | O22: 5 | P22: 1 | Q22: 1 | S22: 636657738064 | T22: 中行港湾路支行 | U22: 陆倩婷 | V22: 2019-04-18T17:20:13
A23: (110)广州市生生物流有限公司 | B23: 2019-05-10 | C23: 2019-5 | D23: R0000038447 | E23: 广州港股份有限公司新港港务分公司 | F23: 919 | H23: 919 | J23: 押金退款 | K23: CNY | L23: 公路运输 | M23: 否 | N23: 电汇 | P23: 1 | Q23: 0 | S23: 636657738064 | T23: 中行港湾路支行 | U23: 陆倩婷 | V23: 2019-05-13T11:33:39
A24: (110)广州市生生物流有限公司 | B24: 2019-05-16 | C24: 2019-5 | D24: R0000038715 | E24: 广州港股份有限公司黄埔港务分公司 | F24: 17327 | H24: 17327 | J24: 押金退款 | K24: CNY | L24: 公路运输 | M24: 否 | N24: 电汇 | O24: 15 | P24: 1 | Q24: 1 | S24: 636657738064 | T24: 中行港湾路支行 | U24: 陈桂香 | V24: 2019-05-17T14:56:21
A25: (110)广州市生生物流有限公司 | B25: 2019-05-27 | C25: 2019-5 | D25: R0000039087 | E25: 赤峰佰惠生仓储物流有限公司 | F25: 150000 | H25: 150000 | J25: 押金退款 | K25: CNY | L25: 公路运输 | M25: 否 | N25: 电汇 | P25: 1 | Q25: 0 | S25: 636657738064 | T25: 中行港湾路支行 | U25: 陆倩婷 | V25: 2019-05-27T17:40:14
A26: (110)广州市生生物流有限公司 | B26: 2019-05-28 | C26: 2019-5 | D26: R0000039140 | E26: 广州誉高船舶代理有限公司 | F26: 250000 | H26: 250000 | J26: 押金退款 | K26: CNY | L26: 公路运输 | M26: 否 | N26: 电汇 | O26: 23 | P26: 1 | Q26: 1 | S26: 636657738064 | T26: 中行港湾路支行 | U26: 陆倩婷 | V26: 2019-05-29T09:13:05
A27: (110)广州市生生物流有限公司 | B27: 2019-06-19 | C27: 2019-6 | D27: R0000040852 | E27: 广东中外运船务有限公司 | F27: 500 | H27: 500 | J27: 押金退款 | K27: CNY | M27: 否 | N27: 电汇 | P27: 1 | Q27: 0 | S27: 636657738064 | T27: 中行港湾路支行 | U27: 陆倩婷 | V27: 2019-06-19T17:20:39
A28: (110)广州市生生物流有限公司 | B28: 2019-07-19 | C28: 2019-7 | D28: R0000043672 | E28: 广州珉丰集装箱服务有限公司 | F28: 13467.69 | H28: 13467.69 | J28: 押金退款 | K28: CNY | L28: 公路运输 | M28: 否 | N28: 电汇 | O28: 23 | P28: 1 | Q28: 1 | S28: 636657738064 | T28: 中行港湾路支行 | U28: 陆倩婷 | V28: 2019-07-22T08:49:16
A29: (110)广州市生生物流有限公司 | B29: 2019-07-29 | C29: 2019-7 | D29: R0000044754 | E29: 广州港股份有限公司黄埔港务分公司 | F29: 5399 | H29: 5399 | J29: 押金退款 | K29: CNY | M29: 否 | N29: 电汇 | P29: 1 | Q29: 0 | S29: 636657738064 | T29: 中行港湾路支行 | U29: 陆倩婷 | V29: 2019-07-29T17:29:36
A30: (110)广州市生生物流有限公司 | B30: 2019-07-29 | C30: 2019-7 | D30: R0000044755 | E30: 广州港股份有限公司黄埔港务分公司 | F30: 5000 | H30: 5000 | J30: 押金退款 | K30: CNY | M30: 否 | N30: 电汇 | P30: 1 | Q30: 0 | S30: 636657738064 | T30: 中行港湾路支行 | U30: 陆倩婷 | V30: 2019-07-29T17:29:57
A31: (110)广州市生生物流有限公司 | B31: 2019-01-02 | C31: 2019-1 | D31: R0000027850 | E31: 深圳市海之峰国际货运代理有限公司 | F31: 52063.8 | G31: 52063.8 | J31: 主营业务收入 | K31: CNY | L31: 水路运输 | M31: 否 | N31: 电汇 | O31: 3 | P31: 1 | Q31: 1 | S31: 636657738064 | T31: 中行港湾路支行 | U31: 陆倩婷 | V31: 2019-01-09T10:07:16
A32: (110)广州市生生物流有限公司 | B32: 2019-01-04 | C32: 2019-1 | D32: R0000027851 | E32: 辽宁瑞鸿贸易有限公司 | F32: 516329.09 | G32: 516329.09 | J32: 主营业务收入 | K32: CNY | L32: 公路运输 | M32: 否 | N32: 电汇 | O32: 15 | P32: 1 | Q32: 1 | S32: 636657738064 | T32: 中行港湾路支行 | U32: 陆倩婷 | V32: 2019-01-09T10:08:39
A33: (110)广州市生生物流有限公司 | B33: 2019-01-04 | C33: 2019-1 | D33: R0000027853 | E33: 深圳市海之峰国际货运代理有限公司 | F33: 36649.96 | G33: 36649.96 | J33: 主营业务收入 | K33: CNY | L33: 水路运输 | M33: 否 | N33: 电汇 | O33: 42 | P33: 1 | Q33: 1 | S33: 636657738064 | T33: 中行港湾路支行 | U33: 陆倩婷 | V33: 2019-01-09T10:10:37
A34: (110)广州市生生物流有限公司 | B34: 2019-01-04 | C34: 2019-1 | D34: R0000027854 | E34: 广州市粮食集团有限责任公司 | F34: 604841.04 | G34: 604841.04 | J34: 主营业务收入 | K34: CNY | L34: 水路运输 | M34: 否 | N34: 电汇 | O34: 13 | P34: 1 | Q34: 1 | S34: 636657738064 | T34: 中行港湾路支行 | U34: 陆倩婷 | V34: 2019-01-09T10:13:48
A35: (110)广州市生生物流有限公司 | B35: 2019-01-07 | C35: 2019-1 | D35: R0000027855 | E35: 常熟市港顺货运有限公司 | F35: 41625 | G35: 41625 | J35: 主营业务收入 | K35: CNY | L35: 水路运输 | M35: 否 | N35: 电汇 | O35: 12 | P35: 1 | Q35: 1 | S35: 636657738064 | T35: 中行港湾路支行 | U35: 陆倩婷 | V35: 2019-01-09T10:14:49
A36: (110)广州市生生物流有限公司 | B36: 2019-01-09 | C36: 2019-1 | D36: R0000029195 | E36: 江苏华穗粮食有限公司 | F36: 154169.71 | G36: 154169.71 | J36: 主营业务收入 | K36: CNY | L36: 水路运输 | M36: 否 | N36: 电汇 | O36: 11 | P36: 1 | Q36: 1 | S36: 636657738064 | T36: 中行港湾路支行 | U36: 陆倩婷 | V36: 2019-01-23T16:00:54
A37: (110)广州市生生物流有限公司 | B37: 2019-01-09 | C37: 2019-1 | D37: R0000029196 | E37: 江苏华穗粮食有限公司 | F37: 20621.34 | G37: 20621.34 | J37: 主营业务收入 | K37: CNY | L37: 水路运输 | M37: 否 | N37: 电汇 | O37: 2 | P37: 1 | Q37: 1 | S37: 636657738064 | T37: 中行港湾路支行 | U37: 陆倩婷 | V37: 2019-01-23T16:03:31
A38: (110)广州市生生物流有限公司 | B38: 2019-01-09 | C38: 2019-1 | D38: R0000029197 | E38: 广州市京盛供应链管理有限公司 | F38: 72351.3 | G38: 72351.3 | J38: 主营业务收入 | K38: CNY | L38: 公路运输 | M38: 否 | N38: 电汇 | O38: 10 | P38: 1 | Q38: 1 | S38: 636657738064 | T38: 中行港湾路支行 | U38: 陆倩婷 | V38: 2019-01-23T16:04:38
A39: (110)广州市生生物流有限公司 | B39: 2019-01-10 | C39: 2019-1 | D39: R0000029198 | E39: 东莞顶志食品有限公司 | F39: 168800 | G39: 168800 | J39: 主营业务收入 | K39: CNY | M39: 否 | N39: 电汇 | O39: 16 | P39: 1 | Q39: 1 | S39: 636657738064 | T39: 中行港湾路支行 | U39: 陆倩婷 | V39: 2019-01-23T16:06:01
A40: (110)广州市生生物流有限公司 | B40: 2019-01-16 | C40: 2019-1 | D40: R0000029204 | E40: 深圳市海之峰国际货运代理有限公司 | F40: 143222.25 | G40: 143222.25 | J40: 主营业务收入 | K40: CNY | L40: 水路运输 | M40: 否 | N40: 电汇 | O40: 9 | P40: 1 | Q40: 1 | S40: 636657738064 | T40: 中行港湾路支行 | U40: 陆倩婷 | V40: 2019-01-23T16:16:14
A41: (110)广州市生生物流有限公司 | B41: 2019-01-17 | C41: 2019-1 | D41: R0000029206 | E41: 广东东方面粉有限公司 | F41: 97787.2 | G41: 97787.2 | J41: 主营业务收入 | K41: CNY | L41: 水路运输 | M41: 否 | N41: 电汇 | O41: 8 | P41: 1 | Q41: 1 | S41: 636657738064 | T41: 中行港湾路支行 | U41: 陆倩婷 | V41: 2019-01-23T16:24:18
A42: (110)广州市生生物流有限公司 | B42: 2019-01-17 | C42: 2019-1 | D42: R0000029207 | E42: 辽宁瑞鸿贸易有限公司 | F42: 224858.33 | G42: 224858.33 | J42: 主营业务收入 | K42: CNY | L42: 公路运输 | M42: 否 | N42: 电汇 | O42: 7 | P42: 1 | Q42: 1 | S42: 636657738064 | T42: 中行港湾路支行 | U42: 陆倩婷 | V42: 2019-01-23T16:25:41
A43: (110)广州市生生物流有限公司 | B43: 2019-01-17 | C43: 2019-1 | D43: R0000029250 | E43: 深圳市福加德谷物有限公司 | F43: 100000 | G43: 100000 | J43: 主营业务收入 | K43: CNY | L43: 水路运输 | M43: 否 | N43: 电汇 | O43: 6 | P43: 1 | Q43: 1 | S43: 636657738064 | T43: 中行港湾路支行 | U43: 陆倩婷 | V43: 2019-01-24T09:25:37
A44: (110)广州市生生物流有限公司 | B44: 2019-01-22 | C44: 2019-1 | D44: R0000029253 | E44: 江苏华穗粮食有限公司 | F44: 308446.05 | G44: 308446.05 | J44: 主营业务收入 | K44: CNY | L44: 水路运输 | M44: 否 | N44: 电汇 | O44: 5 | P44: 1 | Q44: 1 | S44: 636657738064 | T44: 中行港湾路支行 | U44: 陆倩婷 | V44: 2019-01-24T09:29:08
A45: (110)广州市生生物流有限公司 | B45: 2019-01-22 | C45: 2019-1 | D45: R0000029254 | E45: 广东双水码头有限公司 | F45: 500000 | G45: 500000 | J45: 主营业务收入 | K45: CNY | L45: 水路运输 | M45: 否 | N45: 电汇 | O45: 4 | P45: 1 | Q45: 1 | S45: 636657738064 | T45: 中行港湾路支行 | U45: 陆倩婷 | V45: 2019-01-24T09:29:55
A46: (110)广州市生生物流有限公司 | B46: 2019-01-22 | C46: 2019-1 | D46: R0000029255 | E46: 广东双水码头有限公司 | F46: 7020 | G46: 7020 | J46: 主营业务收入 | K46: CNY | L46: 公路运输 | M46: 否 | N46: 电汇 | O46: 1 | P46: 1 | Q46: 1 | S46: 636657738064 | T46: 中行港湾路支行 | U46: 陆倩婷 | V46: 2019-01-24T09:30:31
A47: (110)广州市生生物流有限公司 | B47: 2019-01-24 | C47: 2019-1 | D47: R0000030253 | E47: 广州粤钛隆贸易有限公司 | F47: 20463.1 | G47: 20463.1 | J47: 主营业务收入 | K47: CNY | L47: 公路运输 | M47: 否 | N47: 电汇 | O47: 18 | P47: 1 | Q47: 1 | S47: 636657738064 | T47: 中行港湾路支行 | U47: 陆倩婷 | V47: 2019-02-01T09:36:02
A48: (110)广州市生生物流有限公司 | B48: 2019-01-24 | C48: 2019-1 | D48: R0000030254 | E48: 广州裕全润贸易有限公司 | F48: 49907.25 | G48: 49907.25 | J48: 主营业务收入 | K48: CNY | L48: 公路运输 | M48: 否 | N48: 电汇 | O48: 19 | P48: 1 | Q48: 1 | S48: 636657738064 | T48: 中行港湾路支行 | U48: 陆倩婷 | V48: 2019-02-01T09:37:19
A49: (110)广州市生生物流有限公司 | B49: 2019-01-24 | C49: 2019-1 | D49: R0000030255 | E49: 广州港物流有限公司 | F49: 98749.84 | G49: 98749.84 | J49: 主营业务收入 | K49: CNY | L49: 水路运输 | M49: 否 | N49: 电汇 | O49: 20 | P49: 1 | Q49: 1 | S49: 636657738064 | T49: 中行港湾路支行 | U49: 陆倩婷 | V49: 2019-02-01T09:38:40
A50: (110)广州市生生物流有限公司 | B50: 2019-01-24 | C50: 2019-1 | D50: R0000030256 | E50: 广州港物流有限公司 | F50: 105755.05 | G50: 105755.05 | J50: 主营业务收入 | K50: CNY | L50: 水路运输 | M50: 否 | N50: 电汇 | O50: 21 | P50: 1 | Q50: 1 | S50: 636657738064 | T50: 中行港湾路支行 | U50: 陆倩婷 | V50: 2019-02-01T09:39:30
A51: (110)广州市生生物流有限公司 | B51: 2019-01-25 | C51: 2019-1 | D51: R0000030257 | E51: 深圳市海之峰国际货运代理有限公司 | F51: 88639.15 | G51: 88639.15 | J51: 主营业务收入 | K51: CNY | L51: 水路运输 | M51: 否 | N51: 电汇 | O51: 22 | P51: 1 | Q51: 1 | S51: 636657738064 | T51: 中行港湾路支行 | U51: 陆倩婷 | V51: 2019-02-01T09:40:55
A52: (110)广州市生生物流有限公司 | B52: 2019-01-25 | C52: 2019-1 | D52: R0000030260 | E52: 东莞市制糖厂有限公司 | F52: 134951.76 | G52: 134951.76 | J52: 主营业务收入 | K52: CNY | L52: 水路运输 | M52: 否 | N52: 电汇 | O52: 41 | P52: 1 | Q52: 1 | S52: 636657738064 | T52: 中行港湾路支行 | U52: 陆倩婷 | V52: 2019-02-01T09:50:41
A53: (110)广州市生生物流有限公司 | B53: 2019-01-28 | C53: 2019-1 | D53: R0000030261 | E53: 东莞顶志食品有限公司 | F53: 32000 | G53: 32000 | J53: 主营业务收入 | K53: CNY | M53: 否 | N53: 电汇 | O53: 17 | P53: 1 | Q53: 1 | S53: 636657738064 | T53: 中行港湾路支行 | U53: 陆倩婷 | V53: 2019-02-01T09:59:48
A54: (110)广州市生生物流有限公司 | B54: 2019-01-29 | C54: 2019-1 | D54: R0000030262 | E54: 惠州市惠粮物流有限公司 | F54: 8586.2 | G54: 8586.2 | J54: 主营业务收入 | K54: CNY | L54: 公路运输 | M54: 否 | N54: 电汇 | O54: 30 | P54: 1 | Q54: 1 | S54: 636657738064 | T54: 中行港湾路支行 | U54: 陆倩婷 | V54: 2019-02-01T10:00:41
A55: (110)广州市生生物流有限公司 | B55: 2019-01-29 | C55: 2019-1 | D55: R0000030263 | E55: 广州市润煦贸易有限公司 | F55: 18634.5 | G55: 18634.5 | J55: 主营业务收入 | K55: CNY | L55: 公路运输 | M55: 否 | N55: 电汇 | O55: 31 | P55: 1 | Q55: 1 | S55: 636657738064 | T55: 中行港湾路支行 | U55: 陆倩婷 | V55: 2019-02-01T10:01:22
A56: (110)广州市生生物流有限公司 | B56: 2019-01-29 | C56: 2019-1 | D56: R0000030264 | E56: 江门海大饲料有限公司 | F56: 45476.4 | G56: 45476.4 | J56: 主营业务收入 | K56: CNY | L56: 公路运输 | M56: 否 | N56: 电汇 | O56: 32 | P56: 1 | Q56: 1 | S56: 636657738064 | T56: 中行港湾路支行 | U56: 陆倩婷 | V56: 2019-02-01T10:02:17
A57: (110)广州市生生物流有限公司 | B57: 2019-01-29 | C57: 2019-1 | D57: R0000030265 | E57: 深圳市海之峰国际货运代理有限公司 | F57: 95697.64 | G57: 95697.64 | J57: 主营业务收入 | K57: CNY | L57: 水路运输 | M57: 否 | N57: 电汇 | O57: 33 | P57: 1 | Q57: 1 | S57: 636657738064 | T57: 中行港湾路支行 | U57: 陆倩婷 | V57: 2019-02-01T10:03:39
A58: (110)广州市生生物流有限公司 | B58: 2019-01-29 | C58: 2019-1 | D58: R0000030288 | E58: 广东双水码头有限公司 | F58: 77232.36 | G58: 77232.36 | J58: 主营业务收入 | K58: CNY | L58: 水路运输 | M58: 否 | N58: 电汇 | O58: 34 | P58: 1 | Q58: 1 | S58: 636657738064 | T58: 中行港湾路支行 | U58: 陆倩婷 | V58: 2019-02-01T15:31:49
A59: (110)广州市生生物流有限公司 | B59: 2019-01-29 | C59: 2019-1 | D59: R0000030289 | E59: 广东佰利源化工有限公司 | F59: 30200 | G59: 30200 | J59: 主营业务收入 | K59: CNY | M59: 否 | N59: 电汇 | O59: 35 | P59: 1 | Q59: 1 | S59: 636657738064 | T59: 中行港湾路支行 | U59: 陆倩婷 | V59: 2019-02-01T15:32:43
A60: (110)广州市生生物流有限公司 | B60: 2019-01-30 | C60: 2019-1 | D60: R0000030290 | E60: 深圳市福加德谷物有限公司 | F60: 127211.61 | G60: 127211.61 | J60: 主营业务收入 | K60: CNY | L60: 水路运输 | M60: 否 | N60: 电汇 | O60: 36 | P60: 1 | Q60: 1 | S60: 636657738064 | T60: 中行港湾路支行 | U60: 陆倩婷 | V60: 2019-02-01T15:33:31
A61: (110)广州市生生物流有限公司 | B61: 2019-01-30 | C61: 2019-1 | D61: R0000030291 | E61: 广州泰来国际货运代理有限公司 | F61: 75098.26 | G61: 75098.26 | J61: 主营业务收入 | K61: CNY | L61: 水路运输 | M61: 否 | N61: 电汇 | O61: 38 | P61: 1 | Q61: 1 | S61: 636657738064 | T61: 中行港湾路支行 | U61: 陆倩婷 | V61: 2019-02-01T15:34:53
A62: (110)广州市生生物流有限公司 | B62: 2019-01-30 | C62: 2019-1 | D62: R0000030292 | E62: 广州千千钢贸易有限公司 | F62: 1457.55 | G62: 1457.55 | J62: 主营业务收入 | K62: CNY | L62: 公路运输 | M62: 否 | N62: 电汇 | O62: 39 | P62: 1 | Q62: 1 | S62: 636657738064 | T62: 中行港湾路支行 | U62: 陆倩婷 | V62: 2019-02-01T15:35:40
A63: (110)广州市生生物流有限公司 | B63: 2019-01-30 | C63: 2019-1 | D63: R0000030293 | E63: 常熟市港顺货运有限公司 | F63: 119519.94 | G63: 119519.94 | J63: 主营业务收入 | K63: CNY | L63: 水路运输 | M63: 否 | N63: 电汇 | O63: 37 | P63: 1 | Q63: 1 | S63: 636657738064 | T63: 中行港湾路支行 | U63: 陆倩婷 | V63: 2019-02-01T15:36:50
A64: (110)广州市生生物流有限公司 | B64: 2019-02-01 | C64: 2019-2 | D64: R0000030593 | E64: 广州启润实业有限公司 | F64: 142607.02 | G64: 142607.02 | J64: 主营业务收入 | K64: CNY | L64: 公路运输 | M64: 否 | N64: 电汇 | O64: 2 | P64: 1 | Q64: 1 | S64: 636657738064 | T64: 中行港湾路支行 | U64: 陆倩婷 | V64: 2019-02-11T11:00:04
A65: (110)广州市生生物流有限公司 | B65: 2019-01-25 | C65: 2019-1 | D65: R0000030938 | E65: 广州市骏宝饲料有限公司 | F65: 92200.12 | G65: 92200.12 | J65: 主营业务收入 | K65: CNY | L65: 水路运输 | M65: 否 | N65: 电汇 | O65: 40 | P65: 1 | Q65: 1 | S65: 636657738064 | T65: 中行港湾路支行 | U65: 陆倩婷 | V65: 2019-02-13T16:16:53
A66: (110)广州市生生物流有限公司 | B66: 2019-02-20 | C66: 2019-2 | D66: R0000032461 | E66: 东莞市华升造纸材料贸易有限公司 | F66: 17840 | G66: 17840 | J66: 主营业务收入 | K66: CNY | L66: 公路运输 | M66: 否 | N66: 电汇 | O66: 4 | P66: 1 | Q66: 1 | S66: 636657738064 | T66: 中行港湾路支行 | U66: 陆倩婷 | V66: 2019-02-27T11:45:26
A67: (110)广州市生生物流有限公司 | B67: 2019-02-21 | C67: 2019-2 | D67: R0000032462 | E67: 深圳市海之峰国际货运代理有限公司 | F67: 87240.89 | G67: 87240.89 | J67: 主营业务收入 | K67: CNY | L67: 水路运输 | M67: 否 | N67: 电汇 | O67: 3 | P67: 1 | Q67: 1 | S67: 636657738064 | T67: 中行港湾路支行 | U67: 陆倩婷 | V67: 2019-02-27T11:46:21
A68: (110)广州市生生物流有限公司 | B68: 2019-02-22 | C68: 2019-2 | D68: R0000032463 | E68: 广州市汉存贸易有限公司 | F68: 61603.73 | G68: 61603.73 | J68: 主营业务收入 | K68: CNY | L68: 公路运输 | M68: 否 | N68: 电汇 | O68: 7 | P68: 1 | Q68: 1 | S68: 636657738064 | T68: 中行港湾路支行 | U68: 陆倩婷 | V68: 2019-02-27T11:47:10
A69: (110)广州市生生物流有限公司 | B69: 2019-02-25 | C69: 2019-2 | D69: R0000032464 | E69: 广州昊勤贸易有限公司 | F69: 169284.16 | G69: 169284.16 | J69: 主营业务收入 | K69: CNY | L69: 公路运输 | M69: 否 | N69: 电汇 | O69: 8 | P69: 1 | Q69: 1 | S69: 636657738064 | T69: 中行港湾路支行 | U69: 陆倩婷 | V69: 2019-02-27T11:48:02
A70: (110)广州市生生物流有限公司 | B70: 2019-02-25 | C70: 2019-2 | D70: R0000032465 | E70: 广州百勤贸易有限公司 | F70: 40368.92 | G70: 40368.92 | J70: 主营业务收入 | K70: CNY | L70: 公路运输 | M70: 否 | N70: 电汇 | O70: 6 | P70: 1 | Q70: 1 | S70: 636657738064 | T70: 中行港湾路支行 | U70: 陆倩婷 | V70: 2019-02-27T11:48:43
A71: (110)广州市生生物流有限公司 | B71: 2019-02-27 | C71: 2019-2 | D71: R0000032600 | E71: 广州市骏宝饲料有限公司 | F71: 90000 | G71: 90000 | J71: 主营业务收入 | K71: CNY | L71: 公路运输 | M71: 否 | N71: 电汇 | O71: 12 | P71: 1 | Q71: 1 | S71: 636657738064 | T71: 中行港湾路支行 | U71: 陆倩婷 | V71: 2019-02-28T09:43:25
A72: (110)广州市生生物流有限公司 | B72: 2019-02-28 | C72: 2019-2 | D72: R0000032762 | E72: 辽宁瑞鸿贸易有限公司 | F72: 573675.82 | G72: 573675.82 | J72: 主营业务收入 | K72: CNY | L72: 公路运输 | M72: 否 | N72: 电汇 | O72: 13 | P72: 1 | Q72: 1 | S72: 636657738064 | T72: 中行港湾路支行 | U72: 陆倩婷 | V72: 2019-02-28T17:27:41
A73: (110)广州市生生物流有限公司 | B73: 2019-03-05 | C73: 2019-3 | D73: R0000033411 | E73: 深圳市海之峰国际货运代理有限公司 | F73: 60364.42 | G73: 60364.42 | J73: 主营业务收入 | K73: CNY | L73: 水路运输 | M73: 否 | N73: 电汇 | O73: 4 | P73: 1 | Q73: 1 | S73: 636657738064 | T73: 中行港湾路支行 | U73: 陆倩婷 | V73: 2019-03-06T15:54:28
A74: (110)广州市生生物流有限公司 | B74: 2019-03-11 | C74: 2019-3 | D74: R0000033948 | E74: 深圳市海之峰国际货运代理有限公司 | F74: 145325.3 | G74: 145325.3 | J74: 主营业务收入 | K74: CNY | L74: 水路运输 | M74: 否 | N74: 电汇 | O74: 1 | P74: 1 | Q74: 1 | S74: 636657738064 | T74: 中行港湾路支行 | U74: 陆倩婷 | V74: 2019-03-11T17:20:49
A75: (110)广州市生生物流有限公司 | B75: 2019-03-15 | C75: 2019-3 | D75: R0000034670 | E75: 东莞市制糖厂有限公司 | F75: 100000 | G75: 100000 | J75: 主营业务收入 | K75: CNY | L75: 水路运输 | M75: 否 | N75: 电汇 | O75: 8 | P75: 1 | Q75: 1 | S75: 636657738064 | T75: 中行港湾路支行 | U75: 陆倩婷 | V75: 2019-03-15T16:55:59
A76: (110)广州市生生物流有限公司 | B76: 2019-03-14 | C76: 2019-3 | D76: R0000034671 | E76: 广东双水码头有限公司 | F76: 332026.9 | G76: 332026.9 | J76: 主营业务收入 | K76: CNY | L76: 水路运输 | M76: 否 | N76: 电汇 | O76: 6 | P76: 1 | Q76: 1 | S76: 636657738064 | T76: 中行港湾路支行 | U76: 陆倩婷 | V76: 2019-03-15T16:59:23
A77: (110)广州市生生物流有限公司 | B77: 2019-03-19 | C77: 2019-3 | D77: R0000035317 | E77: 广东双水码头有限公司 | F77: 170279.33 | G77: 170279.33 | J77: 主营业务收入 | K77: CNY | L77: 水路运输 | M77: 否 | N77: 电汇 | O77: 7 | P77: 1 | Q77: 1 | S77: 636657738064 | T77: 中行港湾路支行 | U77: 陆倩婷 | V77: 2019-03-21T14:13:45
A78: (110)广州市生生物流有限公司 | B78: 2019-03-20 | C78: 2019-3 | D78: R0000035318 | E78: 广州市中荣糖业有限公司 | F78: 7693 | G78: 7693 | J78: 主营业务收入 | K78: CNY | L78: 公路运输 | M78: 否 | N78: 电汇 | O78: 13 | P78: 1 | Q78: 1 | S78: 636657738064 | T78: 中行港湾路支行 | U78: 陆倩婷 | V78: 2019-03-21T14:14:34
A79: (110)广州市生生物流有限公司 | B79: 2019-03-21 | C79: 2019-3 | D79: R0000035418 | E79: 大连海大容川贸易有限公司 | F79: 114957.17 | G79: 114957.17 | J79: 主营业务收入 | K79: CNY | L79: 公路运输 | M79: 否 | N79: 电汇 | O79: 9 | P79: 1 | Q79: 1 | S79: 636657738064 | T79: 中行港湾路支行 | U79: 陆倩婷 | V79: 2019-03-21T17:14:26
A80: (110)广州市生生物流有限公司 | B80: 2019-03-22 | C80: 2019-3 | D80: R0000035817 | E80: 深圳市海之峰国际货运代理有限公司 | F80: 93506.66 | G80: 93506.66 | J80: 主营业务收入 | K80: CNY | L80: 水路运输 | M80: 否 | N80: 电汇 | O80: 12 | P80: 1 | Q80: 1 | S80: 636657738064 | T80: 中行港湾路支行 | U80: 陆倩婷 | V80: 2019-03-25T17:09:03
A81: (110)广州市生生物流有限公司 | B81: 2019-03-26 | C81: 2019-3 | D81: R0000036062 | E81: 珠海粤裕丰钢铁有限公司 | F81: 49411.99 | G81: 49411.99 | J81: 主营业务收入 | K81: CNY | L81: 水路运输 | M81: 否 | N81: 电汇 | O81: 10 | P81: 1 | Q81: 1 | S81: 636657738064 | T81: 中行港湾路支行 | U81: 陆倩婷 | V81: 2019-03-27T09:55:16
A82: (110)广州市生生物流有限公司 | B82: 2019-03-27 | C82: 2019-3 | D82: R0000036293 | E82: 广州泰来国际货运代理有限公司 | F82: 214592.25 | G82: 214592.25 | J82: 主营业务收入 | K82: CNY | L82: 水路运输 | M82: 否 | N82: 电汇 | O82: 15 | P82: 1 | Q82: 1 | S82: 636657738064 | T82: 中行港湾路支行 | U82: 陆倩婷 | V82: 2019-03-29T17:37:11
A83: (110)广州市生生物流有限公司 | B83: 2019-03-27 | C83: 2019-3 | D83: R0000036294 | E83: 常熟市港顺货运有限公司 | F83: 64750 | G83: 64750 | J83: 主营业务收入 | K83: CNY | L83: 水路运输 | M83: 否 | N83: 电汇 | O83: 16 | P83: 1 | Q83: 1 | S83: 636657738064 | T83: 中行港湾路支行 | U83: 陆倩婷 | V83: 2019-03-29T17:38:08
A84: (110)广州市生生物流有限公司 | B84: 2019-03-27 | C84: 2019-3 | D84: R0000036295 | E84: 舟山海耘船务有限公司 | F84: 301959.46 | G84: 301959.46 | J84: 主营业务收入 | K84: CNY | L84: 公路运输 | M84: 否 | N84: 电汇 | O84: 14 | P84: 1 | Q84: 1 | S84: 636657738064 | T84: 中行港湾路支行 | U84: 陆倩婷 | V84: 2019-03-29T17:38:57
A85: (110)广州市生生物流有限公司 | B85: 2019-03-29 | C85: 2019-3 | D85: R0000036296 | E85: 浙江利远海运有限公司 | F85: 169004.7 | G85: 169004.7 | J85: 主营业务收入 | K85: CNY | L85: 公路运输 | M85: 否 | N85: 电汇 | O85: 17 | P85: 1 | Q85: 1 | S85: 636657738064 | T85: 中行港湾路支行 | U85: 陆倩婷 | V85: 2019-03-29T17:39:40
A86: (110)广州市生生物流有限公司 | B86: 2019-03-31 | C86: 2019-3 | D86: R0000036324 | E86: 东莞市森糖贸易有限公司 | F86: 60000 | G86: 60000 | J86: 主营业务收入 | K86: CNY | L86: 公路运输 | M86: 否 | N86: 电汇 | O86: 19 | P86: 1 | Q86: 1 | S86: 636657738064 | T86: 中行港湾路支行 | U86: 陆倩婷 | V86: 2019-04-01T11:21:37
A87: (110)广州市生生物流有限公司 | B87: 2019-04-01 | C87: 2019-4 | D87: R0000036542 | E87: 中牧农业连锁发展有限公司 | F87: 381815.74 | G87: 381815.74 | J87: 货代集运业务 | K87: CNY | L87: 集运代理 | M87: 否 | N87: 电汇 | O87: 10 | P87: 1 | Q87: 1 | S87: 636657738064 | T87: 中行港湾路支行 | U87: 陆倩婷 | V87: 2019-04-08T10:26:00
A88: (110)广州市生生物流有限公司 | B88: 2019-04-02 | C88: 2019-4 | D88: R0000036543 | E88: 辽宁瑞鸿贸易有限公司 | F88: 571104.76 | G88: 571104.76 | J88: 主营业务收入 | K88: CNY | L88: 公路运输 | M88: 否 | N88: 电汇 | O88: 9 | P88: 1 | Q88: 1 | S88: 636657738064 | T88: 中行港湾路支行 | U88: 陆倩婷 | V88: 2019-04-08T10:27:02
A89: (110)广州市生生物流有限公司 | B89: 2019-04-03 | C89: 2019-4 | D89: R0000036544 | E89: 浙江利远海运有限公司 | F89: 72292.08 | G89: 72292.08 | J89: 主营业务收入 | K89: CNY | L89: 水路运输 | M89: 否 | N89: 电汇 | O89: 8 | P89: 1 | Q89: 1 | S89: 636657738064 | T89: 中行港湾路支行 | U89: 陆倩婷 | V89: 2019-04-08T10:31:12
A90: (110)广州市生生物流有限公司 | B90: 2019-04-09 | C90: 2019-4 | D90: R0000036643 | E90: 广东良运谷物有限公司 | F90: 559099.63 | G90: 559099.63 | J90: 主营业务收入 | K90: CNY | L90: 水路运输 | M90: 否 | N90: 电汇 | O90: 6 | P90: 1 | Q90: 1 | S90: 636657738064 | T90: 中行港湾路支行 | U90: 陆倩婷 | V90: 2019-04-10T09:24:04
A91: (110)广州市生生物流有限公司 | B91: 2019-04-12 | C91: 2019-4 | D91: R0000037124 | E91: 东莞市制糖厂有限公司 | F91: 100000 | G91: 100000 | J91: 主营业务收入 | K91: CNY | L91: 水路运输 | M91: 否 | N91: 电汇 | O91: 3 | P91: 1 | Q91: 1 | S91: 636657738064 | T91: 中行港湾路支行 | U91: 陆倩婷 | V91: 2019-04-18T17:19:31
A92: (110)广州市生生物流有限公司 | B92: 2019-04-15 | C92: 2019-4 | D92: R0000037127 | E92: 广州市亿创物资有限公司 | F92: 80990.58 | G92: 80990.58 | J92: 主营业务收入 | K92: CNY | L92: 公路运输 | M92: 否 | N92: 电汇 | O92: 4 | P92: 1 | Q92: 1 | S92: 636657738064 | T92: 中行港湾路支行 | U92: 陆倩婷 | V92: 2019-04-18T17:22:23
A93: (110)广州市生生物流有限公司 | B93: 2019-04-17 | C93: 2019-4 | D93: R0000037128 | E93: 广州益嘉物流有限公司 | F93: 69833.52 | G93: 69833.52 | J93: 主营业务收入 | K93: CNY | L93: 水路运输 | M93: 否 | N93: 电汇 | O93: 2 | P93: 1 | Q93: 1 | S93: 636657738064 | T93: 中行港湾路支行 | U93: 陆倩婷 | V93: 2019-04-18T17:23:02
A94: (110)广州市生生物流有限公司 | B94: 2019-04-17 | C94: 2019-4 | D94: R0000037129 | E94: 广州益嘉物流有限公司 | F94: 48929.7 | G94: 48929.7 | J94: 主营业务收入 | K94: CNY | L94: 水路运输 | M94: 否 | N94: 电汇 | O94: 1 | P94: 1 | Q94: 1 | S94: 636657738064 | T94: 中行港湾路支行 | U94: 陆倩婷 | V94: 2019-04-18T17:23:33
A95: (110)广州市生生物流有限公司 | B95: 2019-04-18 | C95: 2019-4 | D95: R0000037130 | E95: 建发（北京）有限公司 | F95: 106619.7 | G95: 106619.7 | J95: 主营业务收入 | K95: CNY | L95: 公路运输 | M95: 否 | N95: 电汇 | O95: 14 | P95: 1 | Q95: 1 | S95: 636657738064 | T95: 中行港湾路支行 | U95: 陆倩婷 | V95: 2019-04-18T17:24:19
A96: (110)广州市生生物流有限公司 | B96: 2019-04-18 | C96: 2019-4 | D96: R0000037131 | E96: 东莞市华升造纸材料贸易有限公司 | F96: 59981 | G96: 59981 | J96: 主营业务收入 | K96: CNY | L96: 公路运输 | M96: 否 | N96: 电汇 | O96: 13 | P96: 1 | Q96: 1 | S96: 636657738064 | T96: 中行港湾路支行 | U96: 陆倩婷 | V96: 2019-04-18T17:25:06
A97: (110)广州市生生物流有限公司 | B97: 2019-04-18 | C97: 2019-4 | D97: R0000037132 | E97: 大连海大容川贸易有限公司 | F97: 16496 | G97: 16496 | J97: 主营业务收入 | K97: CNY | L97: 水路运输 | M97: 否 | N97: 电汇 | O97: 15 | P97: 1 | Q97: 1 | S97: 636657738064 | T97: 中行港湾路支行 | U97: 陆倩婷 | V97: 2019-04-18T17:25:38
A98: (110)广州市生生物流有限公司 | B98: 2019-04-22 | C98: 2019-4 | D98: R0000037397 | E98: 广州美豆生物技术有限公司 | F98: 374580 | G98: 374580 | J98: 主营业务收入 | K98: CNY | L98: 公路运输 | M98: 否 | N98: 电汇 | O98: 20 | P98: 1 | Q98: 1 | S98: 636657738064 | T98: 中行港湾路支行 | U98: 陆倩婷 | V98: 2019-04-22T14:14:37
A99: (110)广州市生生物流有限公司 | B99: 2019-04-19 | C99: 2019-4 | D99: R0000037457 | E99: 东莞市森糖贸易有限公司 | F99: 30000 | G99: 30000 | J99: 主营业务收入 | K99: CNY | L99: 公路运输 | M99: 否 | N99: 电汇 | O99: 12 | P99: 1 | Q99: 1 | S99: 636657738064 | T99: 中行港湾路支行 | U99: 陆倩婷 | V99: 2019-04-22T16:59:12
A100: (110)广州市生生物流有限公司 | B100: 2019-04-22 | C100: 2019-4 | D100: R0000037458 | E100: 广州长晟物流有限公司 | F100: 34136.37 | G100: 34136.37 | J100: 主营业务收入 | K100: CNY | L100: 水路运输 | M100: 否 | N100: 电汇 | O100: 25 | P100: 1 | Q100: 1 | S100: 636657738064 | T100: 中行港湾路支行 | U100: 陆倩婷 | V100: 2019-04-22T16:59:58
A101: (110)广州市生生物流有限公司 | B101: 2019-04-23 | C101: 2019-4 | D101: R0000037573 | E101: 常熟市港顺货运有限公司 | F101: 148339.06 | G101: 148339.06 | J101: 主营业务收入 | K101: CNY | L101: 水路运输 | M101: 否 | N101: 电汇 | O101: 22 | P101: 1 | Q101: 1 | S101: 636657738064 | T101: 中行港湾路支行 | U101: 陆倩婷 | V101: 2019-04-23T16:59:30
A102: (110)广州市生生物流有限公司 | B102: 2019-04-23 | C102: 2019-4 | D102: R0000037576 | E102: 广州市粮食集团有限责任公司 | F102: 316903.3 | G102: 316903.3 | J102: 主营业务收入 | K102: CNY | L102: 水路运输 | M102: 否 | N102: 电汇 | O102: 21 | P102: 1 | Q102: 1 | S102: 636657738064 | T102: 中行港湾路支行 | U102: 陆倩婷 | V102: 2019-04-23T17:00:30
A103: (110)广州市生生物流有限公司 | B103: 2019-04-23 | C103: 2019-4 | D103: R0000037656 | E103: 广州启润实业有限公司 | F103: 135992.12 | G103: 135992.12 | J103: 主营业务收入 | K103: CNY | L103: 公路运输 | M103: 否 | N103: 电汇 | O103: 29 | P103: 1 | Q103: 1 | S103: 636657738064 | T103: 中行港湾路支行 | U103: 陆倩婷 | V103: 2019-04-24T17:36:30
A104: (110)广州市生生物流有限公司 | B104: 2019-04-24 | C104: 2019-4 | D104: R0000037657 | E104: 广东双水码头有限公司 | F104: 489783.48 | G104: 489783.48 | J104: 主营业务收入 | K104: CNY | L104: 水路运输 | M104: 否 | N104: 电汇 | O104: 28 | P104: 1 | Q104: 1 | S104: 636657738064 | T104: 中行港湾路支行 | U104: 陆倩婷 | V104: 2019-04-24T17:38:41
A105: (110)广州市生生物流有限公司 | B105: 2019-04-24 | C105: 2019-4 | D105: R0000037658 | E105: 双胞胎饲料有限公司 | F105: 693797.53 | G105: 693797.53 | J105: 主营业务收入 | K105: CNY | L105: 水路运输 | M105: 否 | N105: 电汇 | O105: 31 | P105: 1 | Q105: 1 | S105: 636657738064 | T105: 中行港湾路支行 | U105: 陆倩婷 | V105: 2019-04-24T17:39:44
A106: (110)广州市生生物流有限公司 | B106: 2019-04-24 | C106: 2019-4 | D106: R0000037659 | E106: 中牧农业连锁发展有限公司 | F106: 482089.5 | G106: 482089.5 | J106: 货代集运业务 | K106: CNY | L106: 集运代理 | M106: 否 | N106: 电汇 | O106: 26 | P106: 1 | Q106: 1 | S106: 636657738064 | T106: 中行港湾路支行 | U106: 陆倩婷 | V106: 2019-04-24T17:40:34
A107: (110)广州市生生物流有限公司 | B107: 2019-04-24 | C107: 2019-4 | D107: R0000037660 | E107: 广州市骏宝饲料有限公司 | F107: 81300 | G107: 81300 | J107: 主营业务收入 | K107: CNY | L107: 公路运输 | M107: 否 | N107: 电汇 | O107: 27 | P107: 1 | Q107: 1 | S107: 636657738064 | T107: 中行港湾路支行 | U107: 陆倩婷 | V107: 2019-04-24T17:41:14
A108: (110)广州市生生物流有限公司 | B108: 2019-04-25 | C108: 2019-4 | D108: R0000037714 | E108: 广州广禾农副产品有限公司 | F108: 100000 | G108: 100000 | J108: 主营业务收入 | K108: CNY | L108: 公路运输 | M108: 否 | N108: 电汇 | O108: 24 | P108: 1 | Q108: 1 | S108: 636657738064 | T108: 中行港湾路支行 | U108: 陆倩婷 | V108: 2019-04-25T16:27:20
A109: (110)广州市生生物流有限公司 | B109: 2019-04-25 | C109: 2019-4 | D109: R0000037715 | E109: 赤峰佰惠生仓储物流有限公司 | F109: 650000 | G109: 650000 | J109: 主营业务收入 | K109: CNY | L109: 公路运输 | M109: 否 | N109: 电汇 | O109: 23 | P109: 1 | Q109: 1 | S109: 636657738064 | T109: 中行港湾路支行 | U109: 陆倩婷 | V109: 2019-04-25T16:28:01
A110: (110)广州市生生物流有限公司 | B110: 2019-04-28 | C110: 2019-4 | D110: R0000037891 | E110: 广州泰来国际货运代理有限公司 | F110: 79366.23 | G110: 79366.23 | J110: 主营业务收入 | K110: CNY | L110: 水路运输 | M110: 否 | N110: 电汇 | O110: 33 | P110: 1 | Q110: 1 | S110: 636657738064 | T110: 中行港湾路支行 | U110: 陆倩婷 | V110: 2019-04-28T17:29:18
A111: (110)广州市生生物流有限公司 | B111: 2019-04-28 | C111: 2019-4 | D111: R0000037893 | E111: 肇庆市福加德面粉有限公司 | F111: 496659.46 | G111: 496659.46 | J111: 主营业务收入 | K111: CNY | L111: 水路运输 | M111: 否 | N111: 电汇 | O111: 34 | P111: 1 | Q111: 1 | S111: 636657738064 | T111: 中行港湾路支行 | U111: 陆倩婷 | V111: 2019-04-28T17:30:14
A112: (110)广州市生生物流有限公司 | B112: 2019-04-30 | C112: 2019-4 | D112: R0000038039 | E112: 广州益嘉物流有限公司 | F112: 278861.69 | G112: 278861.69 | J112: 主营业务收入 | K112: CNY | L112: 水路运输 | M112: 否 | N112: 电汇 | O112: 32 | P112: 1 | Q112: 1 | S112: 636657738064 | T112: 中行港湾路支行 | U112: 陆倩婷 | V112: 2019-04-30T16:33:01
A113: (110)广州市生生物流有限公司 | B113: 2019-04-28 | C113: 2019-4 | D113: R0000038057 | E113: 广州市旭禾国际货运代理有限公司 | F113: 8630 | G113: 8630 | J113: 主营业务收入 | K113: CNY | L113: 公路运输 | M113: 否 | N113: 电汇 | O113: 35 | P113: 1 | Q113: 1 | S113: 636657738064 | T113: 中行港湾路支行 | U113: 陆倩婷 | V113: 2019-05-05T09:10:46
A114: (110)广州市生生物流有限公司 | B114: 2019-05-08 | C114: 2019-5 | D114: R0000038344 | E114: 东莞市怀美贸易有限公司 | F114: 33375 | G114: 33375 | J114: 主营业务收入 | K114: CNY | L114: 公路运输 | M114: 否 | N114: 电汇 | O114: 10 | P114: 1 | Q114: 1 | S114: 636657738064 | T114: 中行港湾路支行 | U114: 陆倩婷 | V114: 2019-05-08T17:12:38
A115: (110)广州市生生物流有限公司 | B115: 2019-05-09 | C115: 2019-5 | D115: R0000038393 | E115: 广东双水码头有限公司 | F115: 93448.9 | G115: 93448.9 | J115: 主营业务收入 | K115: CNY | L115: 水路运输 | M115: 否 | N115: 电汇 | O115: 5 | P115: 1 | Q115: 1 | S115: 636657738064 | T115: 中行港湾路支行 | U115: 陈桂香 | V115: 2019-05-09T16:33:20
A116: (110)广州市生生物流有限公司 | B116: 2019-05-09 | C116: 2019-5 | D116: R0000038394 | E116: 广东双水码头有限公司 | F116: 290659.72 | G116: 290659.72 | J116: 主营业务收入 | K116: CNY | L116: 水路运输 | M116: 否 | N116: 电汇 | O116: 8 | P116: 1 | Q116: 1 | S116: 636657738064 | T116: 中行港湾路支行 | U116: 陈桂香 | V116: 2019-05-09T16:34:30
A117: (110)广州市生生物流有限公司 | B117: 2019-05-09 | C117: 2019-5 | D117: R0000038429 | E117: 赤峰佰惠生仓储物流有限公司 | F117: 650000 | G117: 650000 | J117: 主营业务收入 | K117: CNY | L117: 公路运输 | M117: 否 | N117: 电汇 | O117: 9 | P117: 1 | Q117: 1 | S117: 636657738064 | T117: 中行港湾路支行 | U117: 陈桂香 | V117: 2019-05-10T16:37:12
A118: (110)广州市生生物流有限公司 | B118: 2019-05-10 | C118: 2019-5 | D118: R0000038430 | E118: 东莞市制糖厂有限公司 | F118: 100000 | G118: 100000 | J118: 主营业务收入 | K118: CNY | L118: 水路运输 | M118: 否 | N118: 电汇 | O118: 6 | P118: 1 | Q118: 1 | S118: 636657738064 | T118: 中行港湾路支行 | U118: 陈桂香 | V118: 2019-05-10T16:38:04
A119: (110)广州市生生物流有限公司 | B119: 2019-05-15 | C119: 2019-5 | D119: R0000038628 | E119: 厦门市陆源物流有限公司 | F119: 32787.63 | G119: 32787.63 | J119: 主营业务收入 | K119: CNY | L119: 公路运输 | M119: 否 | N119: 电汇 | O119: 4 | P119: 1 | Q119: 1 | S119: 636657738064 | T119: 中行港湾路支行 | U119: 区贵妹 | V119: 2019-05-16T11:20:01
A120: (110)广州市生生物流有限公司 | B120: 2019-05-15 | C120: 2019-5 | D120: R0000038629 | E120: 惠州市惠宝佳牧饲料有限公司 | F120: 10400 | G120: 10400 | J120: 主营业务收入 | K120: CNY | L120: 公路运输 | M120: 否 | N120: 电汇 | O120: 3 | P120: 1 | Q120: 1 | S120: 636657738064 | T120: 中行港湾路支行 | U120: 区贵妹 | V120: 2019-05-16T11:20:39
A121: (110)广州市生生物流有限公司 | B121: 2019-05-15 | C121: 2019-5 | D121: R0000038631 | E121: 广州港物流有限公司 | F121: 27608.76 | G121: 27608.76 | J121: 主营业务收入 | K121: CNY | L121: 水路运输 | M121: 否 | N121: 电汇 | O121: 2 | P121: 1 | Q121: 1 | S121: 636657738064 | T121: 中行港湾路支行 | U121: 区贵妹 | V121: 2019-05-16T11:23:53
A122: (110)广州市生生物流有限公司 | B122: 2019-05-16 | C122: 2019-5 | D122: R0000038633 | E122: 广州市骏宝饲料有限公司 | F122: 142874.62 | G122: 142874.62 | J122: 主营业务收入 | K122: CNY | L122: 水路运输 | M122: 否 | N122: 电汇 | O122: 1 | P122: 1 | Q122: 1 | S122: 636657738064 | T122: 中行港湾路支行 | U122: 区贵妹 | V122: 2019-05-16T11:24:26
A123: (110)广州市生生物流有限公司 | B123: 2019-05-16 | C123: 2019-5 | D123: R0000038714 | E123: 广州长晟物流有限公司 | F123: 46077.9 | G123: 46077.9 | J123: 主营业务收入 | K123: CNY | L123: 水路运输 | M123: 否 | N123: 电汇 | O123: 14 | P123: 1 | Q123: 1 | S123: 636657738064 | T123: 中行港湾路支行 | U123: 陈桂香 | V123: 2019-05-17T14:55:47
A124: (110)广州市生生物流有限公司 | B124: 2019-05-21 | C124: 2019-5 | D124: R0000038856 | E124: 广州港船务有限公司 | F124: 69413.87 | G124: 69413.87 | J124: 主营业务收入 | K124: CNY | L124: 水路运输 | M124: 否 | N124: 电汇 | O124: 16 | P124: 1 | Q124: 1 | S124: 636657738064 | T124: 中行港湾路支行 | U124: 陈桂香 | V124: 2019-05-21T16:02:13
A125: (110)广州市生生物流有限公司 | B125: 2019-05-21 | C125: 2019-5 | D125: R0000038858 | E125: 广西金苹果饲料有限公司 | F125: 42665.25 | G125: 42665.25 | J125: 主营业务收入 | K125: CNY | L125: 水路运输 | M125: 否 | N125: 电汇 | O125: 11 | P125: 1 | Q125: 1 | S125: 636657738064 | T125: 中行港湾路支行 | U125: 陈桂香 | V125: 2019-05-21T17:30:44
A126: (110)广州市生生物流有限公司 | B126: 2019-05-21 | C126: 2019-5 | D126: R0000038859 | E126: 广西金苹果饲料有限公司 | F126: 42681.18 | G126: 42681.18 | J126: 主营业务收入 | K126: CNY | L126: 水路运输 | M126: 否 | N126: 电汇 | O126: 12 | P126: 1 | Q126: 1 | S126: 636657738064 | T126: 中行港湾路支行 | U126: 陈桂香 | V126: 2019-05-21T17:31:04
A127: (110)广州市生生物流有限公司 | B127: 2019-05-21 | C127: 2019-5 | D127: R0000038860 | E127: 广西金苹果饲料有限公司 | F127: 39213.14 | G127: 39213.14 | J127: 主营业务收入 | K127: CNY | L127: 水路运输 | M127: 否 | N127: 电汇 | O127: 13 | P127: 1 | Q127: 1 | S127: 636657738064 | T127: 中行港湾路支行 | U127: 陈桂香 | V127: 2019-05-21T17:31:28
A128: (110)广州市生生物流有限公司 | B128: 2019-05-22 | C128: 2019-5 | D128: R0000038927 | E128: 深圳市海之峰国际货运代理有限公司 | F128: 93710.54 | G128: 93710.54 | J128: 主营业务收入 | K128: CNY | L128: 水路运输 | M128: 否 | N128: 电汇 | O128: 17 | P128: 1 | Q128: 1 | S128: 636657738064 | T128: 中行港湾路支行 | U128: 陆倩婷 | V128: 2019-05-22T16:50:20
A129: (110)广州市生生物流有限公司 | B129: 2019-05-23 | C129: 2019-5 | D129: R0000038964 | E129: 广州港股份有限公司新港港务分公司 | F129: 50343.86 | G129: 50343.86 | J129: 主营业务收入 | K129: CNY | L129: 水路运输 | M129: 否 | N129: 电汇 | O129: 18 | P129: 1 | Q129: 1 | S129: 636657738064 | T129: 中行港湾路支行 | U129: 陆倩婷 | V129: 2019-05-23T17:34:21
A130: (110)广州市生生物流有限公司 | B130: 2019-05-23 | C130: 2019-5 | D130: R0000038965 | E130: 浙江利远海运有限公司 | F130: 116703.15 | G130: 116703.15 | J130: 主营业务收入 | K130: CNY | L130: 公路运输 | M130: 否 | N130: 电汇 | O130: 19 | P130: 1 | Q130: 1 | S130: 636657738064 | T130: 中行港湾路支行 | U130: 陆倩婷 | V130: 2019-05-23T17:34:51
A131: (110)广州市生生物流有限公司 | B131: 2019-05-23 | C131: 2019-5 | D131: R0000038966 | E131: 舟山海耘船务有限公司 | F131: 184967.43 | G131: 184967.43 | J131: 主营业务收入 | K131: CNY | L131: 公路运输 | M131: 否 | N131: 电汇 | O131: 20 | P131: 1 | Q131: 1 | S131: 636657738064 | T131: 中行港湾路支行 | U131: 陆倩婷 | V131: 2019-05-23T17:35:29
A132: (110)广州市生生物流有限公司 | B132: 2019-05-23 | C132: 2019-5 | D132: R0000039014 | E132: 大连海大容川贸易有限公司 | F132: 46523 | G132: 46523 | J132: 主营业务收入 | K132: CNY | L132: 公路运输 | M132: 否 | N132: 电汇 | O132: 21 | P132: 1 | Q132: 1 | S132: 636657738064 | T132: 中行港湾路支行 | U132: 陆倩婷 | V132: 2019-05-24T16:46:01
A133: (110)广州市生生物流有限公司 | B133: 2019-05-24 | C133: 2019-5 | D133: R0000039015 | E133: 广州港股份有限公司新港港务分公司 | F133: 56742.81 | G133: 56742.81 | J133: 主营业务收入 | K133: CNY | L133: 水路运输 | M133: 否 | N133: 电汇 | O133: 22 | P133: 1 | Q133: 1 | S133: 636657738064 | T133: 中行港湾路支行 | U133: 陆倩婷 | V133: 2019-05-24T16:46:53
A134: (110)广州市生生物流有限公司 | B134: 2019-05-27 | C134: 2019-5 | D134: R0000039088 | E134: 广州市华壬谷物贸易有限公司 | F134: 147500.48 | G134: 147500.48 | J134: 主营业务收入 | K134: CNY | L134: 公路运输 | M134: 否 | N134: 电汇 | O134: 24 | P134: 1 | Q134: 1 | S134: 636657738064 | T134: 中行港湾路支行 | U134: 陆倩婷 | V134: 2019-05-27T17:40:58
A135: (110)广州市生生物流有限公司 | B135: 2019-05-27 | C135: 2019-5 | D135: R0000039089 | E135: 赤峰佰惠生仓储物流有限公司 | F135: 762255 | G135: 762255 | J135: 主营业务收入 | K135: CNY | L135: 公路运输 | M135: 否 | N135: 电汇 | O135: 25 | P135: 1 | Q135: 1 | S135: 636657738064 | T135: 中行港湾路支行 | U135: 陆倩婷 | V135: 2019-05-27T17:41:28
A136: (110)广州市生生物流有限公司 | B136: 2019-05-27 | C136: 2019-5 | D136: R0000039090 | E136: 广州益嘉物流有限公司 | F136: 317206.39 | G136: 317206.39 | J136: 主营业务收入 | K136: CNY | L136: 水路运输 | M136: 否 | N136: 电汇 | O136: 26 | P136: 1 | Q136: 1 | S136: 636657738064 | T136: 中行港湾路支行 | U136: 陆倩婷 | V136: 2019-05-27T17:41:58
A137: (110)广州市生生物流有限公司 | B137: 2019-05-29 | C137: 2019-5 | D137: R0000039184 | E137: 东莞市制糖厂有限公司 | F137: 150000 | G137: 150000 | J137: 主营业务收入 | K137: CNY | L137: 水路运输 | M137: 否 | N137: 电汇 | O137: 29 | P137: 1 | Q137: 1 | S137: 636657738064 | T137: 中行港湾路支行 | U137: 陆倩婷 | V137: 2019-05-29T16:29:14
A138: (110)广州市生生物流有限公司 | B138: 2019-05-29 | C138: 2019-5 | D138: R0000039185 | E138: 常熟市港顺货运有限公司 | F138: 193255.25 | G138: 193255.25 | J138: 主营业务收入 | K138: CNY | L138: 水路运输 | M138: 否 | N138: 电汇 | O138: 30 | P138: 1 | Q138: 1 | S138: 636657738064 | T138: 中行港湾路支行 | U138: 陆倩婷 | V138: 2019-05-29T16:29:46
A139: (110)广州市生生物流有限公司 | B139: 2019-05-31 | C139: 2019-5 | D139: R0000039296 | E139: 广州泰来国际货运代理有限公司 | F139: 112955.49 | G139: 112955.49 | J139: 主营业务收入 | K139: CNY | L139: 水路运输 | M139: 否 | N139: 电汇 | O139: 32 | P139: 1 | Q139: 1 | S139: 636657738064 | T139: 中行港湾路支行 | U139: 陆倩婷 | V139: 2019-05-31T16:02:58
A140: (110)广州市生生物流有限公司 | B140: 2019-06-03 | C140: 2019-6 | D140: R0000039363 | E140: 大连海大容川贸易有限公司 | F140: 4610 | G140: 4610 | J140: 主营业务收入 | K140: CNY | L140: 代理服务 | M140: 否 | N140: 电汇 | O140: 10 | P140: 1 | Q140: 1 | S140: 636657738064 | T140: 中行港湾路支行 | U140: 陆倩婷 | V140: 2019-06-03T17:28:55
A141: (110)广州市生生物流有限公司 | B141: 2019-06-04 | C141: 2019-6 | D141: R0000039410 | E141: 东莞市怀美贸易有限公司 | F141: 22390 | G141: 22390 | J141: 主营业务收入 | K141: CNY | L141: 公路运输 | M141: 否 | N141: 电汇 | O141: 7 | P141: 1 | Q141: 1 | S141: 636657738064 | T141: 中行港湾路支行 | U141: 陆倩婷 | V141: 2019-06-04T16:29:53
A142: (110)广州市生生物流有限公司 | B142: 2019-06-05 | C142: 2019-6 | D142: R0000039632 | E142: 广州广禾农副产品有限公司 | F142: 40654 | G142: 40654 | J142: 主营业务收入 | K142: CNY | L142: 公路运输 | M142: 否 | N142: 电汇 | O142: 8 | P142: 1 | Q142: 1 | S142: 636657738064 | T142: 中行港湾路支行 | U142: 陆倩婷 | V142: 2019-06-05T16:44:50
A143: (110)广州市生生物流有限公司 | B143: 2019-06-06 | C143: 2019-6 | D143: R0000039917 | E143: 柳州双胞胎饲料有限公司 | F143: 48820.13 | G143: 48820.13 | J143: 主营业务收入 | K143: CNY | L143: 水路运输 | M143: 否 | N143: 电汇 | O143: 2 | P143: 1 | Q143: 1 | S143: 636657738064 | T143: 中行港湾路支行 | U143: 陆倩婷 | V143: 2019-06-06T16:33:07
A144: (110)广州市生生物流有限公司 | B144: 2019-06-10 | C144: 2019-6 | D144: R0000040272 | E144: 广东双水码头有限公司 | F144: 3800 | G144: 3800 | J144: 主营业务收入 | K144: CNY | L144: 公路运输 | M144: 否 | N144: 电汇 | O144: 9 | P144: 1 | Q144: 1 | S144: 636657738064 | T144: 中行港湾路支行 | U144: 陆倩婷 | V144: 2019-06-10T17:15:07
A145: (110)广州市生生物流有限公司 | B145: 2019-06-10 | C145: 2019-6 | D145: R0000040273 | E145: 隆安县浦通船务有限公司 | F145: 53222.4 | G145: 53222.4 | J145: 主营业务收入 | K145: CNY | L145: 水路运输 | M145: 否 | N145: 电汇 | O145: 1 | P145: 1 | Q145: 1 | S145: 636657738064 | T145: 中行港湾路支行 | U145: 陆倩婷 | V145: 2019-06-10T17:15:41
A146: (110)广州市生生物流有限公司 | B146: 2019-06-12 | C146: 2019-6 | D146: R0000040511 | E146: 广州市中川货运运输代理有限公司 | F146: 45125 | G146: 45125 | J146: 主营业务收入 | K146: CNY | L146: 公路运输 | M146: 否 | N146: 电汇 | O146: 5 | P146: 1 | Q146: 1 | S146: 636657738064 | T146: 中行港湾路支行 | U146: 陆倩婷 | V146: 2019-06-13T16:52:16
A147: (110)广州市生生物流有限公司 | B147: 2019-06-13 | C147: 2019-6 | D147: R0000040512 | E147: 广东良运谷物有限公司 | F147: 54696.93 | G147: 54696.93 | J147: 主营业务收入 | K147: CNY | L147: 水路运输 | M147: 否 | N147: 电汇 | O147: 4 | P147: 1 | Q147: 1 | S147: 636657738064 | T147: 中行港湾路支行 | U147: 陆倩婷 | V147: 2019-06-13T16:53:05
A148: (110)广州市生生物流有限公司 | B148: 2019-06-13 | C148: 2019-6 | D148: R0000040513 | E148: 广州启润实业有限公司 | F148: 242891.3 | G148: 242891.3 | J148: 主营业务收入 | K148: CNY | L148: 公路运输 | M148: 否 | N148: 电汇 | O148: 3 | P148: 1 | Q148: 1 | S148: 636657738064 | T148: 中行港湾路支行 | U148: 陆倩婷 | V148: 2019-06-13T16:53:35
A149: (110)广州市生生物流有限公司 | B149: 2019-06-14 | C149: 2019-6 | D149: R0000040738 | E149: 广东双水码头有限公司 | F149: 119918.23 | G149: 119918.23 | J149: 主营业务收入 | K149: CNY | L149: 水路运输 | M149: 否 | N149: 电汇 | O149: 17 | P149: 1 | Q149: 1 | S149: 636657738064 | T149: 中行港湾路支行 | U149: 陆倩婷 | V149: 2019-06-18T17:12:24
A150: (110)广州市生生物流有限公司 | B150: 2019-06-14 | C150: 2019-6 | D150: R0000040739 | E150: 广东双水码头有限公司 | F150: 191419 | G150: 191419 | J150: 主营业务收入 | K150: CNY | L150: 水路运输 | M150: 否 | N150: 电汇 | O150: 15 | P150: 1 | Q150: 1 | S150: 636657738064 | T150: 中行港湾路支行 | U150: 陆倩婷 | V150: 2019-06-18T17:12:53
A151: (110)广州市生生物流有限公司 | B151: 2019-06-18 | C151: 2019-6 | D151: R0000040743 | E151: 东莞市华升造纸材料贸易有限公司 | F151: 86161 | G151: 86161 | J151: 主营业务收入 | K151: CNY | L151: 公路运输 | M151: 否 | N151: 电汇 | O151: 18 | P151: 1 | Q151: 1 | S151: 636657738064 | T151: 中行港湾路支行 | U151: 陆倩婷 | V151: 2019-06-18T17:15:36
A152: (110)广州市生生物流有限公司 | B152: 2019-06-19 | C152: 2019-6 | D152: R0000040854 | E152: 江苏华穗粮食有限公司 | F152: 12600 | G152: 12600 | J152: 主营业务收入 | K152: CNY | L152: 水路运输 | M152: 否 | N152: 电汇 | O152: 13 | P152: 1 | Q152: 1 | S152: 636657738064 | T152: 中行港湾路支行 | U152: 陆倩婷 | V152: 2019-06-19T17:21:32
A153: (110)广州市生生物流有限公司 | B153: 2019-06-19 | C153: 2019-6 | D153: R0000040855 | E153: 广西金苹果饲料有限公司 | F153: 64691.94 | G153: 64691.94 | J153: 主营业务收入 | K153: CNY | L153: 水路运输 | M153: 否 | N153: 电汇 | O153: 11 | P153: 1 | Q153: 1 | S153: 636657738064 | T153: 中行港湾路支行 | U153: 陆倩婷 | V153: 2019-06-19T17:23:57
A154: (110)广州市生生物流有限公司 | B154: 2019-06-28 | C154: 2019-6 | D154: R0000041619 | E154: 深圳市海之峰国际货运代理有限公司 | F154: 61423.92 | G154: 61423.92 | J154: 主营业务收入 | K154: CNY | L154: 水路运输 | M154: 否 | N154: 电汇 | O154: 23 | P154: 1 | Q154: 1 | S154: 636657738064 | T154: 中行港湾路支行 | U154: 区贵妹 | V154: 2019-06-28T18:17:27
A155: (110)广州市生生物流有限公司 | B155: 2019-06-28 | C155: 2019-6 | D155: R0000041620 | E155: 常熟市港顺货运有限公司 | F155: 96000 | G155: 96000 | J155: 主营业务收入 | K155: CNY | L155: 水路运输 | M155: 否 | N155: 电汇 | O155: 24 | P155: 1 | Q155: 1 | S155: 636657738064 | T155: 中行港湾路支行 | U155: 区贵妹 | V155: 2019-06-28T18:18:40
A156: (110)广州市生生物流有限公司 | B156: 2019-06-28 | C156: 2019-6 | D156: R0000041621 | E156: 深圳市海之峰国际货运代理有限公司 | F156: 12000 | G156: 12000 | J156: 主营业务收入 | K156: CNY | L156: 水路运输 | M156: 否 | N156: 电汇 | O156: 28 | P156: 1 | Q156: 1 | S156: 636657738064 | T156: 中行港湾路支行 | U156: 区贵妹 | V156: 2019-06-28T18:19:40
A157: (110)广州市生生物流有限公司 | B157: 2019-06-28 | C157: 2019-6 | D157: R0000041623 | E157: 东莞市顺凯纸业有限公司 | F157: 4950 | G157: 4950 | J157: 主营业务收入 | K157: CNY | L157: 公路运输 | M157: 否 | N157: 电汇 | O157: 26 | P157: 1 | Q157: 1 | S157: 636657738064 | T157: 中行港湾路支行 | U157: 区贵妹 | V157: 2019-06-28T18:21:14
A158: (110)广州市生生物流有限公司 | B158: 2019-06-28 | C158: 2019-6 | D158: R0000041624 | E158: 广州泰来国际货运代理有限公司 | F158: 99448.03 | G158: 99448.03 | J158: 主营业务收入 | K158: CNY | L158: 水路运输 | M158: 否 | N158: 电汇 | O158: 27 | P158: 1 | Q158: 1 | S158: 636657738064 | T158: 中行港湾路支行 | U158: 区贵妹 | V158: 2019-06-28T18:23:50
A159: (110)广州市生生物流有限公司 | B159: 2019-07-01 | C159: 2019-7 | D159: R0000041693 | E159: 中山新纪元面粉有限公司 | F159: 77087.54 | G159: 77087.54 | J159: 主营业务收入 | K159: CNY | L159: 水路运输 | M159: 否 | N159: 电汇 | O159: 2 | P159: 1 | Q159: 1 | S159: 636657738064 | T159: 中行港湾路支行 | U159: 陆倩婷 | V159: 2019-07-01T17:31:30
A160: (110)广州市生生物流有限公司 | B160: 2019-07-01 | C160: 2019-7 | D160: R0000041694 | E160: 广州市骏宝饲料有限公司 | F160: 98100 | G160: 98100 | J160: 主营业务收入 | K160: CNY | L160: 公路运输 | M160: 否 | N160: 电汇 | O160: 5 | P160: 1 | Q160: 1 | S160: 636657738064 | T160: 中行港湾路支行 | U160: 陆倩婷 | V160: 2019-07-01T17:32:08
A161: (110)广州市生生物流有限公司 | B161: 2019-07-01 | C161: 2019-7 | D161: R0000041696 | E161: 东莞市怀美贸易有限公司 | F161: 24725 | G161: 24725 | J161: 主营业务收入 | K161: CNY | L161: 公路运输 | M161: 否 | N161: 电汇 | O161: 1 | P161: 1 | Q161: 1 | S161: 636657738064 | T161: 中行港湾路支行 | U161: 陆倩婷 | V161: 2019-07-01T17:39:20
A162: (110)广州市生生物流有限公司 | B162: 2019-07-02 | C162: 2019-7 | D162: R0000041974 | E162: 鞍钢联众（广州）不锈钢有限公司 | F162: 336074.2 | G162: 336074.2 | J162: 主营业务收入 | K162: CNY | L162: 公路运输 | M162: 否 | N162: 电汇 | O162: 10 | P162: 1 | Q162: 1 | S162: 636657738064 | T162: 中行港湾路支行 | U162: 陆倩婷 | V162: 2019-07-03T16:28:45
A163: (110)广州市生生物流有限公司 | B163: 2019-07-03 | C163: 2019-7 | D163: R0000041975 | E163: 鞍钢联众（广州）不锈钢有限公司 | F163: 32755 | G163: 32755 | J163: 主营业务收入 | K163: CNY | L163: 公路运输 | M163: 否 | N163: 电汇 | O163: 9 | P163: 1 | Q163: 1 | S163: 636657738064 | T163: 中行港湾路支行 | U163: 陆倩婷 | V163: 2019-07-03T16:30:45
A164: (110)广州市生生物流有限公司 | B164: 2019-07-03 | C164: 2019-7 | D164: R0000041976 | E164: 鞍钢联众（广州）不锈钢有限公司 | F164: 15340 | G164: 15340 | J164: 主营业务收入 | K164: CNY | L164: 公路运输 | M164: 否 | N164: 电汇 | O164: 8 | P164: 1 | Q164: 1 | S164: 636657738064 | T164: 中行港湾路支行 | U164: 陆倩婷 | V164: 2019-07-03T16:31:31
A165: (110)广州市生生物流有限公司 | B165: 2019-07-04 | C165: 2019-7 | D165: R0000042272 | E165: 佛山市储备粮管理总公司 | F165: 45396.65 | G165: 45396.65 | J165: 主营业务收入 | K165: CNY | L165: 水路运输 | M165: 否 | N165: 电汇 | O165: 3 | P165: 1 | Q165: 1 | S165: 636657738064 | T165: 中行港湾路支行 | U165: 陆倩婷 | V165: 2019-07-04T16:52:40
A166: (110)广州市生生物流有限公司 | B166: 2019-07-05 | C166: 2019-7 | D166: R0000042594 | E166: 东莞市制糖厂有限公司 | F166: 200000 | G166: 200000 | J166: 主营业务收入 | K166: CNY | L166: 水路运输 | M166: 否 | N166: 电汇 | O166: 12 | P166: 1 | Q166: 1 | S166: 636657738064 | T166: 中行港湾路支行 | U166: 陆倩婷 | V166: 2019-07-10T09:40:09
A167: (110)广州市生生物流有限公司 | B167: 2019-07-10 | C167: 2019-7 | D167: R0000042595 | E167: 广州市粮食集团有限责任公司 | F167: 507494.05 | G167: 507494.05 | J167: 主营业务收入 | K167: CNY | L167: 水路运输 | M167: 否 | N167: 电汇 | O167: 7 | P167: 1 | Q167: 1 | S167: 636657738064 | T167: 中行港湾路支行 | U167: 陆倩婷 | V167: 2019-07-10T09:41:19
A168: (110)广州市生生物流有限公司 | B168: 2019-07-10 | C168: 2019-7 | D168: R0000042672 | E168: 广州中远海运国际货运有限公司 | F168: 9013 | G168: 9013 | J168: 主营业务收入 | K168: CNY | L168: 公路运输 | M168: 否 | N168: 电汇 | O168: 4 | P168: 1 | Q168: 1 | S168: 636657738064 | T168: 中行港湾路支行 | U168: 陆倩婷 | V168: 2019-07-10T17:08:06
A169: (110)广州市生生物流有限公司 | B169: 2019-07-11 | C169: 2019-7 | D169: R0000042713 | E169: 中国人民财产保险股份有限公司广东省分公司 | F169: 10605 | J169: 主营业务收入 | K169: CNY | M169: 否 | N169: 电汇 | P169: 1 | Q169: 0 | S169: 636657738064 | T169: 中行港湾路支行 | U169: 陆倩婷 | V169: 2019-07-11T11:25:22
A170: (110)广州市生生物流有限公司 | B170: 2019-07-12 | C170: 2019-7 | D170: R0000042851 | E170: 舟山海耘船务有限公司 | F170: 369252.29 | G170: 369252.29 | J170: 主营业务收入 | K170: CNY | L170: 公路运输 | M170: 否 | N170: 电汇 | O170: 16 | P170: 1 | Q170: 1 | S170: 636657738064 | T170: 中行港湾路支行 | U170: 区贵妹 | V170: 2019-07-12T15:47:03
A171: (110)广州市生生物流有限公司 | B171: 2019-07-12 | C171: 2019-7 | D171: R0000042852 | E171: 广东双水码头有限公司 | F171: 215879.96 | G171: 215879.96 | J171: 主营业务收入 | K171: CNY | L171: 水路运输 | M171: 否 | N171: 电汇 | O171: 6 | P171: 1 | Q171: 1 | S171: 636657738064 | T171: 中行港湾路支行 | U171: 区贵妹 | V171: 2019-07-12T15:48:27
A172: (110)广州市生生物流有限公司 | B172: 2019-07-11 | C172: 2019-7 | D172: R0000042860 | E172: 肇庆市现代谷物有限公司 | F172: 112876.19 | G172: 112876.19 | J172: 主营业务收入 | K172: CNY | L172: 水路运输 | M172: 否 | N172: 电汇 | O172: 13 | P172: 1 | Q172: 1 | S172: 636657738064 | T172: 中行港湾路支行 | U172: 陆倩婷 | V172: 2019-07-12T17:03:55
A173: (110)广州市生生物流有限公司 | B173: 2019-07-17 | C173: 2019-7 | D173: R0000043213 | E173: 鞍钢联众（广州）不锈钢有限公司 | F173: 2467.36 | G173: 2467.36 | J173: 主营业务收入 | K173: CNY | L173: 公路运输 | M173: 否 | N173: 电汇 | O173: 14 | P173: 1 | Q173: 1 | S173: 636657738064 | T173: 中行港湾路支行 | U173: 陆倩婷 | V173: 2019-07-17T15:36:10
A174: (110)广州市生生物流有限公司 | B174: 2019-07-18 | C174: 2019-7 | D174: R0000043431 | E174: 深圳市福加德谷物有限公司 | F174: 44139.24 | G174: 44139.24 | J174: 主营业务收入 | K174: CNY | L174: 水路运输 | M174: 否 | N174: 电汇 | O174: 18 | P174: 1 | Q174: 1 | S174: 636657738064 | T174: 中行港湾路支行 | U174: 陆倩婷 | V174: 2019-07-18T17:28:14
A175: (110)广州市生生物流有限公司 | B175: 2019-07-18 | C175: 2019-7 | D175: R0000043432 | E175: 浙江利远海运有限公司 | F175: 56823.92 | G175: 56823.92 | J175: 主营业务收入 | K175: CNY | L175: 水路运输 | M175: 否 | N175: 电汇 | O175: 17 | P175: 1 | Q175: 1 | S175: 636657738064 | T175: 中行港湾路支行 | U175: 陆倩婷 | V175: 2019-07-18T17:28:57
A176: (110)广州市生生物流有限公司 | B176: 2019-07-18 | C176: 2019-7 | D176: R0000043433 | E176: 广州港船务有限公司 | F176: 225671.6 | G176: 225671.6 | J176: 主营业务收入 | K176: CNY | L176: 水路运输 | M176: 否 | N176: 电汇 | O176: 15 | P176: 1 | Q176: 1 | S176: 636657738064 | T176: 中行港湾路支行 | U176: 陆倩婷 | V176: 2019-07-18T17:31:29
A177: (110)广州市生生物流有限公司 | B177: 2019-07-12 | C177: 2019-7 | D177: R0000043552 | E177: 金钱（珠海）有限公司 | F177: 113562.6 | G177: 113562.6 | J177: 主营业务收入 | K177: CNY | L177: 水路运输 | M177: 否 | N177: 电汇 | O177: 20 | P177: 1 | Q177: 1 | S177: 636657738064 | T177: 中行港湾路支行 | U177: 陆倩婷 | V177: 2019-07-19T15:07:52
A178: (110)广州市生生物流有限公司 | B178: 2019-07-19 | C178: 2019-7 | D178: R0000043553 | E178: 东莞市制糖厂有限公司 | F178: 150000 | G178: 150000 | J178: 主营业务收入 | K178: CNY | L178: 水路运输 | M178: 否 | N178: 电汇 | O178: 21 | P178: 1 | Q178: 1 | S178: 636657738064 | T178: 中行港湾路支行 | U178: 陆倩婷 | V178: 2019-07-19T15:09:20
A179: (110)广州市生生物流有限公司 | B179: 2019-07-19 | C179: 2019-7 | D179: R0000043657 | E179: 东莞市制糖厂有限公司 | F179: 127629.71 | G179: 127629.71 | J179: 主营业务收入 | K179: CNY | L179: 水路运输 | M179: 否 | N179: 电汇 | O179: 22 | P179: 1 | Q179: 1 | S179: 636657738064 | T179: 中行港湾路支行 | U179: 陆倩婷 | V179: 2019-07-19T17:42:33
A180: (110)广州市生生物流有限公司 | B180: 2019-07-23 | C180: 2019-7 | D180: R0000043933 | E180: 中央储备粮江门直属库有限公司 | F180: 83700 | G180: 83700 | J180: 主营业务收入 | K180: CNY | L180: 公路运输 | M180: 否 | N180: 电汇 | O180: 25 | P180: 1 | Q180: 1 | S180: 636657738064 | T180: 中行港湾路支行 | U180: 陆倩婷 | V180: 2019-07-23T15:42:47
A181: (110)广州市生生物流有限公司 | B181: 2019-07-23 | C181: 2019-7 | D181: R0000043934 | E181: 常熟市港顺货运有限公司 | F181: 78537 | G181: 78537 | J181: 主营业务收入 | K181: CNY | L181: 水路运输 | M181: 否 | N181: 电汇 | O181: 24 | P181: 1 | Q181: 1 | S181: 636657738064 | T181: 中行港湾路支行 | U181: 陆倩婷 | V181: 2019-07-23T15:43:36
A182: (110)广州市生生物流有限公司 | B182: 2019-07-24 | C182: 2019-7 | D182: R0000044274 | E182: 东莞市海大饲料有限公司 | F182: 1255.8 | G182: 1255.8 | J182: 主营业务收入 | K182: CNY | L182: 公路运输 | M182: 否 | N182: 电汇 | O182: 30 | P182: 1 | Q182: 1 | S182: 636657738064 | T182: 中行港湾路支行 | U182: 陆倩婷 | V182: 2019-07-24T17:14:35
A183: (110)广州市生生物流有限公司 | B183: 2019-07-24 | C183: 2019-7 | D183: R0000044312 | E183: 鞍钢联众（广州）不锈钢有限公司 | F183: 151860.45 | G183: 151860.45 | J183: 主营业务收入 | K183: CNY | L183: 公路运输 | M183: 否 | N183: 电汇 | O183: 29 | P183: 1 | Q183: 1 | S183: 636657738064 | T183: 中行港湾路支行 | U183: 陆倩婷 | V183: 2019-07-25T08:58:08
A184: (110)广州市生生物流有限公司 | B184: 2019-07-26 | C184: 2019-7 | D184: R0000044642 | E184: 广东通威饲料有限公司 | F184: 29550.84 | G184: 29550.84 | J184: 主营业务收入 | K184: CNY | L184: 水路运输 | M184: 否 | N184: 电汇 | O184: 28 | P184: 1 | Q184: 1 | S184: 636657738064 | T184: 中行港湾路支行 | U184: 陆倩婷 | V184: 2019-07-26T17:04:18
A185: (110)广州市生生物流有限公司 | B185: 2019-07-29 | C185: 2019-7 | D185: R0000044681 | E185: 中钢国际货运广东有限责任公司 | F185: 18280.8 | G185: 18280.8 | J185: 主营业务收入 | K185: CNY | L185: 公路运输 | M185: 否 | N185: 电汇 | O185: 33 | P185: 1 | Q185: 1 | S185: 636657738064 | T185: 中行港湾路支行 | U185: 陆倩婷 | V185: 2019-07-29T11:39:44
A186: (110)广州市生生物流有限公司 | B186: 2019-07-30 | C186: 2019-7 | D186: R0000044865 | E186: 广州益嘉物流有限公司 | F186: 362587.87 | G186: 362587.87 | J186: 主营业务收入 | K186: CNY | L186: 水路运输 | M186: 否 | N186: 电汇 | O186: 34 | P186: 1 | Q186: 1 | S186: 636657738064 | T186: 中行港湾路支行 | U186: 陆倩婷 | V186: 2019-07-30T17:16:16
A187: (110)广州市生生物流有限公司 | B187: 2019-07-31 | C187: 2019-7 | D187: R0000045043 | E187: 广东佰利源化工有限公司 | F187: 29500 | G187: 29500 | J187: 主营业务收入 | K187: CNY | L187: 公路运输 | M187: 否 | N187: 电汇 | O187: 37 | P187: 1 | Q187: 1 | S187: 636657738064 | T187: 中行港湾路支行 | U187: 陆倩婷 | V187: 2019-07-31T17:51:07
A188: (110)广州市生生物流有限公司 | B188: 2019-07-31 | C188: 2019-7 | D188: R0000045044 | E188: 广东佰利源化工有限公司 | F188: 7250 | G188: 7250 | J188: 主营业务收入 | K188: CNY | L188: 公路运输 | M188: 否 | N188: 电汇 | O188: 35 | P188: 1 | Q188: 1 | S188: 636657738064 | T188: 中行港湾路支行 | U188: 陆倩婷 | V188: 2019-07-31T17:51:33
A189: (110)广州市生生物流有限公司 | B189: 2019-07-31 | C189: 2019-7 | D189: R0000045045 | E189: 广州泰来国际货运代理有限公司 | F189: 186097.4 | G189: 186097.4 | J189: 主营业务收入 | K189: CNY | L189: 公路运输 | M189: 否 | N189: 电汇 | O189: 36 | P189: 1 | Q189: 1 | S189: 636657738064 | T189: 中行港湾路支行 | U189: 陆倩婷 | V189: 2019-07-31T17:52:15

Sheet 付款1.1-7.31
A1: &#160; | B1: 财务No. | C1: 付款日期 | D1: 确认时间 | E1: 会计区间 | F1: 上传财务状态 | G1: 入账状态 | H1: 预付款标识 | I1: 类型 | J1: 账套号 | K1: 申请编号 | L1: 付款编号 | M1: 付款单位 | N1: 付款方式 | O1: 支票号 | P1: 结算方式 | Q1: 币种 | R1: 金额 | S1: 申请日期 | T1: 要求支付时间 | U1: 我方银行 | V1: 我方账户 | W1: 对方银行 | X1: 对方账号
B2: 1403976 | C2: 2019-07-29 | D2: 2019-07-29 | E2: 2019-7 | F2: 1 | G2: 1 | H2: 0 | I2: 预付款 | J2: (110)广州市生生物流有限公司 | K2: FK0000014143 | L2: P0000044691 | M2: 万丰国际货运代理（广州）有限公司 | N2: 转帐 | P2: 电汇 | Q2: 人民币 | R2: 7725 | S2: 2019-07-24 | T2: 2019-07-24T17:00:00 | U2: 中行港湾路支行 | V2: 636657738064 | W2: 中国银行广州黄埔支行营业部 | X2: 739357737923
B3: 1373434 | C3: 2019-07-16 | D3: 2019-07-16 | E3: 2019-7 | F3: 1 | G3: 1 | H3: 0 | I3: 预付款 | J3: (110)广州市生生物流有限公司 | K3: FK0000013794 | L3: P0000043095 | M3: 达飞轮船（中国）有限公司广州分公司 | N3: 转帐 | P3: 电汇 | Q3: 人民币 | R3: 8336.54 | S3: 2019-07-12 | T3: 2019-07-13T10:00:00 | U3: 中行港湾路支行 | V3: 636657738064 | W3: 中行广州国际电子大厦支行 | X3: 656157760270
B4: 1372332 | C4: 2019-07-16 | D4: 2019-07-16 | E4: 2019-7 | F4: 1 | G4: 1 | H4: 0 | I4: 预付款 | J4: (110)广州市生生物流有限公司 | K4: FK0000013776 | L4: P0000043098 | M4: 广州市弘运物流服务有限公司 | N4: 转帐 | P4: 电汇 | Q4: 人民币 | R4: 3200 | S4: 2019-07-12 | T4: 2019-07-12T10:30:00 | U4: 中行港湾路支行 | V4: 636657738064 | W4: 中国农业银行股份有限公司广州红山支行 | X4: 44062701040003236
B5: 1372329 | C5: 2019-07-16 | D5: 2019-07-16 | E5: 2019-7 | F5: 1 | G5: 1 | H5: 0 | I5: 预付款 | J5: (110)广州市生生物流有限公司 | K5: FK0000013775 | L5: P0000043114 | M5: 广州市弘运物流服务有限公司 | N5: 转帐 | P5: 电汇 | Q5: 人民币 | R5: 14270.78 | S5: 2019-07-12 | T5: 2019-07-12T10:30:00 | U5: 中行港湾路支行 | V5: 636657738064 | W5: 中国农业银行股份有限公司广州红山支行 | X5: 44062701040003236
B6: 1372309 | C6: 2019-07-16 | D6: 2019-07-16 | E6: 2019-7 | F6: 1 | G6: 1 | H6: 0 | I6: 预付款 | J6: (110)广州市生生物流有限公司 | K6: FK0000013774 | L6: P0000043097 | M6: 广州市弘运物流服务有限公司 | N6: 转帐 | P6: 电汇 | Q6: 人民币 | R6: 16369.84 | S6: 2019-07-12 | T6: 2019-07-12T10:15:00 | U6: 中行港湾路支行 | V6: 636657738064 | W6: 中国农业银行股份有限公司广州红山支行 | X6: 44062701040003236
B7: 1372304 | C7: 2019-07-16 | D7: 2019-07-16 | E7: 2019-7 | F7: 1 | G7: 1 | H7: 0 | I7: 预付款 | J7: (110)广州市生生物流有限公司 | K7: FK0000013773 | L7: P0000043096 | M7: 广州市弘运物流服务有限公司 | N7: 转帐 | P7: 电汇 | Q7: 人民币 | R7: 19005 | S7: 2019-07-12 | T7: 2019-07-12T09:45:00 | U7: 中行港湾路支行 | V7: 636657738064 | W7: 中国农业银行股份有限公司广州红山支行 | X7: 44062701040003236
B8: 1359360 | C8: 2019-07-23 | D8: 2019-07-23 | E8: 2019-7 | F8: 1 | G8: 1 | H8: 0 | I8: 预付款 | J8: (110)广州市生生物流有限公司 | K8: FK0000013607 | L8: P0000043932 | M8: 广州港物流有限公司 | N8: 转帐 | P8: 电汇 | Q8: 人民币 | R8: 9653.81 | S8: 2019-07-08 | T8: 2019-07-08T16:30:00 | U8: 中行港湾路支行 | V8: 636657738064 | W8: 中国建设银行股份有限公司广州开发区西区支行 | X8: 44001470901053000321
B9: 1336823 | C9: 2019-07-01 | D9: 2019-07-01 | E9: 2019-7 | F9: 1 | G9: 1 | H9: 0 | I9: 预付款 | J9: (110)广州市生生物流有限公司 | K9: FK0000013379 | L9: P0000041674 | M9: 广州誉高船舶代理有限公司 | N9: 转帐 | P9: 电汇 | Q9: 人民币 | R9: 48 | S9: 2019-07-01 | T9: 2019-07-01T16:30:00 | U9: 中行港湾路支行 | V9: 636657738064 | W9: 广州银行黄埔支行 | X9: 311809126435
B10: 1336815 | C10: 2019-07-01 | D10: 2019-07-01 | E10: 2019-7 | F10: 1 | G10: 1 | H10: 0 | I10: 预付款 | J10: (110)广州市生生物流有限公司 | K10: FK0000013378 | L10: P0000041673 | M10: 达飞轮船（中国）有限公司广州分公司 | N10: 现金 | P10: 电汇 | Q10: 人民币 | R10: 3050 | S10: 2019-07-01 | T10: 2019-07-01T16:45:00 | U10: 中行港湾路支行 | V10: 636657738064
B11: 1336787 | C11: 2019-07-01 | D11: 2019-07-01 | E11: 2019-7 | F11: 1 | G11: 1 | H11: 0 | I11: 预付款 | J11: (110)广州市生生物流有限公司 | K11: FK0000013377 | L11: P0000041672 | M11: 广州市弘运物流服务有限公司 | N11: 转帐 | P11: 电汇 | Q11: 人民币 | R11: 4000 | S11: 2019-07-01 | T11: 2019-07-01T15:45:00 | U11: 中行港湾路支行 | V11: 636657738064 | W11: 中国农业银行股份有限公司广州红山支行 | X11: 44062701040003236
B12: 1328527 | C12: 2019-06-28 | D12: 2019-06-28 | E12: 2019-6 | F12: 1 | G12: 1 | H12: 0 | I12: 预付款 | J12: (110)广州市生生物流有限公司 | K12: FK0000013313 | L12: P0000041592 | M12: 广州港股份有限公司黄埔港务分公司 | N12: 转帐 | P12: 电汇 | Q12: 人民币 | R12: 1700 | S12: 2019-06-28 | T12: 2019-06-28T16:30:00 | U12: 中行港湾路支行 | V12: 636657738064 | W12: 建设银行广州黄埔支行 | X12: 44001470901053002189
B13: 1317628 | C13: 2019-06-27 | D13: 2019-06-27 | E13: 2019-6 | F13: 1 | G13: 1 | H13: 0 | I13: 预付款 | J13: (110)广州市生生物流有限公司 | K13: FK0000013245 | L13: P0000041404 | M13: 达飞轮船（中国）有限公司广州分公司 | N13: 转帐 | P13: 电汇 | Q13: 人民币 | R13: 6672.64 | S13: 2019-06-26 | T13: 2019-06-27T11:00:00 | U13: 中行港湾路支行 | V13: 636657738064 | W13: 中行广州国际电子大厦支行 | X13: 656157760270
B14: 1305612 | C14: 2019-06-27 | D14: 2019-06-27 | E14: 2019-6 | F14: 1 | G14: 1 | H14: 0 | I14: 预付款 | J14: (110)广州市生生物流有限公司 | K14: FK0000013160 | L14: P0000041405 | M14: 广州珉丰集装箱服务有限公司 | N14: 现金 | P14: 电汇 | Q14: 人民币 | R14: 1155 | S14: 2019-06-25 | T14: 2019-06-25T10:45:00 | U14: 中行港湾路支行 | V14: 636657738064
B15: 1300683 | C15: 2019-06-27 | D15: 2019-06-27 | E15: 2019-6 | F15: 1 | G15: 1 | H15: 0 | I15: 预付款 | J15: (110)广州市生生物流有限公司 | K15: FK0000013097 | L15: P0000041406 | M15: 广州市本港集装箱工程技术服务有限公司 | N15: 现金 | P15: 电汇 | Q15: 人民币 | R15: 15070 | S15: 2019-06-21 | T15: 2019-06-24T09:30:00 | U15: 中行港湾路支行 | V15: 636657738064
B16: 1299490 | C16: 2019-06-21 | D16: 2019-06-21 | E16: 2019-6 | F16: 1 | G16: 1 | H16: 0 | I16: 预付款 | J16: (110)广州市生生物流有限公司 | K16: FK0000013082 | L16: P0000041002 | M16: 广州港股份有限公司黄埔港务分公司 | N16: 转帐 | P16: 电汇 | Q16: 人民币 | R16: 3600 | S16: 2019-06-21 | T16: 2019-06-21T15:30:00 | U16: 中行港湾路支行 | V16: 636657738064 | W16: 建设银行广州黄埔支行 | X16: 44001470901053002189
B17: 1295367 | C17: 2019-06-20 | D17: 2019-06-20 | E17: 2019-6 | F17: 1 | G17: 1 | H17: 0 | I17: 预付款 | J17: (110)广州市生生物流有限公司 | K17: FK0000013024 | L17: P0000040915 | M17: 深圳市俊励国际船舶代理有限公司广州分公司 | N17: 转帐 | P17: 电汇 | Q17: 人民币 | R17: 2660 | S17: 2019-06-20 | T17: 2019-06-20T09:30:00 | U17: 中行港湾路支行 | V17: 636657738064 | W17: 中国建设银行股份有限公司广东自贸试验区分行营业部 | X17: 44001392102052500057
B18: 1291848 | C18: 2019-06-21 | D18: 2019-06-21 | E18: 2019-6 | F18: 1 | G18: 1 | H18: 0 | I18: 预付款 | J18: (110)广州市生生物流有限公司 | K18: FK0000012975 | L18: P0000041003 | M18: 广州市黄埔天翔储运有限公司 | N18: 转帐 | P18: 电汇 | Q18: 人民币 | R18: 7199.74 | S18: 2019-06-19 | T18: 2019-06-19T11:00:00 | U18: 中行港湾路支行 | V18: 636657738064 | W18: 工行广东省广州白云路支行 | X18: 3602004409200643493
B19: 1287398 | C19: 2019-06-18 | D19: 2019-06-18 | E19: 2019-6 | F19: 1 | G19: 1 | H19: 0 | I19: 预付款 | J19: (110)广州市生生物流有限公司 | K19: FK0000012892 | L19: P0000040717 | M19: 中国人民财产保险股份有限公司武汉市分公司 | N19: 转帐 | P19: 电汇 | Q19: 人民币 | R19: 4551.6 | S19: 2019-06-17 | T19: 2019-06-17T15:45:00 | U19: 中行港湾路支行 | V19: 636657738064 | W19: 中国银行武汉晴川支行 | X19: 578162132788
B20: 1286755 | C20: 2019-06-21 | D20: 2019-06-21 | E20: 2019-6 | F20: 1 | G20: 1 | H20: 0 | I20: 预付款 | J20: (110)广州市生生物流有限公司 | K20: FK0000012881 | L20: P0000041001 | M20: 广州港股份有限公司黄埔港务分公司 | N20: 转帐 | P20: 电汇 | Q20: 人民币 | R20: 32495 | S20: 2019-06-17 | T20: 2019-06-19T15:15:00 | U20: 中行港湾路支行 | V20: 636657738064 | W20: 建设银行广州黄埔支行 | X20: 44001470901053002189
B21: 1281813 | C21: 2019-06-17 | D21: 2019-06-17 | E21: 2019-6 | F21: 1 | G21: 1 | H21: 0 | I21: 预付款 | J21: (110)广州市生生物流有限公司 | K21: FK0000012819 | L21: P0000040614 | M21: 广州港物流有限公司 | N21: 转帐 | P21: 电汇 | Q21: 人民币 | R21: 27273.8 | S21: 2019-06-13 | T21: 2019-06-13T16:00:00 | U21: 中行港湾路支行 | V21: 636657738064 | W21: 中国建设银行股份有限公司广州开发区西区支行 | X21: 44001470901053000321
B22: 1281771 | C22: 2019-06-13 | D22: 2019-06-13 | E22: 2019-6 | F22: 1 | G22: 1 | H22: 0 | I22: 预付款 | J22: (110)广州市生生物流有限公司 | K22: FK0000012817 | L22: P0000040514 | M22: 达飞轮船（中国）有限公司广州分公司 | N22: 转帐 | P22: 电汇 | Q22: 人民币 | R22: 3369.3 | S22: 2019-06-13 | T22: 2019-06-13T17:00:00 | U22: 中行港湾路支行 | V22: 636657738064 | W22: 中行广州国际电子大厦支行 | X22: 656157760270
B23: 1278953 | C23: 2019-06-13 | D23: 2019-06-13 | E23: 2019-6 | F23: 1 | G23: 1 | H23: 0 | I23: 预付款 | J23: (110)广州市生生物流有限公司 | K23: FK0000012791 | L23: P0000040515 | M23: 广州港股份有限公司黄埔港务分公司 | N23: 转帐 | P23: 电汇 | Q23: 人民币 | R23: 35800 | S23: 2019-06-13 | T23: 2019-06-13T13:15:00 | U23: 中行港湾路支行 | V23: 636657738064 | W23: 建设银行广州黄埔支行 | X23: 44001470901053002189
B24: 1278926 | C24: 2019-06-13 | D24: 2019-06-13 | E24: 2019-6 | F24: 1 | G24: 1 | H24: 0 | I24: 预付款 | J24: (110)广州市生生物流有限公司 | K24: FK0000012790 | L24: P0000040516 | M24: 广州港股份有限公司黄埔港务分公司 | N24: 转帐 | P24: 电汇 | Q24: 人民币 | R24: 95501 | S24: 2019-06-13 | T24: 2019-06-13T11:15:00 | U24: 中行港湾路支行 | V24: 636657738064 | W24: 建设银行广州黄埔支行 | X24: 44001470901053002189
B25: 1278830 | C25: 2019-06-13 | D25: 2019-06-13 | E25: 2019-6 | F25: 1 | G25: 1 | H25: 0 | I25: 预付款 | J25: (110)广州市生生物流有限公司 | K25: FK0000012786 | L25: P0000040517 | M25: 深圳市俊励国际船舶代理有限公司广州分公司 | N25: 转帐 | P25: 电汇 | Q25: 人民币 | R25: 2660 | S25: 2019-06-13 | T25: 2019-06-13T09:30:00 | U25: 中行港湾路支行 | V25: 636657738064 | W25: 中国建设银行股份有限公司广东自贸试验区分行营业部 | X25: 44001392102052500057
B26: 1272331 | C26: 2019-06-11 | D26: 2019-06-11 | E26: 2019-6 | F26: 1 | G26: 1 | H26: 0 | I26: 预付款 | J26: (110)广州市生生物流有限公司 | K26: FK0000012682 | L26: P0000040323 | M26: 广东南洋国际物流有限公司 | N26: 转帐 | P26: 电汇 | Q26: 人民币 | R26: 3248 | S26: 2019-06-10 | T26: 2019-06-11T09:45:00 | U26: 中行港湾路支行 | V26: 636657738064 | W26: 中国银行广州市天河支行 | X26: 632757742383
B27: 1269803 | C27: 2019-06-12 | D27: 2019-06-12 | E27: 2019-6 | F27: 1 | G27: 1 | H27: 0 | I27: 预付款 | J27: (110)广州市生生物流有限公司 | K27: FK0000012639 | L27: P0000040386 | M27: 广州中集集装箱维修服务有限公司 | N27: 现金 | P27: 电汇 | Q27: 人民币 | R27: 4700 | S27: 2019-06-10 | T27: 2019-06-10T15:45:00 | U27: 中行港湾路支行 | V27: 636657738064
B28: 1265701 | C28: 2019-06-10 | D28: 2019-06-10 | E28: 2019-6 | F28: 1 | G28: 1 | H28: 0 | I28: 预付款 | J28: (110)广州市生生物流有限公司 | K28: FK0000012594 | L28: P0000039952 | M28: 广州市高畅船务代理有限公司 | N28: 转帐 | P28: 电汇 | Q28: 人民币 | R28: 7136.24 | S28: 2019-06-06 | T28: 2019-06-06T14:15:00 | U28: 中行港湾路支行 | V28: 636657738064 | W28: 中国工商银行广州金港支行 | X28: 3602014609200045943
B29: 1265261 | C29: 2019-06-12 | D29: 2019-06-12 | E29: 2019-6 | F29: 1 | G29: 1 | H29: 0 | I29: 预付款 | J29: (110)广州市生生物流有限公司 | K29: FK0000012588 | L29: P0000040388 | M29: 广州珉丰集装箱服务有限公司 | N29: 现金 | P29: 电汇 | Q29: 人民币 | R29: 735 | S29: 2019-06-06 | T29: 2019-06-06T15:45:00 | U29: 中行港湾路支行 | V29: 636657738064
B30: 1265257 | C30: 2019-06-12 | D30: 2019-06-12 | E30: 2019-6 | F30: 1 | G30: 1 | H30: 0 | I30: 预付款 | J30: (110)广州市生生物流有限公司 | K30: FK0000012587 | L30: P0000040388 | M30: 广州珉丰集装箱服务有限公司 | N30: 现金 | P30: 电汇 | Q30: 人民币 | R30: 420 | S30: 2019-06-06 | T30: 2019-06-06T13:45:00 | U30: 中行港湾路支行 | V30: 636657738064
B31: 1264454 | C31: 2019-06-11 | D31: 2019-06-11 | E31: 2019-6 | F31: 1 | G31: 1 | H31: 0 | I31: 预付款 | J31: (110)广州市生生物流有限公司 | K31: FK0000012569 | L31: P0000040324 | M31: 广州誉高船舶代理有限公司 | N31: 转帐 | P31: 电汇 | Q31: 人民币 | R31: 48 | S31: 2019-06-06 | T31: 2019-06-06T14:00:00 | U31: 中行港湾路支行 | V31: 636657738064 | W31: 广州银行黄埔支行 | X31: 311809126435
B32: 1264446 | C32: 2019-06-12 | D32: 2019-06-12 | E32: 2019-6 | F32: 1 | G32: 1 | H32: 0 | I32: 预付款 | J32: (110)广州市生生物流有限公司 | K32: FK0000012567 | L32: P0000040387 | M32: 达飞轮船（中国）有限公司广州分公司 | N32: 现金 | P32: 电汇 | Q32: 人民币 | R32: 3050 | S32: 2019-06-06 | T32: 2019-06-06T14:30:00 | U32: 中行港湾路支行 | V32: 636657738064
B33: 1236720 | C33: 2019-05-30 | D33: 2019-05-30 | E33: 2019-5 | F33: 1 | G33: 1 | H33: 0 | I33: 预付款 | J33: (110)广州市生生物流有限公司 | K33: FK0000012364 | L33: P0000039209 | M33: 广东中外运船务有限公司 | N33: 转帐 | P33: 电汇 | Q33: 人民币 | R33: 3059 | S33: 2019-05-30 | T33: 2019-05-30T11:00:00 | U33: 中行港湾路支行 | V33: 636657738064 | W33: 中国银行广州黄埔支行营业部 | X33: 696457753140
B34: 1236714 | C34: 2019-05-30 | D34: 2019-05-30 | E34: 2019-5 | F34: 1 | G34: 1 | H34: 0 | I34: 预付款 | J34: (110)广州市生生物流有限公司 | K34: FK0000012362 | L34: P0000039208 | M34: 中国广州外轮代理有限公司 | N34: 转帐 | P34: 电汇 | Q34: 人民币 | R34: 500 | S34: 2019-05-30 | T34: 2019-05-30T10:45:00 | U34: 中行港湾路支行 | V34: 636657738064 | W34: 中国银行广州黄埔支行营业部 | X34: 699057753131
B35: 1209006 | C35: 2019-05-24 | D35: 2019-05-24 | E35: 2019-5 | F35: 1 | G35: 1 | H35: 0 | I35: 预付款 | J35: (110)广州市生生物流有限公司 | K35: FK0000012197 | L35: P0000039007 | M35: 广东安通国际船舶代理有限公司 | N35: 转帐 | P35: 电汇 | Q35: 人民币 | R35: 3044.66 | S35: 2019-05-23 | T35: 2019-05-24T10:00:00 | U35: 中行港湾路支行 | V35: 636657738064 | W35: 中国工商银行广州金港支行 | X35: 3602014619200066988
B36: 1192215 | C36: 2019-05-22 | D36: 2019-05-22 | E36: 2019-5 | F36: 1 | G36: 1 | H36: 0 | I36: 预付款 | J36: (110)广州市生生物流有限公司 | K36: FK0000012102 | L36: P0000038895 | M36: 达飞轮船（中国）有限公司广州分公司 | N36: 现金 | P36: 电汇 | Q36: 人民币 | R36: 2800 | S36: 2019-05-21 | T36: 2019-05-22T16:30:00 | U36: 中行港湾路支行 | V36: 636657738064
B37: 1192210 | C37: 2019-05-22 | D37: 2019-05-22 | E37: 2019-5 | F37: 1 | G37: 1 | H37: 0 | I37: 预付款 | J37: (110)广州市生生物流有限公司 | K37: FK0000012101 | L37: P0000038896 | M37: 广东南洋国际物流有限公司 | N37: 转帐 | P37: 电汇 | Q37: 人民币 | R37: 91 | S37: 2019-05-21 | T37: 2019-05-21T14:45:00 | U37: 中行港湾路支行 | V37: 636657738064 | W37: 中国银行广州市天河支行 | X37: 632757742383
B38: 1186328 | C38: 2019-05-20 | D38: 2019-05-20 | E38: 2019-5 | F38: 1 | G38: 1 | H38: 0 | I38: 预付款 | J38: (110)广州市生生物流有限公司 | K38: FK0000012058 | L38: P0000038760 | M38: 中国广州外轮代理公司南沙有限公司 | N38: 转帐 | P38: 电汇 | Q38: 人民币 | R38: 4132 | S38: 2019-05-20 | T38: 2019-05-20T10:30:00 | U38: 中行港湾路支行 | V38: 636657738064 | W38: 中国银行广州南沙支行营业部 | X38: 640557745958
B39: 1186317 | C39: 2019-05-20 | D39: 2019-05-20 | E39: 2019-5 | F39: 1 | G39: 1 | H39: 0 | I39: 预付款 | J39: (110)广州市生生物流有限公司 | K39: FK0000012055 | L39: P0000038761 | M39: 深圳市俊励国际船舶代理有限公司广州分公司 | N39: 转帐 | P39: 电汇 | Q39: 人民币 | R39: 4132 | S39: 2019-05-20 | T39: 2019-05-20T10:30:00 | U39: 中行港湾路支行 | V39: 636657738064 | W39: 中国建设银行股份有限公司广东自贸试验区分行营业部 | X39: 44001392102052500057
B40: 1169004 | C40: 2019-05-22 | D40: 2019-05-22 | E40: 2019-5 | F40: 1 | G40: 1 | H40: 0 | I40: 预付款 | J40: (110)广州市生生物流有限公司 | K40: FK0000011888 | L40: P0000038897 | M40: 广州港物流有限公司 | N40: 转帐 | P40: 电汇 | Q40: 人民币 | R40: 23971.57 | S40: 2019-05-14 | T40: 2019-05-14T17:00:00 | U40: 中行港湾路支行 | V40: 636657738064 | W40: 中国建设银行股份有限公司广州开发区西区支行 | X40: 44001470901053000321
B41: 1143217 | C41: 2019-05-09 | D41: 2019-05-05 | E41: 2019-5 | F41: 1 | G41: 1 | H41: 0 | I41: 预付款 | J41: (110)广州市生生物流有限公司 | K41: FK0000011572 | L41: P0000039321 | M41: 广州誉高船舶代理有限公司 | N41: 支票 | O41: 35196043 | P41: 转账支票 | Q41: 人民币 | R41: 250000 | S41: 2019-05-05 | T41: 2019-05-05T14:00:00 | U41: 中行港湾路支行 | V41: 636657738064
B42: 1051839 | C42: 2019-04-12 | D42: 2019-04-12 | E42: 2019-4 | F42: 1 | G42: 1 | H42: 0 | I42: 预付款 | J42: (110)广州市生生物流有限公司 | K42: FK0000010955 | L42: P0000036842 | M42: 广州港股份有限公司黄埔港务分公司 | N42: 转帐 | P42: 电汇 | Q42: 人民币 | R42: 62000 | S42: 2019-04-12 | T42: 2019-04-12T16:15:00 | U42: 中行港湾路支行 | V42: 636657738064 | W42: 建设银行广州黄埔支行 | X42: 44001470901053002189
B43: 1044250 | C43: 2019-04-12 | D43: 2019-04-12 | E43: 2019-4 | F43: 1 | G43: 1 | H43: 0 | I43: 预付款 | J43: (110)广州市生生物流有限公司 | K43: FK0000010853 | L43: P0000036840 | M43: 广州市本港集装箱工程技术服务有限公司 | N43: 现金 | P43: 电汇 | Q43: 人民币 | R43: 2085 | S43: 2019-04-10 | T43: 2019-04-10T10:00:00 | U43: 中行港湾路支行 | V43: 636657738064
B44: 1042085 | C44: 2019-04-12 | D44: 2019-04-12 | E44: 2019-4 | F44: 1 | G44: 1 | H44: 0 | I44: 预付款 | J44: (110)广州市生生物流有限公司 | K44: FK0000010821 | L44: P0000036844 | M44: 广州港物流有限公司 | N44: 转帐 | P44: 电汇 | Q44: 人民币 | R44: 7909.82 | S44: 2019-04-09 | T44: 2019-04-09T16:30:00 | U44: 中行港湾路支行 | V44: 636657738064 | W44: 中国建设银行股份有限公司广州开发区西区支行 | X44: 44001470901053000321
B45: 1010025 | C45: 2019-03-29 | D45: 2019-03-29 | E45: 2019-3 | F45: 1 | G45: 1 | H45: 0 | I45: 预付款 | J45: (110)广州市生生物流有限公司 | K45: FK0000010558 | L45: P0000036283 | M45: 广州港股份有限公司黄埔港务分公司 | N45: 转帐 | P45: 电汇 | Q45: 人民币 | R45: 900 | S45: 2019-03-29 | T45: 2019-03-29T16:30:00 | U45: 中行港湾路支行 | V45: 636657738064 | W45: 建设银行广州黄埔支行 | X45: 44001470901053002189
B46: 1008449 | C46: 2019-03-29 | D46: 2019-03-29 | E46: 2019-3 | F46: 1 | G46: 1 | H46: 0 | I46: 预付款 | J46: (110)广州市生生物流有限公司 | K46: FK0000010542 | L46: P0000036277 | M46: 广州港股份有限公司黄埔港务分公司 | N46: 转帐 | P46: 电汇 | Q46: 人民币 | R46: 58900 | S46: 2019-03-29 | T46: 2019-03-29T16:00:00 | U46: 中行港湾路支行 | V46: 636657738064 | W46: 建设银行广州黄埔支行 | X46: 44001470901053002189
B47: 1004266 | C47: 2019-03-28 | D47: 2019-03-28 | E47: 2019-3 | F47: 1 | G47: 1 | H47: 0 | I47: 预付款 | J47: (110)广州市生生物流有限公司 | K47: FK0000010506 | L47: P0000036168 | M47: 广州中远海运国际货运有限公司 | N47: 转帐 | P47: 电汇 | Q47: 人民币 | R47: 9013 | S47: 2019-03-28 | T47: 2019-03-28T12:00:00 | U47: 中行港湾路支行 | V47: 636657738064 | W47: 中国银行广州港湾路支行 | X47: 723757753198
B48: 999889 | C48: 2019-03-28 | D48: 2019-03-28 | E48: 2019-3 | F48: 1 | G48: 1 | H48: 0 | I48: 预付款 | J48: (110)广州市生生物流有限公司 | K48: FK0000010467 | L48: P0000036167 | M48: 广州市本港集装箱工程技术服务有限公司 | N48: 现金 | P48: 电汇 | Q48: 人民币 | R48: 35660 | S48: 2019-03-27 | T48: 2019-03-27T11:30:00 | U48: 中行港湾路支行 | V48: 636657738064
B49: 999147 | C49: 2019-04-01 | D49: 2019-04-01 | E49: 2019-4 | F49: 1 | G49: 1 | H49: 0 | I49: 预付款 | J49: (110)广州市生生物流有限公司 | K49: FK0000010462 | L49: P0000036346 | M49: 广州港股份有限公司新港港务分公司 | N49: 转帐 | P49: 电汇 | Q49: 人民币 | R49: 113900 | S49: 2019-03-27 | T49: 2019-03-27T15:30:00 | U49: 中行港湾路支行 | V49: 636657738064 | W49: 建设银行广州开发区西区支行 | X49: 44001471001053005599
B50: 988781 | C50: 2019-03-25 | D50: 2019-03-25 | E50: 2019-3 | F50: 1 | G50: 1 | H50: 0 | I50: 预付款 | J50: (110)广州市生生物流有限公司 | K50: FK0000010364 | L50: P0000035706 | M50: 赤峰佰惠生仓储物流有限公司 | N50: 转帐 | P50: 电汇 | Q50: 人民币 | R50: 150000 | S50: 2019-03-23 | T50: 2019-03-25T09:45:00 | U50: 中行港湾路支行 | V50: 636657738064 | W50: 中国农业发展银行林西县支行 | X50: 20315042400100000210811
B51: 977227 | C51: 2019-03-20 | D51: 2019-03-20 | E51: 2019-3 | F51: 1 | G51: 1 | H51: 0 | I51: 预付款 | J51: (110)广州市生生物流有限公司 | K51: FK0000010255 | L51: P0000035220 | M51: 广州市本港集装箱工程技术服务有限公司 | N51: 现金 | P51: 电汇 | Q51: 人民币 | R51: 10560 | S51: 2019-03-20 | T51: 2019-03-20T14:15:00 | U51: 中行港湾路支行 | V51: 636657738064
B52: 977223 | C52: 2019-03-20 | D52: 2019-03-20 | E52: 2019-3 | F52: 1 | G52: 1 | H52: 0 | I52: 预付款 | J52: (110)广州市生生物流有限公司 | K52: FK0000010254 | L52: P0000035221 | M52: 广州市本港集装箱工程技术服务有限公司 | N52: 现金 | P52: 电汇 | Q52: 人民币 | R52: 11035 | S52: 2019-03-20 | T52: 2019-03-20T11:15:00 | U52: 中行港湾路支行 | V52: 636657738064
B53: 976964 | C53: 2019-03-20 | D53: 2019-03-20 | E53: 2019-3 | F53: 1 | G53: 1 | H53: 0 | I53: 预付款 | J53: (110)广州市生生物流有限公司 | K53: FK0000010246 | L53: P0000035057 | M53: 广东南洋国际物流有限公司 | N53: 转帐 | P53: 电汇 | Q53: 人民币 | R53: 1158 | S53: 2019-03-20 | T53: 2019-03-20T10:00:00 | U53: 中行港湾路支行 | V53: 636657738064 | W53: 中国银行广州市天河支行 | X53: 632757742383
B54: 975021 | C54: 2019-03-19 | D54: 2019-03-19 | E54: 2019-3 | F54: 1 | G54: 1 | H54: 0 | I54: 预付款 | J54: (110)广州市生生物流有限公司 | K54: FK0000010206 | L54: P0000034925 | M54: 广东南洋国际物流有限公司 | N54: 转帐 | P54: 电汇 | Q54: 人民币 | R54: 4962 | S54: 2019-03-19 | T54: 2019-03-19T11:30:00 | U54: 中行港湾路支行 | V54: 636657738064 | W54: 中国银行广州市天河支行 | X54: 632757742383
B55: 960410 | C55: 2019-03-13 | D55: 2019-03-13 | E55: 2019-3 | F55: 1 | G55: 1 | H55: 0 | I55: 预付款 | J55: (110)广州市生生物流有限公司 | K55: FK0000010022 | L55: P0000034279 | M55: 广州港物流有限公司 | N55: 转帐 | P55: 电汇 | Q55: 人民币 | R55: 5960.18 | S55: 2019-03-12 | T55: 2019-03-13T16:00:00 | U55: 中行港湾路支行 | V55: 636657738064 | W55: 中国建设银行股份有限公司广州开发区西区支行 | X55: 44001470901053000321
B56: 955521 | C56: 2019-03-08 | D56: 2019-03-08 | E56: 2019-3 | F56: 1 | G56: 1 | H56: 0 | I56: 预付款 | J56: (110)广州市生生物流有限公司 | K56: FK0000009956 | L56: P0000033777 | M56: 广州珉丰集装箱服务有限公司 | N56: 转帐 | P56: 电汇 | Q56: 人民币 | R56: 12625 | S56: 2019-03-08 | T56: 2019-03-08T16:00:00 | U56: 中行港湾路支行 | V56: 636657738064 | W56: 中国银行股份有限公司广州开发区分行 | X56: 739358455019
B57: 955505 | C57: 2019-03-08 | D57: 2019-03-08 | E57: 2019-3 | F57: 1 | G57: 1 | H57: 0 | I57: 预付款 | J57: (110)广州市生生物流有限公司 | K57: FK0000009955 | L57: P0000033778 | M57: 广州珉丰集装箱服务有限公司 | N57: 转帐 | P57: 电汇 | Q57: 人民币 | R57: 28047.5 | S57: 2019-03-08 | T57: 2019-03-08T15:00:00 | U57: 中行港湾路支行 | V57: 636657738064 | W57: 中国银行股份有限公司广州开发区分行 | X57: 739358455019
B58: 940560 | C58: 2019-03-05 | D58: 2019-03-05 | E58: 2019-3 | F58: 1 | G58: 1 | H58: 0 | I58: 预付款 | J58: (110)广州市生生物流有限公司 | K58: FK0000009789 | L58: P0000033246 | M58: 广州中阳国际货运代理有限公司 | N58: 转帐 | P58: 电汇 | Q58: 人民币 | R58: 4000 | S58: 2019-03-04 | T58: 2019-03-04T16:00:00 | U58: 中行港湾路支行 | V58: 636657738064 | W58: 中国银行广州东山支行 | X58: 663957753840
B59: 931536 | C59: 2019-02-28 | D59: 2019-02-28 | E59: 2019-2 | F59: 1 | G59: 1 | H59: 0 | I59: 预付款 | J59: (110)广州市生生物流有限公司 | K59: FK0000009690 | L59: P0000032737 | M59: 广州港股份有限公司黄埔港务分公司 | N59: 转帐 | P59: 电汇 | Q59: 人民币 | R59: 700 | S59: 2019-02-28 | T59: 2019-02-28T16:45:00 | U59: 中行港湾路支行 | V59: 636657738064 | W59: 建设银行广州黄埔支行 | X59: 44001470901053002189
B60: 931530 | C60: 2019-03-08 | D60: 2019-03-08 | E60: 2019-3 | F60: 1 | G60: 1 | H60: 0 | I60: 预付款 | J60: (110)广州市生生物流有限公司 | K60: FK0000009689 | L60: P0000033779 | M60: 广州港股份有限公司黄埔港务分公司 | N60: 转帐 | P60: 电汇 | Q60: 人民币 | R60: 55800 | S60: 2019-02-28 | T60: 2019-03-08T14:30:00 | U60: 中行港湾路支行 | V60: 636657738064 | W60: 建设银行广州黄埔支行 | X60: 44001470901053002189
B61: 925614 | C61: 2019-02-26 | D61: 2019-02-26 | E61: 2019-2 | F61: 1 | G61: 1 | H61: 0 | I61: 预付款 | J61: (110)广州市生生物流有限公司 | K61: FK0000009625 | L61: P0000032370 | M61: 广州港股份有限公司黄埔港务分公司 | N61: 转帐 | P61: 电汇 | Q61: 人民币 | R61: 68000 | S61: 2019-02-26 | T61: 2019-02-26T16:45:00 | U61: 中行港湾路支行 | V61: 636657738064 | W61: 建设银行广州黄埔支行 | X61: 44001470901053002189
B62: 922162 | C62: 2019-02-26 | D62: 2019-02-26 | E62: 2019-2 | F62: 1 | G62: 1 | H62: 0 | I62: 预付款 | J62: (110)广州市生生物流有限公司 | K62: FK0000009546 | L62: P0000032373 | M62: 广州港股份有限公司黄埔港务分公司 | N62: 转帐 | P62: 电汇 | Q62: 人民币 | R62: 30500 | S62: 2019-02-24 | T62: 2019-02-26T16:30:00 | U62: 中行港湾路支行 | V62: 636657738064 | W62: 建设银行广州黄埔支行 | X62: 44001470901053002189
B63: 919381 | C63: 2019-02-26 | D63: 2019-02-26 | E63: 2019-2 | F63: 1 | G63: 1 | H63: 0 | I63: 预付款 | J63: (110)广州市生生物流有限公司 | K63: FK0000009508 | L63: P0000032372 | M63: 广州港股份有限公司黄埔港务分公司 | N63: 转帐 | P63: 电汇 | Q63: 人民币 | R63: 3370 | S63: 2019-02-22 | T63: 2019-02-26T14:15:00 | U63: 中行港湾路支行 | V63: 636657738064 | W63: 建设银行广州黄埔支行 | X63: 44001470901053002189
B64: 910890 | C64: 2019-02-19 | D64: 2019-02-19 | E64: 2019-2 | F64: 1 | G64: 1 | H64: 0 | I64: 预付款 | J64: (110)广州市生生物流有限公司 | K64: FK0000009410 | L64: P0000031669 | M64: 广州市高畅船务代理有限公司 | N64: 转帐 | P64: 电汇 | Q64: 人民币 | R64: 1143.08 | S64: 2019-02-19 | T64: 2019-02-19T15:00:00 | U64: 中行港湾路支行 | V64: 636657738064 | W64: 中国工商银行广州金港支行 | X64: 3602014609200045943
B65: 906759 | C65: 2019-04-01 | D65: 2019-04-01 | E65: 2019-4 | F65: 1 | G65: 1 | H65: 0 | I65: 预付款 | J65: (110)广州市生生物流有限公司 | K65: FK0000009342 | L65: P0000036347 | M65: 广州港股份有限公司新港港务分公司 | N65: 转帐 | P65: 电汇 | Q65: 人民币 | R65: 106900 | S65: 2019-02-18 | T65: 2019-02-18T09:30:00 | U65: 中行港湾路支行 | V65: 636657738064 | W65: 建设银行广州开发区西区支行 | X65: 44001471001053005599
B66: 901299 | C66: 2019-02-27 | D66: 2019-02-27 | E66: 2019-2 | F66: 1 | G66: 1 | H66: 0 | I66: 预付款 | J66: (110)广州市生生物流有限公司 | K66: FK0000009271 | L66: P0000032577 | M66: 广州港物流有限公司 | N66: 转帐 | P66: 电汇 | Q66: 人民币 | R66: 45798.9 | S66: 2019-02-14 | T66: 2019-02-15T15:00:00 | U66: 中行港湾路支行 | V66: 636657738064 | W66: 中国建设银行股份有限公司广州开发区西区支行 | X66: 44001470901053000321
B67: 888693 | C67: 2019-02-18 | D67: 2019-02-18 | E67: 2019-2 | F67: 1 | G67: 1 | H67: 0 | I67: 预付款 | J67: (110)广州市生生物流有限公司 | K67: FK0000009140 | L67: P0000031456 | M67: 广州港股份有限公司黄埔港务分公司 | N67: 转帐 | P67: 电汇 | Q67: 人民币 | R67: 113900 | S67: 2019-02-01 | T67: 2019-02-14T09:15:00 | U67: 中行港湾路支行 | V67: 636657738064 | W67: 建设银行广州黄埔支行 | X67: 44001470901053002189
B68: 888683 | C68: 2019-02-18 | D68: 2019-02-18 | E68: 2019-2 | F68: 1 | G68: 1 | H68: 0 | I68: 预付款 | J68: (110)广州市生生物流有限公司 | K68: FK0000009139 | L68: P0000031420 | M68: 广州港股份有限公司黄埔港务分公司 | N68: 转帐 | P68: 电汇 | Q68: 人民币 | R68: 9400 | S68: 2019-02-01 | T68: 2019-02-15T08:45:00 | U68: 中行港湾路支行 | V68: 636657738064 | W68: 建设银行广州黄埔支行 | X68: 44001470901053002189
B69: 886634 | C69: 2019-02-01 | D69: 2019-02-01 | E69: 2019-2 | F69: 1 | G69: 1 | H69: 0 | I69: 预付款 | J69: (110)广州市生生物流有限公司 | K69: FK0000009122 | L69: P0000030273 | M69: 广州珉丰集装箱服务有限公司 | N69: 转帐 | P69: 电汇 | Q69: 人民币 | R69: 21486.55 | S69: 2019-01-31 | T69: 2019-02-01T09:00:00 | U69: 中行港湾路支行 | V69: 636657738064 | W69: 中国银行股份有限公司广州开发区分行 | X69: 739358455019
B70: 885677 | C70: 2019-02-01 | D70: 2019-02-01 | E70: 2019-2 | F70: 1 | G70: 1 | H70: 0 | I70: 预付款 | J70: (110)广州市生生物流有限公司 | K70: FK0000009103 | L70: P0000030272 | M70: 广州市弘运物流服务有限公司 | N70: 转帐 | P70: 电汇 | Q70: 人民币 | R70: 9755.5 | S70: 2019-01-31 | T70: 2019-01-31T14:00:00 | U70: 中行港湾路支行 | V70: 636657738064 | W70: 中国农业银行股份有限公司广州红山支行 | X70: 44062701040003236
B71: 884791 | C71: 2019-01-31 | D71: 2019-01-31 | E71: 2019-1 | F71: 1 | G71: 1 | H71: 0 | I71: 预付款 | J71: (110)广州市生生物流有限公司 | K71: FK0000009080 | L71: P0000030110 | M71: 广东安通国际船舶代理有限公司 | N71: 转帐 | P71: 电汇 | Q71: 人民币 | R71: 10127.48 | S71: 2019-01-31 | T71: 2019-01-31T11:00:00 | U71: 中行港湾路支行 | V71: 636657738064 | W71: 中国工商银行广州金港支行 | X71: 3602014619200066988
B72: 881087 | C72: 2019-01-31 | D72: 2019-01-31 | E72: 2019-1 | F72: 1 | G72: 1 | H72: 0 | I72: 预付款 | J72: (110)广州市生生物流有限公司 | K72: FK0000009056 | L72: P0000030111 | M72: 广东南洋国际物流有限公司 | N72: 转帐 | P72: 电汇 | Q72: 人民币 | R72: 814 | S72: 2019-01-30 | T72: 2019-01-30T16:00:00 | U72: 中行港湾路支行 | V72: 636657738064 | W72: 中国银行广州市天河支行 | X72: 632757742383
B73: 866234 | C73: 2019-01-24 | D73: 2019-01-24 | E73: 2019-1 | F73: 1 | G73: 1 | H73: 0 | I73: 预付款 | J73: (110)广州市生生物流有限公司 | K73: FK0000008893 | L73: P0000031321 | M73: 广州港股份有限公司新港港务分公司 | N73: 转帐 | P73: 电汇 | Q73: 人民币 | R73: 3500 | S73: 2019-01-24 | T73: 2019-01-24T11:30:00 | U73: 中行港湾路支行 | V73: 636657738064 | W73: 建设银行广州开发区西区支行 | X73: 44001471001053005599
B74: 862959 | C74: 2019-01-23 | D74: 2019-01-23 | E74: 2019-1 | F74: 1 | G74: 1 | H74: 0 | I74: 预付款 | J74: (110)广州市生生物流有限公司 | K74: FK0000008863 | L74: P0000029192 | M74: 中国广州外轮代理有限公司 | N74: 转帐 | P74: 电汇 | Q74: 人民币 | R74: 8000 | S74: 2019-01-23 | T74: 2019-01-23T15:00:00 | U74: 中行港湾路支行 | V74: 636657738064 | W74: 中国银行广州黄埔支行营业部 | X74: 699057753131
B75: 859774 | C75: 2019-01-23 | D75: 2019-01-23 | E75: 2019-1 | F75: 1 | G75: 1 | H75: 0 | I75: 预付款 | J75: (110)广州市生生物流有限公司 | K75: FK0000008833 | L75: P0000029170 | M75: 中国广州外轮代理有限公司 | N75: 转帐 | P75: 电汇 | Q75: 人民币 | R75: 500 | S75: 2019-01-22 | T75: 2019-01-22T16:00:00 | U75: 中行港湾路支行 | V75: 636657738064 | W75: 中国银行广州黄埔支行营业部 | X75: 699057753131
B76: 858469 | C76: 2019-01-22 | D76: 2019-01-22 | E76: 2019-1 | F76: 1 | G76: 1 | H76: 0 | I76: 预付款 | J76: (110)广州市生生物流有限公司 | K76: FK0000008813 | L76: P0000029049 | M76: 广东中外运船务有限公司 | N76: 转帐 | P76: 电汇 | Q76: 人民币 | R76: 14332 | S76: 2019-01-22 | T76: 2019-01-22T11:00:00 | U76: 中行港湾路支行 | V76: 636657738064 | W76: 中国银行广州黄埔支行营业部 | X76: 696457753140
B77: 858339 | C77: 2019-01-22 | D77: 2019-01-22 | E77: 2019-1 | F77: 1 | G77: 1 | H77: 0 | I77: 预付款 | J77: (110)广州市生生物流有限公司 | K77: FK0000008810 | L77: P0000029054 | M77: 广东安通国际船舶代理有限公司 | N77: 转帐 | P77: 电汇 | Q77: 人民币 | R77: 12531.16 | S77: 2019-01-22 | T77: 2019-01-22T11:00:00 | U77: 中行港湾路支行 | V77: 636657738064 | W77: 中国工商银行广州金港支行 | X77: 3602014619200066988
B78: 854636 | C78: 2019-01-22 | D78: 2019-01-22 | E78: 2019-1 | F78: 1 | G78: 1 | H78: 0 | I78: 预付款 | J78: (110)广州市生生物流有限公司 | K78: FK0000008779 | L78: P0000029052 | M78: 广东中外运船务有限公司 | N78: 转帐 | P78: 电汇 | Q78: 人民币 | R78: 1623 | S78: 2019-01-21 | T78: 2019-01-22T09:00:00 | U78: 中行港湾路支行 | V78: 636657738064 | W78: 中国银行广州黄埔支行营业部 | X78: 696457753140
B79: 836521 | C79: 2019-01-17 | D79: 2019-01-17 | E79: 2019-1 | F79: 1 | G79: 1 | H79: 0 | I79: 预付款 | J79: (110)广州市生生物流有限公司 | K79: FK0000008676 | L79: P0000028570 | M79: 广州港股份有限公司新港港务分公司 | N79: 转帐 | P79: 电汇 | Q79: 人民币 | R79: 8518 | S79: 2019-01-16 | T79: 2019-01-17T16:45:00 | U79: 中行港湾路支行 | V79: 636657738064 | W79: 建设银行广州开发区西区支行 | X79: 44001471001053005599
B80: 835470 | C80: 2019-01-18 | D80: 2019-01-18 | E80: 2019-1 | F80: 1 | G80: 1 | H80: 0 | I80: 预付款 | J80: (110)广州市生生物流有限公司 | K80: FK0000008660 | L80: P0000028782 | M80: 世天威物流（广州）有限公司 | N80: 转帐 | P80: 电汇 | Q80: 人民币 | R80: 361.33 | S80: 2019-01-16 | T80: 2019-01-17T09:15:00 | U80: 中行港湾路支行 | V80: 636657738064 | W80: 中国工商银行正佳支行 | X80: 3602075109100155664
B81: 827067 | C81: 2019-01-11 | D81: 2019-01-11 | E81: 2019-1 | F81: 1 | G81: 1 | H81: 0 | I81: 预付款 | J81: (110)广州市生生物流有限公司 | K81: FK0000008515 | L81: P0000028127 | M81: 广州港股份有限公司黄埔港务分公司 | N81: 转帐 | P81: 电汇 | Q81: 人民币 | R81: 5000 | S81: 2019-01-11 | T81: 2019-01-11T16:00:00 | U81: 中行港湾路支行 | V81: 636657738064 | W81: 建设银行广州黄埔支行 | X81: 44001470901053002189
B82: 826687 | C82: 2019-01-11 | D82: 2019-01-11 | E82: 2019-1 | F82: 1 | G82: 1 | H82: 0 | I82: 预付款 | J82: (110)广州市生生物流有限公司 | K82: FK0000008499 | L82: P0000028125 | M82: 广州港股份有限公司黄埔港务分公司 | N82: 转帐 | P82: 电汇 | Q82: 人民币 | R82: 43100 | S82: 2019-01-11 | T82: 2019-01-11T11:45:00 | U82: 中行港湾路支行 | V82: 636657738064 | W82: 建设银行广州黄埔支行 | X82: 44001470901053002189
B83: 824551 | C83: 2019-01-11 | D83: 2019-01-11 | E83: 2019-1 | F83: 1 | G83: 1 | H83: 0 | I83: 预付款 | J83: (110)广州市生生物流有限公司 | K83: FK0000008471 | L83: P0000028122 | M83: 广州港股份有限公司新港港务分公司 | N83: 转帐 | P83: 电汇 | Q83: 人民币 | R83: 7100 | S83: 2019-01-10 | T83: 2019-01-10T14:15:00 | U83: 中行港湾路支行 | V83: 636657738064 | W83: 建设银行广州开发区西区支行 | X83: 44001471001053005599
B84: 820996 | C84: 2019-01-10 | D84: 2019-01-10 | E84: 2019-1 | F84: 1 | G84: 1 | H84: 0 | I84: 预付款 | J84: (110)广州市生生物流有限公司 | K84: FK0000008432 | L84: P0000027930 | M84: 广州润盛船务代理有限公司 | N84: 转帐 | P84: 电汇 | Q84: 人民币 | R84: 3743.81 | S84: 2019-01-09 | T84: 2019-01-09T09:00:00 | U84: 中行港湾路支行 | V84: 636657738064 | W84: 中国民生银行广州东城支行 | X84: 0302012830002140
B85: 820062 | C85: 2019-01-10 | D85: 2019-01-10 | E85: 2019-1 | F85: 1 | G85: 1 | H85: 0 | I85: 预付款 | J85: (110)广州市生生物流有限公司 | K85: FK0000008411 | L85: P0000027931 | M85: 广东中外运船务有限公司 | N85: 转帐 | P85: 电汇 | Q85: 人民币 | R85: 2720 | S85: 2019-01-09 | T85: 2019-01-09T14:00:00 | U85: 中行港湾路支行 | V85: 636657738064 | W85: 中国银行广州黄埔支行营业部 | X85: 696457753140
B86: 820037 | C86: 2019-01-10 | D86: 2019-01-10 | E86: 2019-1 | F86: 1 | G86: 1 | H86: 0 | I86: 预付款 | J86: (110)广州市生生物流有限公司 | K86: FK0000008410 | L86: P0000027932 | M86: 广东中外运船务有限公司 | N86: 转帐 | P86: 电汇 | Q86: 人民币 | R86: 5449 | S86: 2019-01-09 | T86: 2019-01-09T14:00:00 | U86: 中行港湾路支行 | V86: 636657738064 | W86: 中国银行广州黄埔支行营业部 | X86: 696457753140
B87: 811631 | C87: 2019-01-09 | D87: 2019-01-09 | E87: 2019-1 | F87: 1 | G87: 1 | H87: 0 | I87: 预付款 | J87: (110)广州市生生物流有限公司 | K87: FK0000008322 | L87: P0000027856 | M87: 鞍钢联众（广州）不锈钢有限公司 | N87: 转帐 | P87: 电汇 | Q87: 人民币 | R87: 9 | S87: 2019-01-07 | T87: 2019-01-07T15:00:00 | U87: 中行港湾路支行 | V87: 636657738064 | W87: 中信银行 | X87: 7443020182400032795
B88: 811181 | C88: 2019-01-07 | D88: 2019-01-07 | E88: 2019-1 | F88: 1 | G88: 1 | H88: 0 | I88: 预付款 | J88: (110)广州市生生物流有限公司 | K88: FK0000008316 | L88: P0000027594 | M88: 广州市黄埔天翔储运有限公司 | N88: 转帐 | P88: 电汇 | Q88: 人民币 | R88: 20000 | S88: 2019-01-07 | T88: 2019-01-07T11:15:00 | U88: 中行港湾路支行 | V88: 636657738064 | W88: 工行广东省广州白云路支行 | X88: 3602004409200643493
B89: 809233 | C89: 2019-01-07 | D89: 2019-01-07 | E89: 2019-1 | F89: 1 | G89: 1 | H89: 0 | I89: 预付款 | J89: (110)广州市生生物流有限公司 | K89: FK0000008291 | L89: P0000027595 | M89: 广州市泓鼎国际货运代理有限公司 | N89: 转帐 | P89: 电汇 | Q89: 人民币 | R89: 119809 | S89: 2019-01-04 | T89: 2019-01-05T10:30:00 | U89: 中行港湾路支行 | V89: 636657738064 | W89: 中国银行广州南沙自由贸易区支行 | X89: 675666015974
B90: 808735 | C90: 2019-01-04 | D90: 2019-01-04 | E90: 2019-1 | F90: 1 | G90: 1 | H90: 0 | I90: 预付款 | J90: (110)广州市生生物流有限公司 | K90: FK0000008268 | L90: P0000027450 | M90: 广州市泓鼎国际货运代理有限公司 | N90: 转帐 | P90: 电汇 | Q90: 人民币 | R90: 19440 | S90: 2019-01-04 | T90: 2019-01-04T14:00:00 | U90: 中行港湾路支行 | V90: 636657738064 | W90: 中国银行广州南沙自由贸易区支行 | X90: 675666015974
B91: 808163 | C91: 2019-01-04 | D91: 2019-01-04 | E91: 2019-1 | F91: 1 | G91: 1 | H91: 0 | I91: 预付款 | J91: (110)广州市生生物流有限公司 | K91: FK0000008261 | L91: P0000027451 | M91: 广东中外运船务有限公司 | N91: 转帐 | P91: 电汇 | Q91: 人民币 | R91: 3149 | S91: 2019-01-04 | T91: 2019-01-04T10:00:00 | U91: 中行港湾路支行 | V91: 636657738064 | W91: 中国银行广州黄埔支行营业部 | X91: 696457753140
B92: 806042 | C92: 2019-01-04 | D92: 2019-01-04 | E92: 2019-1 | F92: 1 | G92: 1 | H92: 0 | I92: 预付款 | J92: (110)广州市生生物流有限公司 | K92: FK0000008231 | L92: P0000027453 | M92: 鞍钢联众（广州）不锈钢有限公司 | N92: 转帐 | P92: 电汇 | Q92: 人民币 | R92: 121845 | S92: 2019-01-03 | T92: 2019-01-03T15:00:00 | U92: 中行港湾路支行 | V92: 636657738064 | W92: 中信银行 | X92: 7443020182400032795
B93: 805774 | C93: 2019-01-04 | D93: 2019-01-04 | E93: 2019-1 | F93: 1 | G93: 1 | H93: 0 | I93: 预付款 | J93: (110)广州市生生物流有限公司 | K93: FK0000008230 | L93: P0000027395 | M93: 上海中谷新良物流有限公司 | N93: 转帐 | P93: 电汇 | Q93: 人民币 | R93: 5616 | S93: 2019-01-03 | T93: 2019-01-03T10:00:00 | U93: 中行港湾路支行 | V93: 636657738064 | W93: 交通银行上海市四川北路支行 | X93: 310066027018800006467
B94: 805735 | C94: 2019-01-03 | D94: 2019-01-03 | E94: 2019-1 | F94: 1 | G94: 1 | H94: 0 | I94: 预付款 | J94: (110)广州市生生物流有限公司 | K94: FK0000008229 | L94: P0000027333 | M94: 广州珉丰集装箱服务有限公司 | N94: 转帐 | P94: 电汇 | Q94: 人民币 | R94: 60000 | S94: 2019-01-03 | T94: 2019-01-03T09:00:00 | U94: 中行港湾路支行 | V94: 636657738064 | W94: 中国银行股份有限公司广州开发区分行 | X94: 739358455019
B95: 801317 | C95: 2019-01-02 | D95: 2019-01-02 | E95: 2019-1 | F95: 1 | G95: 1 | H95: 0 | I95: 预付款 | J95: (110)广州市生生物流有限公司 | K95: FK0000008183 | L95: P0000027262 | M95: 广东中外运船务有限公司 | N95: 转帐 | P95: 电汇 | Q95: 人民币 | R95: 5795.53 | S95: 2019-01-02 | T95: 2019-01-02T14:30:00 | U95: 中行港湾路支行 | V95: 636657738064 | W95: 中国银行广州黄埔支行营业部 | X95: 696457753140
B96: 801146 | C96: 2019-01-02 | D96: 2019-01-02 | E96: 2019-1 | F96: 1 | G96: 1 | H96: 0 | I96: 预付款 | J96: (110)广州市生生物流有限公司 | K96: FK0000008179 | L96: P0000031322 | M96: 广东中外运船务有限公司 | N96: 转帐 | P96: 电汇 | Q96: 人民币 | R96: 2087 | S96: 2019-01-02 | T96: 2019-01-02T14:00:00 | U96: 中行港湾路支行 | V96: 636657738064 | W96: 中国银行广州黄埔支行营业部 | X96: 696457753140
B97: 801140 | C97: 2019-01-02 | D97: 2019-01-02 | E97: 2019-1 | F97: 1 | G97: 1 | H97: 0 | I97: 预付款 | J97: (110)广州市生生物流有限公司 | K97: FK0000008178 | L97: P0000027264 | M97: 中国广州外轮代理有限公司 | N97: 转帐 | P97: 电汇 | Q97: 人民币 | R97: 500 | S97: 2019-01-02 | T97: 2019-01-02T14:00:00 | U97: 中行港湾路支行 | V97: 636657738064 | W97: 中国银行广州黄埔支行营业部 | X97: 699057753131
B98: 801137 | C98: 2019-01-02 | D98: 2019-01-02 | E98: 2019-1 | F98: 1 | G98: 1 | H98: 0 | I98: 预付款 | J98: (110)广州市生生物流有限公司 | K98: FK0000008177 | L98: P0000027265 | M98: 中国广州外轮代理有限公司 | N98: 转帐 | P98: 电汇 | Q98: 人民币 | R98: 24000 | S98: 2019-01-02 | T98: 2019-01-02T14:00:00 | V98: 636657738064 | W98: 中国银行广州黄埔支行营业部 | X98: 699057753131
B99: 768130 | C99: 2019-01-22 | D99: 2019-01-22 | E99: 2019-1 | F99: 1 | G99: 1 | H99: 0 | I99: 预付款 | J99: (110)广州市生生物流有限公司 | K99: FK0000007877 | L99: P0000029047 | M99: 广州港股份有限公司新港港务分公司 | N99: 转帐 | P99: 电汇 | Q99: 人民币 | R99: 27600 | S99: 2018-12-24 | T99: 2018-12-24T14:00:00 | U99: 中行港湾路支行 | V99: 636657738064 | W99: 建设银行广州开发区西区支行 | X99: 44001471001053005599
B100: 768106 | C100: 2019-01-10 | D100: 2019-01-10 | E100: 2019-1 | F100: 1 | G100: 1 | H100: 0 | I100: 预付款 | J100: (110)广州市生生物流有限公司 | K100: FK0000007875 | L100: P0000027971 | M100: 广州港股份有限公司新港港务分公司 | N100: 转帐 | P100: 电汇 | Q100: 人民币 | R100: 263800 | S100: 2018-12-24 | T100: 2018-12-24T14:15:00 | U100: 中行港湾路支行 | V100: 636657738064 | W100: 建设银行广州开发区西区支行 | X100: 44001471001053005599
B101: 748738 | C101: 2019-02-26 | D101: 2019-02-26 | E101: 2019-2 | F101: 1 | G101: 1 | H101: 0 | I101: 预付款 | J101: (110)广州市生生物流有限公司 | K101: FK0000007646 | L101: P0000032371 | M101: 广州港股份有限公司黄埔港务分公司 | N101: 转帐 | P101: 电汇 | Q101: 人民币 | R101: 108026 | S101: 2018-12-17 | T101: 2018-12-24T14:15:00 | U101: 中行港湾路支行 | V101: 636657738064 | W101: 建设银行广州黄埔支行 | X101: 44001470901053002189
B102: 1406436 | C102: 2019-07-29 | D102: 2019-07-29 | E102: 2019-7 | F102: 1 | G102: 1 | H102: 1 | I102: 应付款 | J102: (110)广州市生生物流有限公司 | K102: FK0000014176 | L102: P0000044673 | M102: 广州市众泰物流有限公司 | N102: 转帐 | P102: 电汇 | Q102: 人民币 | R102: 34590 | S102: 2019-07-25 | T102: 2019-07-31T10:00:00 | U102: 中行港湾路支行 | V102: 636657738064 | W102: 中国工商银行广州南沙自由贸易区支行 | X102: 3602177809100019807
B103: 1401362 | C103: 2019-07-23 | D103: 2019-07-23 | E103: 2019-7 | F103: 1 | G103: 1 | H103: 1 | I103: 应付款 | J103: (110)广州市生生物流有限公司 | K103: FK0000014100 | L103: P0000044092 | M103: 中国人民财产保险股份有限公司广州市分公司 | N103: 转帐 | P103: 电汇 | Q103: 人民币 | R103: 72000 | S103: 2019-07-23 | T103: 2019-07-23T15:55:35 | U103: 中行港湾路支行 | V103: 636657738064 | W103: 中国工商银行广州市第一支行 | X103: 9558853602000477827
B104: 1399029 | C104: 2019-07-30 | D104: 2019-07-30 | E104: 2019-7 | F104: 1 | G104: 1 | H104: 1 | I104: 应付款 | J104: (110)广州市生生物流有限公司 | K104: FK0000014073 | L104: P0000044932 | M104: 广东新会港国际货运码头有限公司 | N104: 现金 | P104: 电汇 | Q104: 人民币 | R104: 450 | S104: 2019-07-23 | T104: 2019-07-23T10:00:00 | U104: 中行港湾路支行 | V104: 636657738064
B105: 1384708 | C105: 2019-07-22 | D105: 2019-07-22 | E105: 2019-7 | F105: 1 | G105: 1 | H105: 1 | I105: 应付款 | J105: (110)广州市生生物流有限公司 | K105: FK0000013934 | L105: P0000043803 | M105: 广州军诚物流有限公司 | N105: 转帐 | P105: 电汇 | Q105: 人民币 | R105: 144245.92 | S105: 2019-07-17 | T105: 2019-07-17T15:15:30 | U105: 中行港湾路支行 | V105: 636657738064 | W105: 工行怡港支行 | X105: 3602088509200108415
B106: 1384186 | C106: 2019-07-29 | D106: 2019-07-29 | E106: 2019-7 | F106: 1 | G106: 1 | H106: 1 | I106: 应付款 | J106: (110)广州市生生物流有限公司 | K106: FK0000013933 | L106: P0000044753 | M106: 广州军诚物流有限公司 | N106: 转帐 | P106: 电汇 | Q106: 人民币 | R106: 198780 | S106: 2019-07-17 | T106: 2019-07-17T15:15:02 | U106: 中行港湾路支行 | V106: 636657738064 | W106: 工行怡港支行 | X106: 3602088509200108415
B107: 1379900 | C107: 2019-07-22 | D107: 2019-07-22 | E107: 2019-7 | F107: 1 | G107: 1 | H107: 1 | I107: 应付款 | J107: (110)广州市生生物流有限公司 | K107: FK0000013875 | L107: P0000043759 | M107: 佛山市顺德区顺浦江石油有限公司 | N107: 转帐 | P107: 电汇 | Q107: 人民币 | R107: 16710 | S107: 2019-07-16 | T107: 2019-07-16T10:51:57 | U107: 中行港湾路支行 | V107: 636657738064 | W107: 南海农村商业银行股份有限公司桂城支行 | X107: 80020000006852712
B108: 1378288 | C108: 2019-07-16 | D108: 2019-07-16 | E108: 2019-7 | F108: 1 | G108: 1 | H108: 1 | I108: 应付款 | J108: (110)广州市生生物流有限公司 | K108: FK0000013862 | L108: P0000043116 | M108: 中国人民财产保险股份有限公司广州市分公司 | N108: 转帐 | P108: 电汇 | Q108: 人民币 | R108: 3911.4 | S108: 2019-07-15 | T108: 2019-07-16T10:00:00 | U108: 中行港湾路支行 | V108: 636657738064 | W108: 中国工商银行广州第一支行 | X108: 9558853602000477702
B109: 1374784 | C109: 2019-07-15 | D109: 2019-07-15 | E109: 2019-7 | F109: 1 | G109: 1 | H109: 1 | I109: 应付款 | J109: (110)广州市生生物流有限公司 | K109: FK0000013809 | L109: P0000043066 | M109: 江门市冠力石化贸易有限公司 | N109: 转帐 | P109: 电汇 | Q109: 人民币 | R109: 40587 | S109: 2019-07-13 | T109: 2019-07-15T11:00:00 | U109: 中行港湾路支行 | V109: 636657738064 | W109: 中国银行江门城区支行 | X109: 663958802209
B110: 1374779 | C110: 2019-07-15 | D110: 2019-07-15 | E110: 2019-7 | F110: 1 | G110: 1 | H110: 1 | I110: 应付款 | J110: (110)广州市生生物流有限公司 | K110: FK0000013808 | L110: P0000043065 | M110: 江门市冠力石化贸易有限公司 | N110: 现金 | P110: 电汇 | Q110: 人民币 | R110: 30000 | S110: 2019-07-13 | T110: 2019-07-15T12:00:00 | U110: 中行港湾路支行 | V110: 636657738064
B111: 1373983 | C111: 2019-07-18 | D111: 2019-07-18 | E111: 2019-7 | F111: 1 | G111: 1 | H111: 1 | I111: 应付款 | J111: (110)广州市生生物流有限公司 | K111: FK0000013806 | L111: P0000043422 | M111: 云浮新港港务有限公司 | N111: 现金 | P111: 电汇 | Q111: 人民币 | R111: 100 | S111: 2019-07-12 | T111: 2019-07-15T08:45:00 | U111: 中行港湾路支行 | V111: 636657738064
B112: 1373965 | C112: 2019-07-18 | D112: 2019-07-18 | E112: 2019-7 | F112: 1 | G112: 1 | H112: 1 | I112: 应付款 | J112: (110)广州市生生物流有限公司 | K112: FK0000013804 | L112: P0000043423 | M112: 珠海国际货柜码头（高栏）有限公司 | N112: 现金 | P112: 电汇 | Q112: 人民币 | R112: 188.52 | S112: 2019-07-12 | T112: 2019-07-15T08:45:00 | U112: 中行港湾路支行 | V112: 636657738064
B113: 1373872 | C113: 2019-07-18 | D113: 2019-07-18 | E113: 2019-7 | F113: 1 | G113: 1 | H113: 1 | I113: 应付款 | J113: (110)广州市生生物流有限公司 | K113: FK0000013801 | L113: P0000043424 | M113: 珠海国际货柜码头（高栏）有限公司 | N113: 现金 | P113: 电汇 | Q113: 人民币 | R113: 110.52 | S113: 2019-07-12 | T113: 2019-07-15T09:00:00 | U113: 中行港湾路支行 | V113: 636657738064
B114: 1373858 | C114: 2019-07-18 | D114: 2019-07-18 | E114: 2019-7 | F114: 1 | G114: 1 | H114: 1 | I114: 应付款 | J114: (110)广州市生生物流有限公司 | K114: FK0000013800 | L114: P0000043425 | M114: 云浮新港港务有限公司 | N114: 现金 | P114: 电汇 | Q114: 人民币 | R114: 200 | S114: 2019-07-12 | T114: 2019-07-12T17:26:57 | U114: 中行港湾路支行 | V114: 636657738064
B115: 1368790 | C115: 2019-07-22 | D115: 2019-07-22 | E115: 2019-7 | F115: 1 | G115: 1 | H115: 1 | I115: 应付款 | J115: (110)广州市生生物流有限公司 | K115: FK0000013723 | L115: P0000043802 | M115: 广州市和埔汽车运输有限公司 | N115: 转帐 | P115: 电汇 | Q115: 人民币 | R115: 14430 | S115: 2019-07-11 | T115: 2019-07-11T10:15:50 | U115: 中行港湾路支行 | V115: 636657738064 | W115: 交通银行黄埔支行 | X115: 441163506018010013256
B116: 1368535 | C116: 2019-07-11 | D116: 2019-07-11 | E116: 2019-7 | F116: 1 | G116: 1 | H116: 1 | I116: 应付款 | J116: (110)广州市生生物流有限公司 | K116: FK0000013717 | L116: P0000042748 | M116: 广州昆达船舶技术服务有限公司 | N116: 转帐 | P116: 电汇 | Q116: 人民币 | R116: 1700 | S116: 2019-07-11 | T116: 2019-07-11T09:12:59 | U116: 中行港湾路支行 | V116: 636657738064 | W116: 中国建设银行股份有限公司广州石化支行 | X116: 44001470902053001888
B117: 1361320 | C117: 2019-07-12 | D117: 2019-07-12 | E117: 2019-7 | F117: 1 | G117: 1 | H117: 1 | I117: 应付款 | J117: (110)广州市生生物流有限公司 | K117: FK0000013638 | L117: P0000042849 | M117: 广州开发区货检管理服务有限公司 | N117: 现金 | P117: 电汇 | Q117: 人民币 | R117: 220 | S117: 2019-07-09 | T117: 2019-07-09T11:13:17 | U117: 中行港湾路支行 | V117: 636657738064
B118: 1359010 | C118: 2019-07-12 | D118: 2019-07-12 | E118: 2019-7 | F118: 1 | G118: 1 | H118: 1 | I118: 应付款 | J118: (110)广州市生生物流有限公司 | K118: FK0000013602 | L118: P0000042848 | M118: 广东新会港国际货运码头有限公司 | N118: 现金 | P118: 电汇 | Q118: 人民币 | R118: 200 | S118: 2019-07-08 | T118: 2019-07-08T16:00:00 | U118: 中行港湾路支行 | V118: 636657738064
B119: 1358814 | C119: 2019-07-29 | D119: 2019-07-29 | E119: 2019-7 | F119: 1 | G119: 1 | H119: 1 | I119: 应付款 | J119: (110)广州市生生物流有限公司 | K119: FK0000013599 | L119: P0000044672 | M119: 东莞市臻凯航运有限公司 | N119: 转帐 | P119: 电汇 | Q119: 人民币 | R119: 328048.97 | S119: 2019-07-08 | T119: 2019-07-17T11:46:19 | U119: 中行港湾路支行 | V119: 636657738064 | W119: 中国工商银行东莞市麻涌支行 | X119: 2010027909200080233
B120: 1357624 | C120: 2019-07-22 | D120: 2019-07-22 | E120: 2019-7 | F120: 1 | G120: 1 | H120: 1 | I120: 应付款 | J120: (110)广州市生生物流有限公司 | K120: FK0000013588 | L120: P0000043799 | M120: 东莞市臻凯航运有限公司 | N120: 转帐 | P120: 电汇 | Q120: 人民币 | R120: 333157.16 | S120: 2019-07-08 | T120: 2019-07-18T10:28:48 | U120: 中行港湾路支行 | V120: 636657738064 | W120: 中国工商银行东莞市麻涌支行 | X120: 2010027909200080233
B121: 1349317 | C121: 2019-07-09 | D121: 2019-07-09 | E121: 2019-7 | F121: 1 | G121: 1 | H121: 1 | I121: 应付款 | J121: (110)广州市生生物流有限公司 | K121: FK0000013506 | L121: P0000042605 | M121: 临时供应商 | N121: 现金 | P121: 电汇 | Q121: 人民币 | R121: 198 | S121: 2019-07-04 | T121: 2019-07-04T10:03:42 | U121: 中行港湾路支行 | V121: 636657738064
B122: 1348170 | C122: 2019-07-22 | D122: 2019-07-22 | E122: 2019-7 | F122: 1 | G122: 1 | H122: 1 | I122: 应付款 | J122: (110)广州市生生物流有限公司 | K122: FK0000013500 | L122: P0000043800 | M122: 广东新会港国际货运码头有限公司 | N122: 现金 | P122: 电汇 | Q122: 人民币 | R122: 11647.2 | S122: 2019-07-03 | T122: 2019-07-05T10:30:00 | U122: 中行港湾路支行 | V122: 636657738064
B123: 1345564 | C123: 2019-07-25 | D123: 2019-07-25 | E123: 2019-7 | F123: 1 | G123: 1 | H123: 1 | I123: 应付款 | J123: (110)广州市生生物流有限公司 | K123: FK0000013487 | L123: P0000044413 | M123: 广州市雄安物流有限责任公司 | N123: 转帐 | P123: 电汇 | Q123: 人民币 | R123: 169082.1 | S123: 2019-07-03 | T123: 2019-07-03T14:57:59 | U123: 中行港湾路支行 | V123: 636657738064 | W123: 中国银行股份有限公司广州南岗支行 | X123: 738067327118
B124: 1344162 | C124: 2019-07-03 | D124: 2019-07-03 | E124: 2019-7 | F124: 1 | G124: 1 | H124: 1 | I124: 应付款 | J124: (110)广州市生生物流有限公司 | K124: FK0000013468 | L124: P0000041872 | M124: 中国石化销售有限公司广东广州石油分公司 | N124: 转帐 | P124: 电汇 | Q124: 人民币 | R124: 55296 | S124: 2019-07-03 | T124: 2019-07-03T09:54:02 | U124: 中行港湾路支行 | V124: 636657738064 | W124: 中国工商银行股份有限公司广州北京路支行 | X124: 3602000929200254855（水运）
B125: 1339846 | C125: 2019-07-18 | D125: 2019-07-18 | E125: 2019-7 | F125: 1 | G125: 1 | H125: 1 | I125: 应付款 | J125: (110)广州市生生物流有限公司 | K125: FK0000013410 | L125: P0000043426 | M125: 广东双水码头有限公司 | N125: 现金 | P125: 电汇 | Q125: 人民币 | R125: 240 | S125: 2019-07-02 | T125: 2019-07-02T10:35:53 | U125: 中行港湾路支行 | V125: 636657738064
B126: 1339359 | C126: 2019-07-10 | D126: 2019-07-10 | E126: 2019-7 | F126: 1 | G126: 1 | H126: 1 | I126: 应付款 | J126: (110)广州市生生物流有限公司 | K126: FK0000013407 | L126: P0000042629 | M126: 临时供应商 | N126: 现金 | P126: 电汇 | Q126: 人民币 | R126: 200 | S126: 2019-07-02 | T126: 2019-07-02T10:26:55 | U126: 中行港湾路支行 | V126: 636657738064
B127: 1337112 | C127: 2019-07-15 | D127: 2019-07-15 | E127: 2019-7 | F127: 1 | G127: 1 | H127: 1 | I127: 应付款 | J127: (110)广州市生生物流有限公司 | K127: FK0000013381 | L127: P0000042894 | M127: 广州松木货运代理有限公司 | N127: 转帐 | P127: 电汇 | Q127: 人民币 | R127: 99460 | S127: 2019-07-01 | T127: 2019-07-01T15:24:54 | U127: 中行港湾路支行 | V127: 636657738064 | W127: 中国工商银行股份有限公司广州红山支行 | X127: 3602004809200064657
B128: 1334274 | C128: 2019-07-02 | D128: 2019-07-02 | E128: 2019-7 | F128: 1 | G128: 1 | H128: 1 | I128: 应付款 | J128: (110)广州市生生物流有限公司 | K128: FK0000013351 | L128: P0000041774 | M128: 广东新会港国际货运码头有限公司 | N128: 现金 | P128: 电汇 | Q128: 人民币 | R128: 300 | S128: 2019-07-01 | T128: 2019-07-01T10:00:00 | U128: 中行港湾路支行 | V128: 636657738064
B129: 1326896 | C129: 2019-07-22 | D129: 2019-07-22 | E129: 2019-7 | F129: 1 | G129: 1 | H129: 1 | I129: 应付款 | J129: (110)广州市生生物流有限公司 | K129: FK0000013292 | L129: P0000043801 | M129: 广州港秀物流有限公司 | N129: 转帐 | P129: 电汇 | Q129: 人民币 | R129: 39250 | S129: 2019-06-28 | T129: 2019-07-17T09:07:05 | U129: 中行港湾路支行 | V129: 636657738064 | W129: 中国银行股份有限公司广州港湾路分理处 | X129: 719865303339
B130: 1320291 | C130: 2019-07-18 | D130: 2019-07-18 | E130: 2019-7 | F130: 1 | G130: 1 | H130: 1 | I130: 应付款 | J130: (110)广州市生生物流有限公司 | K130: FK0000013257 | L130: P0000043427 | M130: 中华人民共和国东莞海事局 | N130: 现金 | P130: 电汇 | Q130: 人民币 | R130: 3000 | S130: 2019-06-27 | T130: 2019-06-27T10:08:40 | U130: 中行港湾路支行 | V130: 636657738064
B131: 1315651 | C131: 2019-07-18 | D131: 2019-07-18 | E131: 2019-7 | F131: 1 | G131: 1 | H131: 1 | I131: 应付款 | J131: (110)广州市生生物流有限公司 | K131: FK0000013222 | L131: P0000043428 | M131: 中华人民共和国广州海事局 | N131: 现金 | P131: 电汇 | Q131: 人民币 | R131: 42 | S131: 2019-06-26 | T131: 2019-06-26T11:27:37 | U131: 中行港湾路支行 | V131: 636657738064
B132: 1315203 | C132: 2019-07-18 | D132: 2019-07-18 | E132: 2019-7 | F132: 1 | G132: 1 | H132: 1 | I132: 应付款 | J132: (110)广州市生生物流有限公司 | K132: FK0000013216 | L132: P0000043429 | M132: 中华人民共和国清远海事局 | N132: 现金 | P132: 电汇 | Q132: 人民币 | R132: 1108 | S132: 2019-06-26 | T132: 2019-07-08T10:40:46 | U132: 中行港湾路支行 | V132: 636657738064
B133: 1315168 | C133: 2019-07-02 | D133: 2019-07-02 | E133: 2019-7 | F133: 1 | G133: 1 | H133: 1 | I133: 应付款 | J133: (110)广州市生生物流有限公司 | K133: FK0000013215 | L133: P0000041778 | M133: 中华人民共和国广州海事局 | N133: 现金 | P133: 电汇 | Q133: 人民币 | R133: 2500 | S133: 2019-06-26 | T133: 2019-06-26T10:36:52 | U133: 中行港湾路支行 | V133: 636657738064
B134: 1306712 | C134: 2019-06-25 | D134: 2019-06-25 | E134: 2019-6 | F134: 1 | G134: 1 | H134: 1 | I134: 应付款 | J134: (110)广州市生生物流有限公司 | K134: FK0000013164 | L134: P0000041228 | M134: 中国石化销售有限公司广东广州石油分公司 | N134: 转帐 | P134: 电汇 | Q134: 人民币 | R134: 29880 | S134: 2019-06-25 | T134: 2019-06-25T10:45:38 | U134: 中行港湾路支行 | V134: 636657738064 | W134: 中国工商银行股份有限公司广州北京路支行 | X134: 3602000929200254855（水运）
B135: 1303708 | C135: 2019-07-12 | D135: 2019-07-12 | E135: 2019-7 | F135: 1 | G135: 1 | H135: 1 | I135: 应付款 | J135: (110)广州市生生物流有限公司 | K135: FK0000013140 | L135: P0000042846 | M135: 侨益物流股份有限公司 | N135: 转帐 | P135: 电汇 | Q135: 人民币 | R135: 200 | S135: 2019-06-24 | T135: 2019-06-28T15:00:00 | U135: 中行港湾路支行 | V135: 636657738064 | W135: 汇丰银行（中国）有限公司广州分行 | X135: 629211129011
B136: 1303012 | C136: 2019-07-22 | D136: 2019-07-22 | E136: 2019-7 | F136: 1 | G136: 1 | H136: 1 | I136: 应付款 | J136: (110)广州市生生物流有限公司 | K136: FK0000013125 | L136: P0000043804 | M136: 广州市雁城工贸有限公司 | N136: 转帐 | P136: 电汇 | Q136: 人民币 | R136: 112501.44 | S136: 2019-06-24 | T136: 2019-06-24T11:54:27 | U136: 中行港湾路支行 | V136: 636657738064 | W136: 广州银行黄埔支行 | X136: 800184231209010
B137: 1302987 | C137: 2019-07-02 | D137: 2019-07-02 | E137: 2019-7 | F137: 1 | G137: 1 | H137: 1 | I137: 应付款 | J137: (110)广州市生生物流有限公司 | K137: FK0000013124 | L137: P0000041772 | M137: 广州市雁城工贸有限公司 | N137: 转帐 | P137: 电汇 | Q137: 人民币 | R137: 8770 | S137: 2019-06-24 | T137: 2019-06-24T11:54:10 | U137: 中行港湾路支行 | V137: 636657738064 | W137: 广州银行黄埔支行 | X137: 800184231209010
B138: 1300653 | C138: 2019-07-02 | D138: 2019-07-02 | E138: 2019-7 | F138: 1 | G138: 1 | H138: 1 | I138: 应付款 | J138: (110)广州市生生物流有限公司 | K138: FK0000013096 | L138: P0000041782 | M138: 临时供应商 | N138: 现金 | P138: 电汇 | Q138: 人民币 | R138: 418.3 | S138: 2019-06-21 | T138: 2019-06-24T08:30:00 | U138: 中行港湾路支行 | V138: 636657738064
B139: 1300409 | C139: 2019-07-02 | D139: 2019-07-02 | E139: 2019-7 | F139: 1 | G139: 1 | H139: 1 | I139: 应付款 | J139: (110)广州市生生物流有限公司 | K139: FK0000013088 | L139: P0000041775 | M139: 广东新会港国际货运码头有限公司 | N139: 现金 | P139: 电汇 | Q139: 人民币 | R139: 300 | S139: 2019-06-21 | T139: 2019-06-28T16:21:28 | U139: 中行港湾路支行 | V139: 636657738064
B140: 1300206 | C140: 2019-07-12 | D140: 2019-07-12 | E140: 2019-7 | F140: 1 | G140: 1 | H140: 1 | I140: 应付款 | J140: (110)广州市生生物流有限公司 | K140: FK0000013086 | L140: P0000042843 | M140: 侨益物流股份有限公司 | N140: 转帐 | P140: 电汇 | Q140: 人民币 | R140: 1940 | S140: 2019-06-21 | T140: 2019-06-21T16:00:00 | U140: 中行港湾路支行 | V140: 636657738064 | W140: 汇丰银行（中国）有限公司广州分行 | X140: 629211129011
B141: 1299807 | C141: 2019-07-02 | D141: 2019-07-02 | E141: 2019-7 | F141: 1 | G141: 1 | H141: 1 | I141: 应付款 | J141: (110)广州市生生物流有限公司 | K141: FK0000013085 | L141: P0000041777 | M141: 东莞市宏顺物流有限公司 | N141: 转帐 | P141: 电汇 | Q141: 人民币 | R141: 37924.96 | S141: 2019-06-21 | T141: 2019-06-21T15:03:47 | U141: 中行港湾路支行 | V141: 636657738064 | W141: 中国农业银行股份有限公司东莞麻涌支行 | X141: 44279001040010219
B142: 1297668 | C142: 2019-07-16 | D142: 2019-07-16 | E142: 2019-7 | F142: 1 | G142: 1 | H142: 1 | I142: 应付款 | J142: (110)广州市生生物流有限公司 | K142: FK0000013047 | L142: P0000043100 | M142: 广州港秀物流有限公司 | N142: 转帐 | P142: 电汇 | Q142: 人民币 | R142: 61774.45 | S142: 2019-06-20 | T142: 2019-07-03T17:14:15 | U142: 中行港湾路支行 | V142: 636657738064 | W142: 中国银行股份有限公司广州港湾路分理处 | X142: 719865303339
B143: 1291314 | C143: 2019-07-10 | D143: 2019-07-10 | E143: 2019-7 | F143: 1 | G143: 1 | H143: 1 | I143: 应付款 | J143: (110)广州市生生物流有限公司 | K143: FK0000012966 | L143: P0000042606 | M143: 广州市振威运输有限公司 | N143: 转帐 | P143: 电汇 | Q143: 人民币 | R143: 38650 | S143: 2019-06-18 | T143: 2019-06-29T16:21:35 | U143: 中行港湾路支行 | V143: 636657738064 | W143: 中国农业银行文冲支行 | X143: 44062901040006730
B144: 1288753 | C144: 2019-06-18 | D144: 2019-06-18 | E144: 2019-6 | F144: 1 | G144: 1 | H144: 1 | I144: 应付款 | J144: (110)广州市生生物流有限公司 | K144: FK0000012927 | L144: P0000040718 | M144: 广州市弘运物流服务有限公司 | N144: 转帐 | P144: 电汇 | Q144: 人民币 | R144: 16750 | S144: 2019-06-17 | T144: 2019-06-17T17:28:42 | U144: 中行港湾路支行 | V144: 636657738064 | W144: 中国农业银行股份有限公司广州红山支行 | X144: 44062701040003236
B145: 1286687 | C145: 2019-07-02 | D145: 2019-07-02 | E145: 2019-7 | F145: 1 | G145: 1 | H145: 1 | I145: 应付款 | J145: (110)广州市生生物流有限公司 | K145: FK0000012880 | L145: P0000041776 | M145: 广州市宇轩物流有限公司 | N145: 转帐 | P145: 电汇 | Q145: 人民币 | R145: 4450 | S145: 2019-06-17 | T145: 2019-06-17T09:19:26 | U145: 中行港湾路支行 | V145: 636657738064 | W145: 中国工商银行广州花城支行 | X145: 3602028509201064996
B146: 1284503 | C146: 2019-07-12 | D146: 2019-07-12 | E146: 2019-7 | F146: 1 | G146: 1 | H146: 1 | I146: 应付款 | J146: (110)广州市生生物流有限公司 | K146: FK0000012855 | L146: P0000042845 | M146: 广州市永盈物流有限公司 | N146: 转帐 | P146: 电汇 | Q146: 人民币 | R146: 303214 | S146: 2019-06-14 | T146: 2019-06-22T14:23:54 | U146: 中行港湾路支行 | V146: 636657738064 | W146: 中国建设银行广州市黄埔支行 | X146: 44050147090109140501
B147: 1283552 | C147: 2019-06-18 | D147: 2019-06-18 | E147: 2019-6 | F147: 1 | G147: 1 | H147: 1 | I147: 应付款 | J147: (110)广州市生生物流有限公司 | K147: FK0000012848 | L147: P0000040734 | M147: 广东新会港国际货运码头有限公司 | N147: 现金 | P147: 电汇 | Q147: 人民币 | R147: 200 | S147: 2019-06-14 | T147: 2019-06-14T10:36:48 | U147: 中行港湾路支行 | V147: 636657738064
B148: 1282475 | C148: 2019-07-02 | D148: 2019-07-02 | E148: 2019-7 | F148: 1 | G148: 1 | H148: 1 | I148: 应付款 | J148: (110)广州市生生物流有限公司 | K148: FK0000012831 | L148: P0000041773 | M148: 广州军诚物流有限公司 | N148: 转帐 | P148: 电汇 | Q148: 人民币 | R148: 103840 | S148: 2019-06-13 | T148: 2019-06-13T16:49:11 | U148: 中行港湾路支行 | V148: 636657738064 | W148: 工行怡港支行 | X148: 3602088509200108415
B149: 1281783 | C149: 2019-06-18 | D149: 2019-06-18 | E149: 2019-6 | F149: 1 | G149: 1 | H149: 1 | I149: 应付款 | J149: (110)广州市生生物流有限公司 | K149: FK0000012818 | L149: P0000040730 | M149: 中华人民共和国深圳海事局 | N149: 现金 | P149: 电汇 | Q149: 人民币 | R149: 20 | S149: 2019-06-13 | T149: 2019-06-13T14:48:50 | U149: 中行港湾路支行 | V149: 636657738064
B150: 1281637 | C150: 2019-06-18 | D150: 2019-06-18 | E150: 2019-6 | F150: 1 | G150: 1 | H150: 1 | I150: 应付款 | J150: (110)广州市生生物流有限公司 | K150: FK0000012814 | L150: P0000040736 | M150: 中华人民共和国清远海事局 | N150: 现金 | P150: 电汇 | Q150: 人民币 | R150: 925 | S150: 2019-06-13 | T150: 2019-06-13T14:32:53 | U150: 中行港湾路支行 | V150: 636657738064
B151: 1280048 | C151: 2019-06-18 | D151: 2019-06-18 | E151: 2019-6 | F151: 1 | G151: 1 | H151: 1 | I151: 应付款 | J151: (110)广州市生生物流有限公司 | K151: FK0000012810 | L151: P0000040720 | M151: 广东双水码头有限公司 | N151: 现金 | P151: 电汇 | Q151: 人民币 | R151: 240 | S151: 2019-06-13 | T151: 2019-06-13T11:54:19 | U151: 中行港湾路支行 | V151: 636657738064
B152: 1280041 | C152: 2019-06-18 | D152: 2019-06-18 | E152: 2019-6 | F152: 1 | G152: 1 | H152: 1 | I152: 应付款 | J152: (110)广州市生生物流有限公司 | K152: FK0000012809 | L152: P0000040735 | M152: 广州港物流有限公司 | N152: 现金 | P152: 电汇 | Q152: 人民币 | R152: 1400 | S152: 2019-06-13 | T152: 2019-06-13T11:51:54 | U152: 中行港湾路支行 | V152: 636657738064
B153: 1280031 | C153: 2019-06-18 | D153: 2019-06-18 | E153: 2019-6 | F153: 1 | G153: 1 | H153: 1 | I153: 应付款 | J153: (110)广州市生生物流有限公司 | K153: FK0000012808 | L153: P0000040729 | M153: 广东新会港国际货运码头有限公司 | N153: 现金 | P153: 电汇 | Q153: 人民币 | R153: 240 | S153: 2019-06-13 | T153: 2019-06-13T11:47:54 | U153: 中行港湾路支行 | V153: 636657738064
B154: 1279956 | C154: 2019-06-18 | D154: 2019-06-18 | E154: 2019-6 | F154: 1 | G154: 1 | H154: 1 | I154: 应付款 | J154: (110)广州市生生物流有限公司 | K154: FK0000012806 | L154: P0000040722 | M154: 珠海国际货柜码头（高栏）有限公司 | N154: 现金 | P154: 电汇 | Q154: 人民币 | R154: 231.64 | S154: 2019-06-13 | T154: 2019-06-13T11:39:04 | U154: 中行港湾路支行 | V154: 636657738064
B155: 1279483 | C155: 2019-06-18 | D155: 2019-06-18 | E155: 2019-6 | F155: 1 | G155: 1 | H155: 1 | I155: 应付款 | J155: (110)广州市生生物流有限公司 | K155: FK0000012799 | L155: P0000040733 | M155: 广东双水码头有限公司 | N155: 现金 | P155: 电汇 | Q155: 人民币 | R155: 120 | S155: 2019-06-13 | T155: 2019-06-13T10:26:19 | U155: 中行港湾路支行 | V155: 636657738064
B156: 1279480 | C156: 2019-06-18 | D156: 2019-06-18 | E156: 2019-6 | F156: 1 | G156: 1 | H156: 1 | I156: 应付款 | J156: (110)广州市生生物流有限公司 | K156: FK0000012798 | L156: P0000040732 | M156: 广东新会港国际货运码头有限公司 | N156: 现金 | P156: 电汇 | Q156: 人民币 | R156: 350 | S156: 2019-06-13 | T156: 2019-06-13T10:24:48 | U156: 中行港湾路支行 | V156: 636657738064
B157: 1279471 | C157: 2019-06-18 | D157: 2019-06-18 | E157: 2019-6 | F157: 1 | G157: 1 | H157: 1 | I157: 应付款 | J157: (110)广州市生生物流有限公司 | K157: FK0000012797 | L157: P0000040727 | M157: 珠海国际货柜码头（高栏）有限公司 | N157: 现金 | P157: 电汇 | Q157: 人民币 | R157: 256.28 | S157: 2019-06-13 | T157: 2019-06-13T10:24:11 | U157: 中行港湾路支行 | V157: 636657738064
B158: 1278884 | C158: 2019-06-18 | D158: 2019-06-18 | E158: 2019-6 | F158: 1 | G158: 1 | H158: 1 | I158: 应付款 | J158: (110)广州市生生物流有限公司 | K158: FK0000012789 | L158: P0000040719 | M158: 广州市黄埔区达海五金店 | N158: 现金 | P158: 电汇 | Q158: 人民币 | R158: 5603.5 | S158: 2019-06-13 | T158: 2019-06-13T09:12:26 | U158: 中行港湾路支行 | V158: 636657738064
B159: 1278849 | C159: 2019-06-14 | D159: 2019-06-14 | E159: 2019-6 | F159: 1 | G159: 1 | H159: 1 | I159: 应付款 | J159: (110)广州市生生物流有限公司 | K159: FK0000012787 | L159: P0000040559 | M159: 广州市弘运物流服务有限公司 | N159: 转帐 | P159: 电汇 | Q159: 人民币 | R159: 18990.88 | S159: 2019-06-13 | T159: 2019-06-13T09:03:33 | U159: 中行港湾路支行 | V159: 636657738064 | W159: 中国农业银行股份有限公司广州红山支行 | X159: 44062701040003236
B160: 1278556 | C160: 2019-06-28 | D160: 2019-06-28 | E160: 2019-6 | F160: 1 | G160: 1 | H160: 1 | I160: 应付款 | J160: (110)广州市生生物流有限公司 | K160: FK0000012782 | L160: P0000041579 | M160: 广州旭晨物流有限公司 | N160: 转帐 | P160: 电汇 | Q160: 人民币 | R160: 146050 | S160: 2019-06-12 | T160: 2019-06-20T10:00:00 | U160: 中行港湾路支行 | V160: 636657738064 | W160: 中国银行股份有限公司广州夏园支行 | X160: 731569483656
B161: 1278479 | C161: 2019-07-18 | D161: 2019-07-18 | E161: 2019-7 | F161: 1 | G161: 1 | H161: 1 | I161: 应付款 | J161: (110)广州市生生物流有限公司 | K161: FK0000012777 | L161: P0000043430 | M161: 江门市恒鑫物流有限公司 | N161: 转帐 | P161: 电汇 | Q161: 人民币 | R161: 7150.38 | S161: 2019-06-12 | T161: 2019-06-13T10:00:00 | U161: 中行港湾路支行 | V161: 636657738064 | W161: 中国工商银行江门市新会支行 | X161: 2012003809022343803
B162: 1278267 | C162: 2019-06-18 | D162: 2019-06-18 | E162: 2019-6 | F162: 1 | G162: 1 | H162: 1 | I162: 应付款 | J162: (110)广州市生生物流有限公司 | K162: FK0000012770 | L162: P0000040728 | M162: 中华人民共和国东莞海事局 | N162: 现金 | P162: 电汇 | Q162: 人民币 | R162: 860 | S162: 2019-06-12 | T162: 2019-06-12T17:11:34 | U162: 中行港湾路支行 | V162: 636657738064
B163: 1278008 | C163: 2019-06-18 | D163: 2019-06-18 | E163: 2019-6 | F163: 1 | G163: 1 | H163: 1 | I163: 应付款 | J163: (110)广州市生生物流有限公司 | K163: FK0000012769 | L163: P0000040725 | M163: 中华人民共和国东莞海事局 | N163: 现金 | P163: 电汇 | Q163: 人民币 | R163: 798 | S163: 2019-06-12 | T163: 2019-06-12T16:31:17 | U163: 中行港湾路支行 | V163: 636657738064
B164: 1277957 | C164: 2019-06-18 | D164: 2019-06-18 | E164: 2019-6 | F164: 1 | G164: 1 | H164: 1 | I164: 应付款 | J164: (110)广州市生生物流有限公司 | K164: FK0000012767 | L164: P0000040731 | M164: 中华人民共和国东莞海事局 | N164: 现金 | P164: 电汇 | Q164: 人民币 | R164: 859 | S164: 2019-06-12 | T164: 2019-06-12T16:16:16 | U164: 中行港湾路支行 | V164: 636657738064
B165: 1277144 | C165: 2019-06-18 | D165: 2019-06-18 | E165: 2019-6 | F165: 1 | G165: 1 | H165: 1 | I165: 应付款 | J165: (110)广州市生生物流有限公司 | K165: FK0000012747 | L165: P0000040721 | M165: 中华人民共和国贵港海事局 | N165: 现金 | P165: 电汇 | Q165: 人民币 | R165: 1660 | S165: 2019-06-12 | T165: 2019-06-12T11:26:14 | U165: 中行港湾路支行 | V165: 636657738064
B166: 1275943 | C166: 2019-06-18 | D166: 2019-06-18 | E166: 2019-6 | F166: 1 | G166: 1 | H166: 1 | I166: 应付款 | J166: (110)广州市生生物流有限公司 | K166: FK0000012725 | L166: P0000040726 | M166: 广州珉丰集装箱服务有限公司 | N166: 现金 | P166: 电汇 | Q166: 人民币 | R166: 36 | S166: 2019-06-11 | T166: 2019-06-12T12:00:00 | U166: 中行港湾路支行 | V166: 636657738064
B167: 1275930 | C167: 2019-07-02 | D167: 2019-07-02 | E167: 2019-7 | F167: 1 | G167: 1 | H167: 1 | I167: 应付款 | J167: (110)广州市生生物流有限公司 | K167: FK0000012724 | L167: P0000041781 | M167: 广州坚信集装箱维修服务有限公司 | N167: 现金 | P167: 电汇 | Q167: 人民币 | R167: 120 | S167: 2019-06-11 | T167: 2019-06-12T12:00:00 | U167: 中行港湾路支行 | V167: 636657738064
B168: 1273685 | C168: 2019-07-03 | D168: 2019-07-03 | E168: 2019-7 | F168: 1 | G168: 1 | H168: 1 | I168: 应付款 | J168: (110)广州市生生物流有限公司 | K168: FK0000012701 | L168: P0000041873 | M168: 恩平市华誉货运物流有限公司 | N168: 转帐 | P168: 电汇 | Q168: 人民币 | R168: 65950.23 | S168: 2019-06-11 | T168: 2019-06-11T16:00:00 | U168: 中行港湾路支行 | V168: 636657738064 | W168: 中国工商银行恩平市支行 | X168: 2012009009224802282
B169: 1273634 | C169: 2019-07-02 | D169: 2019-07-02 | E169: 2019-7 | F169: 1 | G169: 1 | H169: 1 | I169: 应付款 | J169: (110)广州市生生物流有限公司 | K169: FK0000012699 | L169: P0000041779 | M169: 恩平市华誉货运物流有限公司 | N169: 转帐 | P169: 电汇 | Q169: 人民币 | R169: 5490 | S169: 2019-06-11 | T169: 2019-06-11T16:00:00 | U169: 中行港湾路支行 | V169: 636657738064 | W169: 中国工商银行恩平市支行 | X169: 2012009009224802282
B170: 1271416 | C170: 2019-07-04 | D170: 2019-07-04 | E170: 2019-7 | F170: 1 | G170: 1 | H170: 1 | I170: 应付款 | J170: (110)广州市生生物流有限公司 | K170: FK0000012667 | L170: P0000042040 | M170: 东莞市臻凯航运有限公司 | N170: 转帐 | P170: 电汇 | Q170: 人民币 | R170: 358780.77 | S170: 2019-06-10 | T170: 2019-06-10T15:14:24 | U170: 中行港湾路支行 | V170: 636657738064 | W170: 中国工商银行东莞市麻涌支行 | X170: 2010027909200080233
B171: 1271363 | C171: 2019-06-28 | D171: 2019-06-28 | E171: 2019-6 | F171: 1 | G171: 1 | H171: 1 | I171: 应付款 | J171: (110)广州市生生物流有限公司 | K171: FK0000012666 | L171: P0000041542 | M171: 东莞市臻凯航运有限公司 | N171: 转帐 | P171: 电汇 | Q171: 人民币 | R171: 377289.97 | S171: 2019-06-10 | T171: 2019-06-10T15:06:31 | U171: 中行港湾路支行 | V171: 636657738064 | W171: 中国工商银行东莞市麻涌支行 | X171: 2010027909200080233
B172: 1270860 | C172: 2019-07-16 | D172: 2019-07-16 | E172: 2019-7 | F172: 1 | G172: 1 | H172: 1 | I172: 应付款 | J172: (110)广州市生生物流有限公司 | K172: FK0000012656 | L172: P0000043117 | M172: 广州军诚物流有限公司 | N172: 转帐 | P172: 电汇 | Q172: 人民币 | R172: 622627.77 | S172: 2019-06-10 | T172: 2019-06-12T12:06:58 | U172: 中行港湾路支行 | V172: 636657738064 | W172: 工行怡港支行 | X172: 3602088509200108415
B173: 1270251 | C173: 2019-07-12 | D173: 2019-07-12 | E173: 2019-7 | F173: 1 | G173: 1 | H173: 1 | I173: 应付款 | J173: (110)广州市生生物流有限公司 | K173: FK0000012647 | L173: P0000042850 | M173: 东莞市臻凯航运有限公司 | N173: 转帐 | P173: 电汇 | Q173: 人民币 | R173: 360969.16 | S173: 2019-06-10 | T173: 2019-06-17T11:16:05 | U173: 中行港湾路支行 | V173: 636657738064 | W173: 中国工商银行东莞市麻涌支行 | X173: 2010027909200080233
B174: 1266987 | C174: 2019-06-18 | D174: 2019-06-18 | E174: 2019-6 | F174: 1 | G174: 1 | H174: 1 | I174: 应付款 | J174: (110)广州市生生物流有限公司 | K174: FK0000012621 | L174: P0000040724 | M174: 中华人民共和国云浮海事局 | N174: 现金 | P174: 电汇 | Q174: 人民币 | R174: 1400 | S174: 2019-06-06 | T174: 2019-06-06T17:00:00 | U174: 中行港湾路支行 | V174: 636657738064
B175: 1266929 | C175: 2019-06-28 | D175: 2019-06-28 | E175: 2019-6 | F175: 1 | G175: 1 | H175: 1 | I175: 应付款 | J175: (110)广州市生生物流有限公司 | K175: FK0000012620 | L175: P0000041576 | M175: 佛山市易封锁塑料科技有限公司 | N175: 现金 | P175: 电汇 | Q175: 人民币 | R175: 6500 | S175: 2019-06-06 | T175: 2019-06-06T11:15:00 | U175: 中行港湾路支行 | V175: 636657738064
B176: 1264758 | C176: 2019-06-28 | D176: 2019-06-28 | E176: 2019-6 | F176: 1 | G176: 1 | H176: 1 | I176: 应付款 | J176: (110)广州市生生物流有限公司 | K176: FK0000012576 | L176: P0000041541 | M176: 广州恒冠物流有限公司 | N176: 转帐 | P176: 电汇 | Q176: 人民币 | R176: 9231.76 | S176: 2019-06-06 | T176: 2019-06-11T10:13:34 | U176: 中行港湾路支行 | V176: 636657738064 | W176: 中国工商银行石化支行 | X176: 3602004109200055470
B177: 1260126 | C177: 2019-06-21 | D177: 2019-06-21 | E177: 2019-6 | F177: 1 | G177: 1 | H177: 1 | I177: 应付款 | J177: (110)广州市生生物流有限公司 | K177: FK0000012503 | L177: P0000041005 | M177: 广州市永盈物流有限公司 | N177: 转帐 | P177: 电汇 | Q177: 人民币 | R177: 278895 | S177: 2019-06-04 | T177: 2019-06-04T16:41:26 | U177: 中行港湾路支行 | V177: 636657738064 | W177: 中国建设银行广州市黄埔支行 | X177: 44050147090109140501
B178: 1258924 | C178: 2019-06-17 | D178: 2019-06-17 | E178: 2019-6 | F178: 1 | G178: 1 | H178: 1 | I178: 应付款 | J178: (110)广州市生生物流有限公司 | K178: FK0000012480 | L178: P0000040617 | M178: 广州市和埔汽车运输有限公司 | N178: 转帐 | P178: 电汇 | Q178: 人民币 | R178: 53120 | S178: 2019-06-04 | T178: 2019-06-04T09:28:31 | U178: 中行港湾路支行 | V178: 636657738064 | W178: 交通银行黄埔支行 | X178: 441163506018010013256
B179: 1255895 | C179: 2019-06-03 | D179: 2019-06-03 | E179: 2019-6 | F179: 1 | G179: 1 | H179: 1 | I179: 应付款 | J179: (110)广州市生生物流有限公司 | K179: FK0000012446 | L179: P0000039359 | M179: 中国石化销售股份有限公司广东江门石油分公司 | N179: 转帐 | P179: 电汇 | Q179: 人民币 | R179: 65280 | S179: 2019-06-03 | T179: 2019-06-03T11:43:01 | U179: 中行港湾路支行 | V179: 636657738064 | W179: 建设银行江门象山支行 | X179: 44001670247053003091
B180: 1250998 | C180: 2019-06-03 | D180: 2019-06-03 | E180: 2019-6 | F180: 1 | G180: 1 | H180: 1 | I180: 应付款 | J180: (110)广州市生生物流有限公司 | K180: FK0000012428 | L180: P0000039360 | M180: 广州市众泰物流有限公司 | N180: 转帐 | P180: 电汇 | Q180: 人民币 | R180: 235630 | S180: 2019-05-31 | T180: 2019-06-03T11:15:00 | U180: 中行港湾路支行 | V180: 636657738064 | W180: 中国工商银行广州南沙自由贸易区支行 | X180: 3602177809100019807
B181: 1243727 | C181: 2019-06-03 | D181: 2019-06-03 | E181: 2019-6 | F181: 1 | G181: 1 | H181: 1 | I181: 应付款 | J181: (110)广州市生生物流有限公司 | K181: FK0000012405 | L181: P0000039361 | M181: 广州坚信集装箱维修服务有限公司 | N181: 现金 | P181: 电汇 | Q181: 人民币 | R181: 1410 | S181: 2019-05-31 | T181: 2019-05-31T09:26:49 | U181: 中行港湾路支行 | V181: 636657738064
B182: 1241746 | C182: 2019-07-02 | D182: 2019-07-02 | E182: 2019-7 | F182: 1 | G182: 1 | H182: 1 | I182: 应付款 | J182: (110)广州市生生物流有限公司 | K182: FK0000012390 | L182: P0000041780 | M182: 江门市恒鑫物流有限公司 | N182: 转帐 | P182: 电汇 | Q182: 人民币 | R182: 8400 | S182: 2019-05-30 | T182: 2019-06-28T16:19:45 | U182: 中行港湾路支行 | V182: 636657738064 | W182: 中国工商银行江门市新会支行 | X182: 2012003809022343803
B183: 1239589 | C183: 2019-06-17 | D183: 2019-06-17 | E183: 2019-6 | F183: 1 | G183: 1 | H183: 1 | I183: 应付款 | J183: (110)广州市生生物流有限公司 | K183: FK0000012373 | L183: P0000040616 | M183: 广州军诚物流有限公司 | N183: 转帐 | P183: 电汇 | Q183: 人民币 | R183: 423801 | S183: 2019-05-30 | T183: 2019-06-05T10:30:00 | U183: 中行港湾路支行 | V183: 636657738064 | W183: 工行怡港支行 | X183: 3602088509200108415
B184: 1236373 | C184: 2019-06-11 | D184: 2019-06-11 | E184: 2019-6 | F184: 1 | G184: 1 | H184: 1 | I184: 应付款 | J184: (110)广州市生生物流有限公司 | K184: FK0000012360 | L184: P0000040325 | M184: 广州市宇轩物流有限公司 | N184: 转帐 | P184: 电汇 | Q184: 人民币 | R184: 57770 | S184: 2019-05-29 | T184: 2019-05-29T17:26:42 | U184: 中行港湾路支行 | V184: 636657738064 | W184: 中国工商银行广州花城支行 | X184: 3602028509201064996
B185: 1230356 | C185: 2019-05-29 | D185: 2019-05-29 | E185: 2019-5 | F185: 1 | G185: 1 | H185: 1 | I185: 应付款 | J185: (110)广州市生生物流有限公司 | K185: FK0000012323 | L185: P0000039177 | M185: 广州市天邦物流服务有限公司 | N185: 转帐 | P185: 电汇 | Q185: 人民币 | R185: 1900 | S185: 2019-05-28 | T185: 2019-05-28T15:57:15 | U185: 中行港湾路支行 | V185: 636657738064 | W185: 工行广州黄埔支行 | X185: 3602001319200427856
B186: 1229165 | C186: 2019-06-28 | D186: 2019-06-28 | E186: 2019-6 | F186: 1 | G186: 1 | H186: 1 | I186: 应付款 | J186: (110)广州市生生物流有限公司 | K186: FK0000012311 | L186: P0000041580 | M186: 广州松木货运代理有限公司 | N186: 转帐 | P186: 电汇 | Q186: 人民币 | R186: 126880 | S186: 2019-05-28 | T186: 2019-05-28T10:15:41 | U186: 中行港湾路支行 | V186: 636657738064 | W186: 中国工商银行股份有限公司广州红山支行 | X186: 3602004809200064657
B187: 1226272 | C187: 2019-05-31 | D187: 2019-05-31 | E187: 2019-5 | F187: 1 | G187: 1 | H187: 1 | I187: 应付款 | J187: (110)广州市生生物流有限公司 | K187: FK0000012290 | L187: P0000039279 | M187: 珠海国际货柜码头（高栏）有限公司 | N187: 现金 | P187: 电汇 | Q187: 人民币 | R187: 897.2 | S187: 2019-05-27 | T187: 2019-05-27T15:58:11 | U187: 中行港湾路支行 | V187: 636657738064
B188: 1226256 | C188: 2019-05-29 | D188: 2019-05-29 | E188: 2019-5 | F188: 1 | G188: 1 | H188: 1 | I188: 应付款 | J188: (110)广州市生生物流有限公司 | K188: FK0000012289 | L188: P0000039147 | M188: 广东双水码头有限公司 | N188: 现金 | P188: 电汇 | Q188: 人民币 | R188: 600 | S188: 2019-05-27 | T188: 2019-05-27T15:57:56 | U188: 中行港湾路支行 | V188: 636657738064
B189: 1226244 | C189: 2019-05-29 | D189: 2019-05-29 | E189: 2019-5 | F189: 1 | G189: 1 | H189: 1 | I189: 应付款 | J189: (110)广州市生生物流有限公司 | K189: FK0000012288 | L189: P0000039148 | M189: 云浮新港港务有限公司 | N189: 现金 | P189: 电汇 | Q189: 人民币 | R189: 100 | S189: 2019-05-27 | T189: 2019-05-27T15:57:23 | U189: 中行港湾路支行 | V189: 636657738064
B190: 1224789 | C190: 2019-05-29 | D190: 2019-05-29 | E190: 2019-5 | F190: 1 | G190: 1 | H190: 1 | I190: 应付款 | J190: (110)广州市生生物流有限公司 | K190: FK0000012282 | L190: P0000039151 | M190: 招商局港口集团股份有限公司 | N190: 现金 | P190: 电汇 | Q190: 人民币 | R190: 80 | S190: 2019-05-27 | T190: 2019-05-27T15:27:59 | U190: 中行港湾路支行 | V190: 636657738064
B191: 1224780 | C191: 2019-05-29 | D191: 2019-05-29 | E191: 2019-5 | F191: 1 | G191: 1 | H191: 1 | I191: 应付款 | J191: (110)广州市生生物流有限公司 | K191: FK0000012280 | L191: P0000039150 | M191: 广东双水码头有限公司 | N191: 现金 | P191: 电汇 | Q191: 人民币 | R191: 120 | S191: 2019-05-27 | T191: 2019-05-27T15:25:02 | U191: 中行港湾路支行 | V191: 636657738064
B192: 1224090 | C192: 2019-05-29 | D192: 2019-05-29 | E192: 2019-5 | F192: 1 | G192: 1 | H192: 1 | I192: 应付款 | J192: (110)广州市生生物流有限公司 | K192: FK0000012276 | L192: P0000039180 | M192: 广州松木货运代理有限公司 | N192: 转帐 | P192: 电汇 | Q192: 人民币 | R192: 203265 | S192: 2019-05-27 | T192: 2019-05-27T15:08:53 | U192: 中行港湾路支行 | V192: 636657738064 | W192: 中国工商银行股份有限公司广州红山支行 | X192: 3602004809200064657
B193: 1223555 | C193: 2019-05-29 | D193: 2019-05-29 | E193: 2019-5 | F193: 1 | G193: 1 | H193: 1 | I193: 应付款 | J193: (110)广州市生生物流有限公司 | K193: FK0000012273 | L193: P0000039149 | M193: 中华人民共和国佛山海事局 | N193: 现金 | P193: 电汇 | Q193: 人民币 | R193: 844 | S193: 2019-05-27 | T193: 2019-05-27T14:59:52 | U193: 中行港湾路支行 | V193: 636657738064
B194: 1221121 | C194: 2019-05-29 | D194: 2019-05-29 | E194: 2019-5 | F194: 1 | G194: 1 | H194: 1 | I194: 应付款 | J194: (110)广州市生生物流有限公司 | K194: FK0000012255 | L194: P0000039155 | M194: 临时供应商 | N194: 现金 | P194: 电汇 | Q194: 人民币 | R194: 1200 | S194: 2019-05-27 | T194: 2019-05-27T11:47:28 | U194: 中行港湾路支行 | V194: 636657738064
B195: 1219729 | C195: 2019-05-31 | D195: 2019-05-31 | E195: 2019-5 | F195: 1 | G195: 1 | H195: 1 | I195: 应付款 | J195: (110)广州市生生物流有限公司 | K195: FK0000012250 | L195: P0000039281 | M195: 广州秋盈金属面处理有限公司 | N195: 转帐 | P195: 电汇 | Q195: 人民币 | R195: 7969 | S195: 2019-05-27 | T195: 2019-05-27T11:00:01 | U195: 中行港湾路支行 | V195: 636657738064 | W195: 工行黄埔支行 | X195: 3602001309200810953
B196: 1218304 | C196: 2019-05-28 | D196: 2019-05-28 | E196: 2019-5 | F196: 1 | G196: 1 | H196: 1 | I196: 应付款 | J196: (110)广州市生生物流有限公司 | K196: FK0000012246 | L196: P0000039110 | M196: 广州军诚物流有限公司 | N196: 转帐 | P196: 电汇 | Q196: 人民币 | R196: 661500 | S196: 2019-05-27 | T196: 2019-05-28T14:00:00 | U196: 中行港湾路支行 | V196: 636657738064 | W196: 工行怡港支行 | X196: 3602088509200108415
B197: 1217919 | C197: 2019-05-29 | D197: 2019-05-29 | E197: 2019-5 | F197: 1 | G197: 1 | H197: 1 | I197: 应付款 | J197: (110)广州市生生物流有限公司 | K197: FK0000012238 | L197: P0000039153 | M197: 广东海安水运技术服务有限公司茂名分公司 | N197: 现金 | P197: 电汇 | Q197: 人民币 | R197: 1875 | S197: 2019-05-27 | T197: 2019-05-27T09:30:05 | U197: 中行港湾路支行 | V197: 636657738064
B198: 1212053 | C198: 2019-05-29 | D198: 2019-05-29 | E198: 2019-5 | F198: 1 | G198: 1 | H198: 1 | I198: 应付款 | J198: (110)广州市生生物流有限公司 | K198: FK0000012213 | L198: P0000039154 | M198: 临时供应商 | N198: 现金 | P198: 电汇 | Q198: 人民币 | R198: 150 | S198: 2019-05-24 | T198: 2019-05-24T11:05:22 | U198: 中行港湾路支行 | V198: 636657738064
B199: 1209306 | C199: 2019-05-23 | D199: 2019-05-23 | E199: 2019-5 | F199: 1 | G199: 1 | H199: 1 | I199: 应付款 | J199: (110)广州市生生物流有限公司 | K199: FK0000012200 | L199: P0000038972 | M199: 深圳市俊励国际船舶代理有限公司广州分公司 | N199: 现金 | P199: 现金 | Q199: 人民币 | R199: 0 | S199: 2019-05-23 | T199: 2019-05-24T09:30:00
B200: 1209040 | C200: 2019-05-29 | D200: 2019-05-29 | E200: 2019-5 | F200: 1 | G200: 1 | H200: 1 | I200: 应付款 | J200: (110)广州市生生物流有限公司 | K200: FK0000012199 | L200: P0000039178 | M200: 广州港南沙港务有限公司 | N200: 现金 | P200: 电汇 | Q200: 人民币 | R200: 4610 | S200: 2019-05-23 | T200: 2019-05-24T10:00:00 | U200: 中行港湾路支行 | V200: 636657738064
... 204 more rows

Sheet 自有船维修成本明细
A1: 序号 | B1: 发生时间 | C1: 月份 | D1: 驳船名 | E1: 项目明细 | F1: 项目 | G1: 费用 | H1: 含税 | I1: 付款人 | J1: 经手人 | K1: 是否有发票 | L1: 是否有收据 | M1: 备注
A2: 5 | B2: 2019-01-11 | C2: 1月 | D2: 新通河3301 | E2: 3301番禺购买小艇 | F2: 物料 | G2: 4000 | H2: =G2 -> 4000 | I2: 劳锡源 | J2: 扬子勇 | L2: 无 | M2: 有替票
A3: 13 | B3: 2019-01-28 | C3: 1月 | D3: 新通河3301 | E3: 3301买冷却器总成2430 | F3: 物料 | G3: 2430 | H3: 2430 | I3: 劳锡源 | K3: 有
A4: 16 | B4: 2019-01-31 | C4: 1月 | D4: 新通河3301 | E4: 3301达海买配件 | F4: 物料 | G4: 3401 | H4: 3401 | I4: 劳锡源 | K4: 有 | M4: 达海
A5: 17 | B5: 2019-01-31 | C5: 1月 | D5: 新通河3301 | E5: 3301船员车费 | F5: 其他人工成本 | G5: 1500 | H5: 1500 | I5: 劳锡源 | J5: 梁保健 | L5: 无 | M5: 有替票
A6: 20 | B6: 2019-02-01 | C6: 2月 | D6: 新通河3301 | E6: 3301春节值班看船费 | F6: 其他人工成本 | G6: 3000 | H6: 3000 | I6: 劳锡源 | J6: 梁宇 | L6: 无 | M6: 有替票
A7: 26 | B7: 2019-02-18 | C7: 2月 | D7: 新通河3301 | E7: 3301买电池2个 | F7: 物料 | G7: 3020 | H7: 3020 | I7: 劳锡源 | K7: 有
A8: 32 | B8: 2019-02-22 | C8: 2月 | D8: 新通河3301 | E8: 3301新会买硅流原件（修充电机用） | F8: 维修 | G8: 210 | H8: =G8/0.94 -> 223.4042553 | I8: 梁宇 | L8: 有
A9: 35 | B9: 2019-02-27 | C9: 2月 | D9: 新通河3301 | E9: 3301新塘买二手船用发电机 | F9: 维修 | G9: 5900 | H9: =G9/0.94 -> 6276.595745 | I9: 劳锡源 | J9: 梁宇 | L9: 有
A10: 36 | B10: 2019-02-27 | C10: 2月 | D10: 新通河3301 | E10: 3301新塘买二手船用卷扬机、电缆 | F10: 维修 | G10: 2050 | H10: =G10/0.94 -> 2180.851064 | I10: 劳锡源 | J10: 梁宇 | L10: 有
A11: 40 | B11: 2019-03-06 | C11: 3月 | D11: 新通河3301 | E11: 3301新会修变压器 | F11: 物料 | G11: 500 | H11: =G11 -> 500 | I11: 劳锡源 | K11: 有
A12: 45 | B12: 2019-03-10 | C12: 3月 | D12: 新通河3301 | E12: 3301更换副机人工费。 | F12: 维修 | G12: 1500 | H12: =G12/0.94 -> 1595.744681 | I12: 劳锡源 | J12: 梁宇、关东健 | L12: 无
A13: 48 | B13: 2019-03-12 | C13: 3月 | D13: 新通河3301 | E13: 3301龙穴岛买小艇轴承 | F13: 维修 | G13: 98 | H13: =G13/0.94 -> 104.2553191 | I13: 梁宇 | L13: 有
A14: 55 | B14: 2019-03-13 | C14: 3月 | D14: 新通河3301 | E14: 3301买高频对讲机。 | F14: 物料 | G14: 760 | H14: =G14 -> 760 | I14: 劳锡源 | K14: 有
A15: 56 | B15: 2019-03-18 | C15: 3月 | D15: 新通河3301 | E15: 3301买断路器 | F15: 物料 | G15: 65.21 | H15: =G15 -> 65.21 | I15: 劳锡源 | K15: 有
A16: 61 | B16: 2019-03-24 | C16: 3月 | D16: 新通河3301 | E16: 3301买小艇主机零件 | F16: 维修 | G16: 424 | H16: =G16/0.94 -> 451.0638298 | I16: 梁宇 | L16: 有
A17: 62 | B17: 2019-03-24 | C17: 3月 | D17: 新通河3301 | E17: 3301买钻嘴 | F17: 物料 | G17: 14 | H17: =G17/0.94 -> 14.89361702 | I17: 梁宇 | L17: 有
A18: 66 | B18: 2019-04-04 | C18: 4月 | D18: 新通河3301 | E18: 3301新会买材料机油一批，淘宝买电缆、卷扬机控制箱 | F18: 物料 | G18: 1695.24 | H18: =G18 -> 1695.24 | I18: 劳锡源 | K18: 有
A19: 67 | B19: 2019-04-10 | C19: 4月 | D19: 新通河3301 | E19: 3301淘宝买交流接触器2个 | F19: 物料 | G19: 316 | H19: =G19/0.94 -> 336.1702128 | I19: 劳锡源 | J19: 梁宇 | L19: 有
A20: 70 | B20: 2019-04-12 | C20: 4月 | D20: 新通河3301 | E20: 3301购买日常维护油漆 | F20: 物料 | G20: 5580 | H20: =G20 -> 5580 | I20: 劳锡源 | K20: 有
A21: 71 | B21: 2019-04-12 | C21: 4月 | D21: 新通河3301 | E21: 3301维修硅正流充电机 | F21: 维修 | G21: 200 | H21: =G21/0.94 -> 212.7659574 | I21: 梁宇 | L21: 有
A22: 73 | B22: 2019-04-13 | C22: 4月 | D22: 新通河3301 | E22: 3301买极光灯 | F22: 维修 | G22: 14.8 | H22: 15.74468085 | I22: 梁宇 | L22: 有
A23: 74 | B23: 2019-04-13 | C23: 4月 | D23: 新通河3301 | E23: 3301买防尘口罩 | F23: 物料 | G23: 53 | H23: 56.38297872 | I23: 梁宇 | L23: 有
A24: 75 | B24: 2019-04-13 | C24: 4月 | D24: 新通河3301 | E24: 3301买劳工手套 | F24: 物料 | G24: 52 | H24: 55.31914894 | I24: 梁宇 | L24: 有
A25: 76 | B25: 2019-04-18 | C25: 4月 | D25: 新通河3301 | E25: 3301买防尘眼罩 | F25: 物料 | G25: 60 | H25: 63.82978723 | I25: 梁宇 | L25: 有
A26: 77 | B26: 2019-04-19 | C26: 4月 | D26: 新通河3301 | E26: 3301买扳手等工具 | F26: 物料 | G26: 86 | H26: 91.4893617 | I26: 梁宇 | L26: 有
A27: 78 | B27: 2019-04-19 | C27: 4月 | D27: 新通河3301 | E27: 3301买灯座 | F27: 物料 | G27: 20 | H27: 21.27659574 | I27: 梁宇 | L27: 有
A28: 80 | B28: 2019-04-19 | C28: 4月 | D28: 新通河3301 | E28: 3301淘宝买海淡水热交换器 | F28: 物料 | G28: 1400 | H28: =G28 -> 1400 | I28: 劳锡源 | K28: 有
A29: 81 | B29: 2019-04-19 | C29: 4月 | D29: 新通河3301 | E29: 3301新会上排中检打砂维修费 | F29: 维修 | G29: 23798.67 | H29: =G29 -> 23798.67 | I29: 生生 | K29: 有 | M29: 源标，每月摊23798.67元，共214188元
A30: 82 | B30: 2019-04-20 | C30: 4月 | D30: 新通河3301 | E30: 3301买丁基胶带 | F30: 物料 | G30: 50 | H30: =G30/0.94 -> 53.19148936 | I30: 梁宇 | L30: 有
A31: 83 | B31: 2019-04-20 | C31: 4月 | D31: 新通河3301 | E31: 3301买PVC修补胶水 | F31: 物料 | G31: 52 | H31: 55.31914894 | I31: 梁宇 | L31: 有
A32: 91 | B32: 2019-05-14 | C32: 5月 | D32: 新通河3301 | E32: 3301买断路器215元。 | F32: 物料 | G32: 215 | H32: =G32 -> 215 | I32: 劳锡源 | K32: 有
A33: 95 | B33: 2019-05-16 | C33: 5月 | D33: 新通河3301 | E33: 3301买电锤192元 | F33: 物料 | G33: 192 | H33: =G33 -> 192 | I33: 劳锡源 | K33: 有
A34: 97 | B34: 2019-05-20 | C34: 5月 | D34: 新通河3301 | E34: 3301淘宝买电锤 | F34: 物料 | G34: 129 | H34: =G34/0.94 -> 137.2340426 | I34: 劳锡源 | J34: 梁宇 | L34: 有
A35: 98 | B35: 2019-05-23 | C35: 5月 | D35: 新通河3301 | E35: 3301买维修配件 | F35: 物料 | G35: 3025 | H35: =G35 -> 3025 | I35: 劳锡源 | K35: 有
A36: 102 | B36: 2019-05-28 | C36: 5月 | D36: 新通河3301 | E36: 自有船3301买维护油漆费1810元 | F36: 物料 | G36: 1810 | H36: =G36 -> 1810 | I36: 劳锡源 | K36: 有 | M36: 秋盈
A37: 81 | B37: 2019-04-19 | C37: 5月 | D37: 新通河3301 | E37: 3301新会上排中检打砂维修费 | F37: 维修 | G37: 23798.67 | H37: =G37 -> 23798.67 | I37: 生生 | K37: 有 | M37: 源标，每月摊23798.67元，共214188元
B38: 2019-05-31 | C38: 6月 | D38: 新通河3301 | E38: 3301新会买油漆 | F38: 物料 | G38: 1980 | H38: =G38 -> 1980 | I38: 劳锡源 | K38: 有 | M38: 秋盈
B39: 2019-06-07 | C39: 6月 | D39: 新通河3301 | E39: 3301六都买活塞油壶插头等 | F39: 物料 | G39: 166.5 | H39: =G39/0.94 -> 177.1276596 | I39: 梁宇 | L39: 有
B40: 2019-06-07 | C40: 6月 | D40: 新通河3301 | E40: 3301六都滤清器防水插头油布等 | F40: 物料 | G40: 121.5 | H40: 129.2553191 | I40: 梁宇 | L40: 有
A41: 81 | B41: 2019-04-19 | C41: 6月 | D41: 新通河3301 | E41: 3301新会上排中检打砂维修费 | F41: 维修 | G41: 23798.67 | H41: =G41 -> 23798.67 | I41: 生生 | K41: 有 | M41: 源标，每月摊23798.67元，共214188元
B42: 2019-06-15 | C42: 6月 | D42: 新通河3301 | E42: 3301网上买砂轮机2台 | F42: 物料 | G42: 170 | H42: 170 | I42: 劳锡源 | K42: 有
B43: 2019-06-15 | C43: 6月 | D43: 新通河3301 | E43: 3301达海拿配件 | F43: 物料 | G43: 1784 | H43: 1784 | I43: 劳锡源 | K43: 有
B44: 2019-07-24 | C44: 7月 | D44: 新通河3301 | E44: 3301南沙买光管 | F44: 物料 | G44: 75 | H44: =G44/0.94 -> 79.78723404 | I44: 劳锡源 | L44: 有
B45: 2019-07-29 | C45: 7月 | D45: 新通河3301 | E45: 3301淘宝买断路器 | F45: 物料 | G45: 215 | H45: 228.7234043 | I45: 劳锡源 | L45: 有
A46: 81 | B46: 2019-04-19 | C46: 7月 | D46: 新通河3301 | E46: 3301新会上排中检打砂维修费 | F46: 维修 | G46: 23798.67 | H46: =G46 -> 23798.67 | I46: 生生 | K46: 有 | M46: 源标，每月摊23798.67元，共214188元
A47: 1 | B47: 2019-01-06 | C47: 1月 | D47: 新通河3303 | E47: 3303买3寸闪光器 | F47: 物料 | G47: 40 | H47: =G47 -> 40 | I47: 梁宇 | L47: 有 | M47: 有替票
A48: 7 | B48: 2019-01-16 | C48: 1月 | D48: 新通河3303 | E48: 3303广裕-理文挂钩费 | F48: 其他人工成本 | G48: 704 | H48: =G48/0.94 -> 748.9361702 | I48: 梁宇 | J48: 梁保华 | L48: 无
A49: 8 | B49: 2019-01-18 | C49: 1月 | D49: 新通河3303 | E49: 3303广裕-理文挂钩费 | F49: 其他人工成本 | G49: 471 | H49: =G49/0.94 -> 501.0638298 | I49: 梁宇 | J49: 梁保华 | L49: 无
A50: 12 | B50: 2019-01-23 | C50: 1月 | D50: 新通河3303 | E50: 3303办污油污水处理证明 | F50: 其他人工成本 | G50: 1800 | H50: =G50 -> 1800 | I50: 劳锡源 | L50: 有 | M50: 有替票
A51: 18 | B51: 2019-01-31 | C51: 1月 | D51: 新通河3303 | E51: 3303船员车费 | F51: 其他人工成本 | G51: 1500 | H51: =G51 -> 1500 | I51: 劳锡源 | J51: 梁保华 | L51: 无 | M51: 有替票
A52: 21 | B52: 2019-02-01 | C52: 2月 | D52: 新通河3303 | E52: 3303春节值班看船费 | F52: 其他人工成本 | G52: 3000 | H52: =G52/0.94 -> 3191.489362 | I52: 劳锡源 | J52: 梁保华 | L52: 无
A53: 24 | B53: 2019-02-16 | C53: 2月 | D53: 新通河3303 | E53: 3303六都买国旗，文具 | F53: 物料 | G53: 26 | H53: =G53/0.94 -> 27.65957447 | I53: 李昌森 | L53: 有
A54: 25 | B54: 2019-02-17 | C54: 2月 | D54: 新通河3303 | E54: 3303六都修稳压器集成板 | F54: 维修 | G54: 300 | H54: =G54/0.94 -> 319.1489362 | I54: 劳锡源 | J54: 梁保健 | L54: 有
A55: 27 | B55: 2019-02-18 | C55: 2月 | D55: 新通河3303 | E55: 3303买马达发电机1个 | F55: 物料 | G55: 525 | H55: =G55 -> 525 | I55: 劳锡源 | K55: 有
A56: 30 | B56: 2019-02-21 | C56: 2月 | D56: 新通河3303 | E56: 3303在大盛充氧气 | F56: 物料 | G56: 100 | H56: =G56/0.94 -> 106.3829787 | I56: 劳锡源 | J56: 梁保健 | L56: 有
A57: 31 | B57: 2019-02-22 | C57: 2月 | D57: 新通河3303 | E57: 3303新会买锡丝 | F57: 物料 | G57: 80 | H57: 85.10638298 | I57: 梁宇 | L57: 有
A58: 33 | B58: 2019-02-23 | C58: 2月 | D58: 新通河3303 | E58: 3303新会修驾驶室方向盘 | F58: 维修 | G58: 800 | H58: 851.0638298 | I58: 劳锡源 | J58: 梁保健 | L58: 有
A59: 34 | B59: 2019-02-25 | C59: 2月 | D59: 新通河3303 | E59: 3303新会买凤焊割枪、割嘴、焊条、油漆等 | F59: 维修 | G59: 217.5 | H59: 231.3829787 | I59: 劳锡源 | J59: 梁保健 | L59: 有
A60: 37 | B60: 2019-03-01 | C60: 3月 | D60: 新通河3303 | E60: 3303在双水买印泥订书机 | F60: 物料 | G60: 12 | H60: 12.76595745 | I60: 李昌森 | L60: 有
A61: 51 | B61: 2019-03-17 | C61: 3月 | D61: 新通河3303 | E61: 3303新会买倒顺开关煤气阀筒夹 | F61: 物料 | G61: 92 | H61: 97.87234043 | I61: 李昌森 | L61: 有
A62: 52 | B62: 2019-03-17 | C62: 3月 | D62: 新通河3303 | E62: 3303新会买胶手套 | F62: 物料 | G62: 50 | H62: 53.19148936 | I62: 李昌森 | L62: 有
A63: 53 | B63: 2019-03-17 | C63: 3月 | D63: 新通河3303 | E63: 3303新会充氧气 | F63: 物料 | G63: 80 | H63: 85.10638298 | I63: 李昌森 | L63: 有
A64: 59 | B64: 2019-03-22 | C64: 3月 | D64: 新通河3303 | E64: 3303买充电机（淘宝） | F64: 维修 | G64: 659.64 | H64: 701.7446809 | I64: 劳锡源 | J64: 梁保健 | L64: 有
A65: 63 | B65: 2019-03-26 | C65: 3月 | D65: 新通河3303 | E65: 3303、08买船用探照灯 | F65: 物料 | G65: 432.5 | H65: =G65 -> 432.5 | I65: 劳锡源 | K65: 有
A66: 65 | B66: 2019-04-04 | C66: 4月 | D66: 新通河3303 | E66: 3303买淡水箱、水泵总成、维修电机 | F66: 维修 | G66: 3350 | H66: =G66 -> 3350 | I66: 劳锡源 | K66: 有
A67: 87 | B67: 2019-05-03 | C67: 5月 | D67: 新通河3303 | E67: 3303云浮买滑轮1个 | F67: 物料 | G67: 65 | H67: =G67/0.94 -> 69.14893617 | I67: 李昌森 | L67: 有
A68: 88 | B68: 2019-05-08 | C68: 5月 | D68: 新通河3303 | E68: 3303买电缆 | F68: 物料 | G68: 209.09 | H68: =G68 -> 209.09 | I68: 劳锡源 | K68: 有
A69: 93 | B69: 2019-05-14 | C69: 5月 | D69: 新通河3303 | E69: 3303买灭火器4个 | F69: 物料 | G69: 166.76 | H69: 166.76 | I69: 劳锡源 | K69: 有
A70: 94 | B70: 2019-05-14 | C70: 5月 | D70: 新通河3303 | E70: 3-4月达海配件费 | F70: 物料 | G70: 1257 | H70: 1257 | I70: 劳锡源 | K70: 有
A71: 103 | B71: 2019-05-28 | C71: 5月 | D71: 新通河3303 | E71: 自有船3303买维护油漆费2878元 | F71: 物料 | G71: 2878 | H71: 2878 | I71: 劳锡源 | K71: 有 | M71: 秋盈
B72: 2019-06-03 | C72: 6月 | D72: 新通河3303 | E72: 3301新会买液压油 | F72: 物料 | G72: 1065 | H72: 1065 | I72: 劳锡源 | K72: 有 | M72: 秋盈
B73: 2019-06-11 | C73: 6月 | D73: 新通河3303 | E73: 3303南沙换排气管修水箱 | F73: 维修 | G73: 2330 | H73: =G73/0.94 -> 2478.723404 | I73: 劳锡源 | J73: 梁保健 | L73: 有
B74: 2019-06-14 | C74: 6月 | D74: 新通河3303 | E74: 3303麻涌左主机中修 | F74: 维修 | G74: 9390 | H74: =G74/0.94 -> 9989.361702 | I74: 劳锡源 | J74: 梁保健 | L74: 有
B75: 2019-06-15 | C75: 6月 | D75: 新通河3303 | E75: 3303修方向盘肽泵 | F75: 维修 | G75: 4500 | H75: 4787.234043 | I75: 劳锡源 | J75: 梁保健 | L75: 有
B76: 2019-06-15 | C76: 6月 | D76: 新通河3303 | E76: 3303网上买电器插座 | F76: 物料 | G76: 248.3 | H76: 248.3 | I76: 劳锡源 | K76: 有
B77: 2019-06-15 | C77: 6月 | D77: 新通河3303 | E77: 3303达海拿配件 | F77: 物料 | G77: 177.5 | H77: 177.5 | I77: 劳锡源 | K77: 有
B78: 2019-07-11 | C78: 7月 | D78: 新通河3303 | E78: 3303昆达办理磁罗经自查检修 | F78: 物料 | G78: 850 | H78: =G78 -> 850 | I78: 生生 | J78: 劳锡源 | K78: 有
B79: 2019-07-17 | C79: 7月 | D79: 新通河3303 | E79: 3303新会买液压油 | F79: 物料 | G79: 1250 | H79: =G79 -> 1250 | I79: 劳锡源 | K79: 有
B80: 2019-07-23 | C80: 7月 | D80: 新通河3303 | E80: 3303淘宝买节能灯 | F80: 物料 | G80: 127.4 | H80: 127.4 | I80: 劳锡源 | K80: 有
B81: 2019-07-24 | C81: 7月 | D81: 新通河3303 | E81: 3303黄埔买垃圾记录本 | F81: 物料 | G81: 50 | H81: =G81/0.94 -> 53.19148936 | I81: 劳锡源 | L81: 有
B82: 2019-07-24 | C82: 7月 | D82: 新通河3303 | E82: 3303新会源标船厂修桅杆 | F82: 维修 | G82: 2496 | H82: =G82 -> 2496 | I82: 生生 | K82: 有
B83: 2019-07-30 | C83: 7月 | D83: 新通河3303 | E83: 3303六都买密封胶水 | F83: 物料 | G83: 27 | H83: =G83/0.94 -> 28.72340426 | I83: 梁保健 | L83: 有
B84: 2019-07-30 | C84: 7月 | D84: 新通河3303 | E84: 3303在淘宝买冷却器进油管 | F84: 物料 | G84: 220 | H84: 234.0425532 | I84: 梁保健 | L84: 无
A85: 2 | B85: 2019-01-10 | C85: 1月 | D85: 新通河3308 | E85: 3308年检业务费 | F85: 其他人工成本 | G85: 1000 | H85: 1000 | I85: 劳锡源 | L85: 无 | M85: 有替票
A86: 3 | B86: 2019-01-10 | C86: 1月 | D86: 新通河3308 | E86: 3308年检业务餐费 | F86: 其他人工成本 | G86: 200 | H86: 200 | I86: 劳锡源 | L86: 有 | M86: 有替票
A87: 4 | B87: 2019-01-11 | C87: 1月 | D87: 新通河3308 | E87: 3308买机油2桶 | F87: 物料 | G87: 390 | H87: 390 | I87: 冯华雄 | L87: 有 | M87: 有替票
A88: 6 | B88: 2019-01-11 | C88: 1月 | D88: 新通河3308 | E88: 3308番禺上排维修尾轴 | F88: 维修 | G88: 17880 | H88: =G88/0.94 -> 19021.2766 | I88: 劳锡源 | J88: 冯华雄 | L88: 有
A89: 9 | B89: 2019-01-19 | C89: 1月 | D89: 新通河3308 | E89: 3308江门买螺丝介子等 | F89: 物料 | G89: 208 | H89: =G89 -> 208 | I89: 冯华雄 | J89: 谭灶练 | L89: 有 | M89: 有替票
A90: 10 | B90: 2019-01-19 | C90: 1月 | D90: 新通河3308 | E90: 3308江门买工具 | F90: 物料 | G90: 25 | H90: 25 | I90: 冯华雄 | J90: 谭灶练 | L90: 有 | M90: 有替票
A91: 11 | B91: 2019-01-23 | C91: 1月 | D91: 新通河3308 | E91: 3308办污油污水处理证明 | F91: 其他人工成本 | G91: 1800 | H91: 1800 | I91: 劳锡源 | M91: 有替票
A92: 14 | B92: 2019-01-29 | C92: 1月 | D92: 新通河3308 | E92: 3308买油嘴189 | F92: 物料 | G92: 189 | H92: 189 | I92: 劳锡源 | K92: 有
A93: 15 | B93: 2019-01-31 | C93: 1月 | D93: 新通河3308 | E93: 3308买物料 | F93: 物料 | G93: 630 | H93: 630 | I93: 劳锡源 | K93: 有
A94: 19 | B94: 2019-01-31 | C94: 1月 | D94: 新通河3308 | E94: 3308船员车费 | F94: 其他人工成本 | G94: 1500 | H94: 1500 | I94: 劳锡源 | J94: 冯华雄 | L94: 无 | M94: 有替票
A95: 22 | B95: 2019-02-01 | C95: 2月 | D95: 新通河3308 | E95: 3308春节值班看船费 | F95: 其他人工成本 | G95: 3000 | H95: =G95/0.94 -> 3191.489362 | I95: 劳锡源 | J95: 冯华雄 | L95: 无
A96: 23 | B96: 2019-02-10 | C96: 2月 | D96: 新通河3308 | E96: 3308新船员买日用品（被铺、蚊帐） | F96: 物料 | G96: 950 | H96: =G96 -> 950 | I96: 劳锡源 | J96: 麦庆松 | L96: 有 | M96: 有替票
A97: 28 | B97: 2019-02-19 | C97: 2月 | D97: 新通河3308 | E97: 3308买纱布、棉手袜 | F97: 物料 | G97: 20.5 | H97: =G97/0.94 -> 21.80851064 | I97: 冯华雄 | L97: 有
A98: 29 | B98: 2019-02-19 | C98: 2月 | D98: 新通河3308 | E98: 3308新会买倒顺开关 | F98: 物料 | G98: 68 | H98: 72.34042553 | I98: 冯华雄 | L98: 有
A99: 38 | B99: 2019-03-01 | C99: 3月 | D99: 新通河3308 | E99: 3308云浮买消声器 | F99: 物料 | G99: 28 | H99: 29.78723404 | I99: 冯华雄 | L99: 有
A100: 39 | B100: 2019-03-02 | C100: 3月 | D100: 新通河3308 | E100: 3308云浮修铜头 | F100: 维修 | G100: 550 | H100: 585.106383 | I100: 冯华雄 | L100: 有
A101: 41 | B101: 2019-03-08 | C101: 3月 | D101: 新通河3308 | E101: 3308买桅杆灯、拉码、轴承等 | F101: 物料 | G101: 790 | H101: 840.4255319 | I101: 冯华雄 | L101: 有
A102: 42 | B102: 2019-03-08 | C102: 3月 | D102: 新通河3308 | E102: 3308买电缆、水管、插座 | F102: 物料 | G102: 368 | H102: 391.4893617 | I102: 冯华雄 | L102: 有
A103: 43 | B103: 2019-03-09 | C103: 3月 | D103: 新通河3308 | E103: 3308买滑轮 | F103: 物料 | G103: 100 | H103: 106.3829787 | I103: 冯华雄 | L103: 有
A104: 44 | B104: 2019-03-09 | C104: 3月 | D104: 新通河3308 | E104: 3308买拉图 | F104: 物料 | G104: 80 | H104: 85.10638298 | I104: 冯华雄 | L104: 有
A105: 46 | B105: 2019-03-10 | C105: 3月 | D105: 新通河3308 | E105: 3308买雨衣两套 | F105: 物料 | G105: 120 | H105: 127.6595745 | I105: 冯华雄 | L105: 有
A106: 47 | B106: 2019-03-10 | C106: 3月 | D106: 新通河3308 | E106: 3308买原件 | F106: 物料 | G106: 16 | H106: 17.0212766 | I106: 冯华雄 | L106: 有
A107: 49 | B107: 2019-03-13 | C107: 3月 | D107: 新通河3308 | E107: 3308买LED船用灯泡。 | F107: 物料 | G107: 189.9 | H107: =G107 -> 189.9 | I107: 劳锡源 | K107: 有
A108: 50 | B108: 2019-03-15 | C108: 3月 | D108: 新通河3308 | E108: 3308买灯泡 | F108: 物料 | G108: 12 | H108: =G108/0.94 -> 12.76595745 | I108: 冯华雄 | L108: 有
A109: 54 | B109: 2019-03-17 | C109: 3月 | D109: 新通河3308 | E109: 3308双水充氧气、车费 | F109: 物料 | G109: 80 | H109: =G109/0.94 -> 85.10638298 | I109: 冯华雄 | L109: 有
A110: 57 | B110: 2019-03-18 | C110: 3月 | D110: 新通河3308 | E110: 3308双水找师傅上船修发电机电球 | F110: 维修 | G110: 500 | H110: =G110/0.94 -> 531.9148936 | I110: 冯华雄 | L110: 无
A111: 58 | B111: 2019-03-22 | C111: 3月 | D111: 新通河3308 | E111: 3308新会买5桶机油 | F111: 物料 | G111: 3100 | H111: =G111 -> 3100 | I111: 劳锡源 | K111: 有
A112: 60 | B112: 2019-03-22 | C112: 3月 | D112: 新通河3308 | E112: 3303、08买电喇叭 | F112: 维修 | G112: 70 | H112: =G112/0.94 -> 74.46808511 | I112: 劳锡源 | J112: 谭 | L112: 有
A113: 64 | B113: 2019-03-26 | C113: 3月 | D113: 新通河3308 | E113: 3303、08买船用探照灯 | F113: 物料 | G113: 432.5 | H113: =G113 -> 432.5 | I113: 劳锡源 | K113: 有
A114: 68 | B114: 2019-04-10 | C114: 4月 | D114: 新通河3308 | E114: 3308买电池水 | F114: 物料 | G114: 50 | H114: =G114/0.94 -> 53.19148936 | I114: 劳锡源 | J114: 冯华雄 | L114: 有
A115: 69 | B115: 2019-04-10 | C115: 4月 | D115: 新通河3308 | E115: 3308买砂轮碟 | F115: 物料 | G115: 52.5 | H115: 55.85106383 | I115: 劳锡源 | J115: 冯华雄 | L115: 有
A116: 79 | B116: 2019-04-19 | C116: 4月 | D116: 新通河3308 | E116: 3308买工具和手套 | F116: 物料 | G116: 49.5 | H116: 52.65957447 | I116: 冯华雄 | L116: 有
A117: 84 | B117: 2019-04-24 | C117: 4月 | D117: 新通河3308 | E117: 3308买减压阀 | F117: 物料 | G117: 15 | H117: 15.95744681 | I117: 冯华雄 | L117: 有
A118: 85 | B118: 2019-04-24 | C118: 4月 | D118: 新通河3308 | E118: 3308复印自查表 | F118: 物料 | G118: 25 | H118: 26.59574468 | I118: 冯华雄 | L118: 有
A119: 86 | B119: 2019-04-24 | C119: 4月 | D119: 新通河3308 | E119: 3308买破漏胶 | F119: 物料 | G119: 24 | H119: 25.53191489 | I119: 冯华雄 | L119: 有
A120: 89 | B120: 2019-05-09 | C120: 5月 | D120: 新通河3308 | E120: 3308买水路运单 | F120: 物料 | G120: 25 | H120: 26.59574468 | I120: 劳锡源 | L120: 有
A121: 90 | B121: 2019-05-13 | C121: 5月 | D121: 新通河3308 | E121: 3308淘宝买望远镜 | F121: 物料 | G121: 38 | H121: 40.42553191 | I121: 劳锡源 | J121: 冯华雄 | L121: 有
A122: 92 | B122: 2019-05-14 | C122: 5月 | D122: 新通河3308 | E122: 3308灭火器2个。3308买望远镜37.24元。 | F122: 物料 | G122: 120.62 | H122: =G122 -> 120.62 | I122: 劳锡源 | K122: 有
A123: 96 | B123: 2019-05-16 | C123: 5月 | D123: 新通河3308 | E123: 3308买对讲机2台1220元 | F123: 物料 | G123: 1220 | H123: 1220 | I123: 劳锡源 | K123: 有
A124: 99 | B124: 2019-05-24 | C124: 5月 | D124: 新通河3308 | E124: 3308航行日志，轮机日志，3303货物清单 | F124: 物料 | G124: 150 | H124: 150 | I124: 张展鹏 | K124: 有
A125: 100 | B125: 2019-05-27 | C125: 5月 | D125: 新通河3308 | E125: 驳船钢丝轮4个 | F125: 物料 | G125: 1200 | H125: 1200 | I125: 张展鹏 | K125: 有
A126: 101 | B126: 2019-05-28 | C126: 5月 | D126: 新通河3308 | E126: 自有船3308买维护油漆费33281元 | F126: 物料 | G126: 3281 | H126: 3281 | I126: 劳锡源 | K126: 有 | M126: 秋盈
B127: 2019-06-01 | C127: 6月 | D127: 新通河3308 | E127: 3308买铁线10.5斤 | F127: 物料 | G127: 42 | H127: =G127/0.94 -> 44.68085106 | I127: 冯华雄 | L127: 有
B128: 2019-06-07 | C128: 6月 | D128: 新通河3308 | E128: 3308买通风扇 | F128: 物料 | G128: 220 | H128: 234.0425532 | I128: 冯华雄 | L128: 有
B129: 2019-06-07 | C129: 6月 | D129: 新通河3308 | E129: 3308买生料带 | F129: 物料 | G129: 33 | H129: 35.10638298 | I129: 冯华雄 | L129: 有
B130: 2019-06-07 | C130: 6月 | D130: 新通河3308 | E130: 3308换油嘴6支 | F130: 维修 | G130: 720 | H130: 765.9574468 | I130: 冯华雄 | L130: 有
B131: 2019-06-10 | C131: 6月 | D131: 新通河3308 | E131: 3308买敲锈锤、国旗青壳纸等 | F131: 物料 | G131: 291 | H131: 309.5744681 | I131: 冯华雄 | L131: 有
B132: 2019-06-11 | C132: 6月 | D132: 新通河3308 | E132: 3308新会两台主机中修 | F132: 维修 | G132: 26000 | H132: 27659.57447 | I132: 劳锡源 | J132: 冯华雄 | L132: 有
B133: 2019-06-27 | C133: 6月 | D133: 新通河3308 | E133: 3308高栏买轴承 | F133: 物料 | G133: 45 | H133: 47.87234043 | I133: 冯华雄 | L133: 有
B134: 2019-06-27 | C134: 6月 | D134: 新通河3308 | E134: 3308达海拿配件 | F134: 物料 | G134: 3642 | H134: 3642 | I134: 劳锡源 | J134: 冯华雄 | K134: 有
B135: 2019-07-11 | C135: 7月 | D135: 新通河3308 | E135: 3308昆达办理磁罗经自查检修 | F135: 物料 | G135: 850 | H135: =G135 -> 850 | I135: 生生 | J135: 劳锡源 | K135: 有
B136: 2019-07-28 | C136: 7月 | D136: 新通河3308 | E136: 3308在新港修主机液压泵 | F136: 维修 | G136: 1500 | H136: =G136/0.94 -> 1595.744681 | I136: 冯华雄 | J136: 冯华雄 | L136: 有
B137: 2019-07-24 | C137: 7月 | D137: 新通河3308 | E137: 3303在新港兴海拿机油等物料 | F137: 物料 | G137: 2953 | H137: =G137 -> 2953 | I137: 冯华雄 | J137: 冯华雄 | K137: 有
A138: 72 | B138: 2019-04-12 | C138: 4月 | D138: 内部 | E138: 买封条2000条胶封 | F138: 其他人工成本 | G138: 1800 | H138: 1800 | I138: 潘锦洪 | K138: 有
A139: 81 | B139: 2019-04-19 | C139: 8月 | D139: 新通河3301 | E139: 3301新会上排中检打砂维修费 | F139: 维修 | G139: 23798.67 | H139: 23798.67 | I139: 生生 | K139: 有 | M139: 源标，每月摊23798.67元，共214188元
A140: 81 | B140: 2019-04-19 | C140: 9月 | D140: 新通河3301 | E140: 3301新会上排中检打砂维修费 | F140: 维修 | G140: 23798.67 | H140: 23798.67 | I140: 生生 | K140: 有 | M140: 源标，每月摊23798.67元，共214188元
A141: 81 | B141: 2019-04-19 | C141: 10月 | D141: 新通河3301 | E141: 3301新会上排中检打砂维修费 | F141: 维修 | G141: 23798.67 | H141: 23798.67 | I141: 生生 | K141: 有 | M141: 源标，每月摊23798.67元，共214188元
A142: 81 | B142: 2019-04-19 | C142: 11月 | D142: 新通河3301 | E142: 3301新会上排中检打砂维修费 | F142: 维修 | G142: 23798.67 | H142: 23798.67 | I142: 生生 | K142: 有 | M142: 源标，每月摊23798.67元，共214188元
A143: 81 | B143: 2019-04-19 | C143: 12月 | D143: 新通河3301 | E143: 3301新会上排中检打砂维修费 | F143: 维修 | G143: 23798.67 | H143: 23798.67 | I143: 生生 | K143: 有 | M143: 源标，每月摊23798.67元，共214188元

Sheet 自有船总成本
A1: 月份 | B1: 船名 | C1: 项目 | D1: 金额
A2: 1月 | B2: 新通河3301 | C2: 其他人工成本 | D2: 1500
A3: 1月 | B3: 新通河3303 | C3: 其他人工成本 | D3: 4550
A4: 1月 | B4: 新通河3308 | C4: 其他人工成本 | D4: 4500
A5: 2月 | B5: 新通河3301 | C5: 其他人工成本 | D5: 3000
A6: 2月 | B6: 新通河3303 | C6: 其他人工成本 | D6: 3191.489362
A7: 2月 | B7: 新通河3308 | C7: 其他人工成本 | D7: 3191.489362 | H7: 求和项:金额 | I7: 列标签
A8: 1月 | B8: 新通河3301 | C8: 人工成本 | D8: 53664.06 | H8: 行标签 | I8: 新通河3301 | J8: 新通河3303 | K8: 新通河3308 | L8: 总计
A9: 1月 | B9: 新通河3303 | C9: 人工成本 | D9: 59068.92 | H9: 其他人工成本 | I9: 4500 | J9: 7741.489362 | K9: 7691.489362 | L9: 19932.97872
A10: 1月 | B10: 新通河3308 | C10: 人工成本 | D10: 49096.06 | H10: 1月 | I10: 1500 | J10: 4550 | K10: 4500 | L10: 10550
A11: 2月 | B11: 新通河3301 | C11: 人工成本 | D11: 45607.68 | H11: 2月 | I11: 3000 | J11: 3191.489362 | K11: 3191.489362 | L11: 9382.978723
A12: 2月 | B12: 新通河3303 | C12: 人工成本 | D12: 30116.05 | H12: 人工成本 | I12: 333556.94 | J12: 290787.07 | K12: 271654.75 | L12: 895998.76
A13: 2月 | B13: 新通河3308 | C13: 人工成本 | D13: 28867.48 | H13: 1月 | I13: 53664.06 | J13: 59068.92 | K13: 49096.06 | L13: 161829.04
A14: 3月 | B14: 新通河3301 | C14: 人工成本 | D14: 45972.3 | H14: 2月 | I14: 45607.68 | J14: 30116.05 | K14: 28867.48 | L14: 104591.21
A15: 3月 | B15: 新通河3303 | C15: 人工成本 | D15: 41427.82 | H15: 3月 | I15: 45972.3 | J15: 41427.82 | K15: 38712.16 | L15: 126112.28
A16: 3月 | B16: 新通河3308 | C16: 人工成本 | D16: 38712.16 | H16: 4月 | I16: 50334.6 | J16: 41253.14 | K16: 42428.07 | L16: 134015.81
A17: 4月 | B17: 新通河3301 | C17: 人工成本 | D17: 50334.6 | H17: 5月 | I17: 45982.3 | J17: 39327.82 | K17: 37607.54 | L17: 122917.66
A18: 4月 | B18: 新通河3303 | C18: 人工成本 | D18: 41253.14 | H18: 6月 | I18: 45962.3 | J18: 39858.78 | K18: 37365.22 | L18: 123186.3
A19: 4月 | B19: 新通河3308 | C19: 人工成本 | D19: 42428.07 | H19: 7月 | I19: 46033.7 | J19: 39734.54 | K19: 37578.22 | L19: 123346.46
A20: 5月 | B20: 新通河3301 | C20: 人工成本 | D20: 45982.3 | H20: 维修 | I20: 225248.4555 | J20: 25204.65957 | K20: 50234.04255 | L20: 300687.1577
A21: 5月 | B21: 新通河3303 | C21: 人工成本 | D21: 39327.82 | H21: 10月 | I21: 23798.67 | L21: 23798.67
A22: 5月 | B22: 新通河3308 | C22: 人工成本 | D22: 37607.54 | H22: 11月 | I22: 23798.67 | L22: 23798.67
A23: 6月 | B23: 新通河3301 | C23: 人工成本 | D23: 45962.3 | H23: 12月 | I23: 23798.67 | L23: 23798.67
A24: 6月 | B24: 新通河3303 | C24: 人工成本 | D24: 39858.78 | H24: 1月 | K24: 19021.2766 | L24: 19021.2766
A25: 6月 | B25: 新通河3308 | C25: 人工成本 | D25: 37365.22 | H25: 2月 | I25: 8680.851064 | J25: 1401.595745 | L25: 10082.44681
A26: 1月 | B26: 新通河3308 | C26: 维修 | D26: 19021.2766 | H26: 3月 | I26: 2151.06383 | J26: 701.7446809 | K26: 1191.489362 | L26: 4044.297872
A27: 2月 | B27: 新通河3301 | C27: 维修 | D27: 8680.851064 | H27: 4月 | I27: 24027.18064 | J27: 3350 | L27: 27377.18064
A28: 2月 | B28: 新通河3303 | C28: 维修 | D28: 1401.595745 | H28: 5月 | I28: 23798.67 | L28: 23798.67
A29: 3月 | B29: 新通河3301 | C29: 维修 | D29: 2151.06383 | H29: 6月 | I29: 23798.67 | J29: 17255.31915 | K29: 28425.53191 | L29: 69479.52106
A30: 3月 | B30: 新通河3303 | C30: 维修 | D30: 701.7446809 | H30: 7月 | I30: 23798.67 | J30: 2496 | K30: 1595.744681 | L30: 27890.41468
A31: 3月 | B31: 新通河3308 | C31: 维修 | D31: 1191.489362 | H31: 8月 | I31: 23798.67 | L31: 23798.67
A32: 4月 | B32: 新通河3301 | C32: 维修 | D32: 24027.18064 | H32: 9月 | I32: 23798.67 | L32: 23798.67
A33: 4月 | B33: 新通河3303 | C33: 维修 | D33: 3350 | H33: 物料 | I33: 33527.45 | J33: 10079.74149 | K33: 22288.99872 | L33: 65896.19021
A34: 5月 | B34: 新通河3301 | C34: 维修 | D34: 23798.67 | H34: 1月 | I34: 9831 | J34: 40 | K34: 1442 | L34: 11313
A35: 6月 | B35: 新通河3301 | C35: 维修 | D35: 23798.67 | H35: 2月 | I35: 3020 | J35: 744.1489362 | K35: 1044.148936 | L35: 4808.297872
A36: 6月 | B36: 新通河3303 | C36: 维修 | D36: 17255.31915 | H36: 3月 | I36: 1340.103617 | J36: 681.4361702 | K36: 5418.144681 | L36: 7439.684468
A37: 6月 | B37: 新通河3308 | C37: 维修 | D37: 28425.53191 | H37: 4月 | I37: 9408.218723 | K37: 229.787234 | L37: 9638.005957
A38: 7月 | B38: 新通河3301 | C38: 维修 | D38: 23798.67 | H38: 5月 | I38: 5379.234043 | J38: 4579.998936 | K38: 6038.641277 | L38: 15997.87426
A39: 7月 | B39: 新通河3303 | C39: 维修 | D39: 2496 | H39: 6月 | I39: 4240.382979 | J39: 1490.8 | K39: 4313.276596 | L39: 10044.45957
A40: 7月 | B40: 新通河3308 | C40: 维修 | D40: 1595.744681 | H40: 7月 | I40: 308.5106383 | J40: 2543.357447 | K40: 3803 | L40: 6654.868085
A41: 8月 | B41: 新通河3301 | C41: 维修 | D41: 23798.67 | H41: 油耗 | I41: 287042.09 | J41: 232549.02 | K41: 171456.9 | L41: 691048.01
A42: 9月 | B42: 新通河3301 | C42: 维修 | D42: 23798.67 | H42: 1月 | I42: 41386.75 | J42: 39224.39 | K42: 13731.7 | L42: 94342.84
A43: 10月 | B43: 新通河3301 | C43: 维修 | D43: 23798.67 | H43: 2月 | I43: 36384.22 | J43: 25002.34 | K43: 19191.94 | L43: 80578.5
A44: 11月 | B44: 新通河3301 | C44: 维修 | D44: 23798.67 | H44: 3月 | I44: 32978.35 | J44: 29800.31 | K44: 28127.63 | L44: 90906.29
A45: 12月 | B45: 新通河3301 | C45: 维修 | D45: 23798.67 | H45: 4月 | I45: 22426.36 | J45: 35380.63 | K45: 21995.66 | L45: 79802.65
A46: 1月 | B46: 新通河3301 | C46: 物料 | D46: 9831 | H46: 5月 | I46: 39075.35 | J46: 27287.05 | K46: 24930 | L46: 91292.4
A47: 1月 | B47: 新通河3303 | C47: 物料 | D47: 40 | H47: 6月 | I47: 63003.13 | J47: 26178.22 | K47: 29215.96 | L47: 118397.31
A48: 1月 | B48: 新通河3308 | C48: 物料 | D48: 1442 | H48: 7月 | I48: 51787.93 | J48: 49676.08 | K48: 34264.01 | L48: 135728.02
A49: 2月 | B49: 新通河3301 | C49: 物料 | D49: 3020 | H49: 折旧费 | I49: 451856.76 | J49: 171000 | K49: 172899.96 | L49: 795756.72
A50: 2月 | B50: 新通河3303 | C50: 物料 | D50: 744.1489362 | H50: 10月 | I50: 37654.73 | J50: 14250 | K50: 14408.33 | L50: 66313.06
A51: 2月 | B51: 新通河3308 | C51: 物料 | D51: 1044.148936 | H51: 11月 | I51: 37654.73 | J51: 14250 | K51: 14408.33 | L51: 66313.06
A52: 3月 | B52: 新通河3301 | C52: 物料 | D52: 1340.103617 | H52: 12月 | I52: 37654.73 | J52: 14250 | K52: 14408.33 | L52: 66313.06
A53: 3月 | B53: 新通河3303 | C53: 物料 | D53: 681.4361702 | H53: 1月 | I53: 37654.73 | J53: 14250 | K53: 14408.33 | L53: 66313.06
A54: 3月 | B54: 新通河3308 | C54: 物料 | D54: 5418.144681 | H54: 2月 | I54: 37654.73 | J54: 14250 | K54: 14408.33 | L54: 66313.06
A55: 4月 | B55: 新通河3301 | C55: 物料 | D55: 9408.218723 | H55: 3月 | I55: 37654.73 | J55: 14250 | K55: 14408.33 | L55: 66313.06
A56: 4月 | B56: 新通河3308 | C56: 物料 | D56: 229.787234 | H56: 4月 | I56: 37654.73 | J56: 14250 | K56: 14408.33 | L56: 66313.06
A57: 5月 | B57: 新通河3301 | C57: 物料 | D57: 5379.234043 | H57: 5月 | I57: 37654.73 | J57: 14250 | K57: 14408.33 | L57: 66313.06
A58: 5月 | B58: 新通河3303 | C58: 物料 | D58: 4579.998936 | H58: 6月 | I58: 37654.73 | J58: 14250 | K58: 14408.33 | L58: 66313.06
A59: 5月 | B59: 新通河3308 | C59: 物料 | D59: 6038.641277 | H59: 7月 | I59: 37654.73 | J59: 14250 | K59: 14408.33 | L59: 66313.06
A60: 6月 | B60: 新通河3301 | C60: 物料 | D60: 4240.382979 | H60: 8月 | I60: 37654.73 | J60: 14250 | K60: 14408.33 | L60: 66313.06
A61: 6月 | B61: 新通河3303 | C61: 物料 | D61: 1490.8 | H61: 9月 | I61: 37654.73 | J61: 14250 | K61: 14408.33 | L61: 66313.06
A62: 6月 | B62: 新通河3308 | C62: 物料 | D62: 4313.276596 | H62: 总计 | I62: 1335731.696 | J62: 737361.9804 | K62: 696226.1406 | L62: 2769319.817
A63: 7月 | B63: 新通河3301 | C63: 物料 | D63: 308.5106383
A64: 7月 | B64: 新通河3303 | C64: 物料 | D64: 2543.357447
A65: 7月 | B65: 新通河3308 | C65: 物料 | D65: 3803
A66: 7月 | B66: 新通河3301 | C66: 人工成本 | D66: 46033.7
A67: 7月 | B67: 新通河3303 | C67: 人工成本 | D67: 39734.54
A68: 7月 | B68: 新通河3308 | C68: 人工成本 | D68: 37578.22
A69: 1月 | B69: 新通河3301 | C69: 油耗 | D69: 41386.75
A70: 1月 | B70: 新通河3303 | C70: 油耗 | D70: 39224.39
A71: 1月 | B71: 新通河3308 | C71: 油耗 | D71: 13731.7
A72: 2月 | B72: 新通河3301 | C72: 油耗 | D72: 36384.22
A73: 2月 | B73: 新通河3303 | C73: 油耗 | D73: 25002.34
A74: 2月 | B74: 新通河3308 | C74: 油耗 | D74: 19191.94
A75: 3月 | B75: 新通河3301 | C75: 油耗 | D75: 32978.35
A76: 3月 | B76: 新通河3303 | C76: 油耗 | D76: 29800.31
A77: 3月 | B77: 新通河3308 | C77: 油耗 | D77: 28127.63
A78: 4月 | B78: 新通河3301 | C78: 油耗 | D78: 22426.36
A79: 4月 | B79: 新通河3303 | C79: 油耗 | D79: 35380.63
A80: 4月 | B80: 新通河3308 | C80: 油耗 | D80: 21995.66
A81: 5月 | B81: 新通河3301 | C81: 油耗 | D81: 39075.35
A82: 5月 | B82: 新通河3303 | C82: 油耗 | D82: 27287.05
A83: 5月 | B83: 新通河3308 | C83: 油耗 | D83: 24930
A84: 6月 | B84: 新通河3301 | C84: 油耗 | D84: 63003.13
A85: 6月 | B85: 新通河3303 | C85: 油耗 | D85: 26178.22
A86: 6月 | B86: 新通河3308 | C86: 油耗 | D86: 29215.96
A87: 7月 | B87: 新通河3301 | C87: 油耗 | D87: 51787.93
A88: 7月 | B88: 新通河3303 | C88: 油耗 | D88: 49676.08
A89: 7月 | B89: 新通河3308 | C89: 油耗 | D89: 34264.01
A90: 1月 | B90: 新通河3301 | C90: 折旧费 | D90: 37654.73
A91: 1月 | B91: 新通河3303 | C91: 折旧费 | D91: 14250
A92: 1月 | B92: 新通河3308 | C92: 折旧费 | D92: 14408.33
A93: 2月 | B93: 新通河3301 | C93: 折旧费 | D93: 37654.73
A94: 2月 | B94: 新通河3303 | C94: 折旧费 | D94: 14250
A95: 2月 | B95: 新通河3308 | C95: 折旧费 | D95: 14408.33
A96: 3月 | B96: 新通河3301 | C96: 折旧费 | D96: 37654.73
A97: 3月 | B97: 新通河3303 | C97: 折旧费 | D97: 14250
A98: 3月 | B98: 新通河3308 | C98: 折旧费 | D98: 14408.33
A99: 4月 | B99: 新通河3301 | C99: 折旧费 | D99: 37654.73
A100: 4月 | B100: 新通河3303 | C100: 折旧费 | D100: 14250
A101: 4月 | B101: 新通河3308 | C101: 折旧费 | D101: 14408.33
A102: 5月 | B102: 新通河3301 | C102: 折旧费 | D102: 37654.73
A103: 5月 | B103: 新通河3303 | C103: 折旧费 | D103: 14250
A104: 5月 | B104: 新通河3308 | C104: 折旧费 | D104: 14408.33
A105: 6月 | B105: 新通河3301 | C105: 折旧费 | D105: 37654.73
A106: 6月 | B106: 新通河3303 | C106: 折旧费 | D106: 14250
A107: 6月 | B107: 新通河3308 | C107: 折旧费 | D107: 14408.33
A108: 7月 | B108: 新通河3301 | C108: 折旧费 | D108: 37654.73
A109: 7月 | B109: 新通河3303 | C109: 折旧费 | D109: 14250
A110: 7月 | B110: 新通河3308 | C110: 折旧费 | D110: 14408.33
A111: 8月 | B111: 新通河3301 | C111: 折旧费 | D111: 37654.73
A112: 8月 | B112: 新通河3303 | C112: 折旧费 | D112: 14250
A113: 8月 | B113: 新通河3308 | C113: 折旧费 | D113: 14408.33
A114: 9月 | B114: 新通河3301 | C114: 折旧费 | D114: 37654.73
A115: 9月 | B115: 新通河3303 | C115: 折旧费 | D115: 14250
A116: 9月 | B116: 新通河3308 | C116: 折旧费 | D116: 14408.33
A117: 10月 | B117: 新通河3301 | C117: 折旧费 | D117: 37654.73
A118: 10月 | B118: 新通河3303 | C118: 折旧费 | D118: 14250
A119: 10月 | B119: 新通河3308 | C119: 折旧费 | D119: 14408.33
A120: 11月 | B120: 新通河3301 | C120: 折旧费 | D120: 37654.73
A121: 11月 | B121: 新通河3303 | C121: 折旧费 | D121: 14250
A122: 11月 | B122: 新通河3308 | C122: 折旧费 | D122: 14408.33
A123: 12月 | B123: 新通河3301 | C123: 折旧费 | D123: 37654.73
A124: 12月 | B124: 新通河3303 | C124: 折旧费 | D124: 14250
A125: 12月 | B125: 新通河3308 | C125: 折旧费 | D125: 14408.33

Sheet 管理成本
A1: 月份 | B1: 归属部门 | C1: 项目 | D1: 金额
A2: 1月 | B2: 汽运部 | C2: 人工成本 | D2: 84453.81
A3: 2月 | B3: 汽运部 | C3: 人工成本 | D3: 49231.97
A4: 3月 | B4: 汽运部 | C4: 人工成本 | D4: 77539.77 | H4: 求和项:金额 | I4: 列标签
A5: 4月 | B5: 汽运部 | C5: 人工成本 | D5: 46686.01 | H5: 行标签 | I5: 管理部 | J5: 航运部 | K5: 汽运部 | L5: 市场部 | M5: 总计
A6: 5月 | B6: 汽运部 | C6: 人工成本 | D6: 45670.09 | H6: 1月 | I6: 55025.57 | J6: 43871.41 | K6: 84453.81 | L6: 37055.98 | M6: 220406.77
A7: 6月 | B7: 汽运部 | C7: 人工成本 | D7: 42862.18 | H7: 2月 | I7: 56747.57 | J7: 25862.41 | K7: 49231.97 | L7: 41006.24 | M7: 172848.19
A8: 1月 | B8: 航运部 | C8: 人工成本 | D8: 43871.41 | H8: 3月 | I8: 105323 | J8: 24080.22 | K8: 77539.77 | L8: 40355.89 | M8: 247298.88
A9: 2月 | B9: 航运部 | C9: 人工成本 | D9: 25862.41 | H9: 4月 | I9: 72158.69 | J9: 31699.21 | K9: 46686.01 | L9: 42282.08 | M9: 192825.99
A10: 3月 | B10: 航运部 | C10: 人工成本 | D10: 24080.22 | H10: 5月 | I10: 68317.47 | J10: 33130.63 | K10: 45670.09 | L10: 43839.48 | M10: 190957.67
A11: 4月 | B11: 航运部 | C11: 人工成本 | D11: 31699.21 | H11: 6月 | I11: 72459.74 | J11: 35551.38 | K11: 42862.18 | L11: 37365.2 | M11: 188238.5
A12: 5月 | B12: 航运部 | C12: 人工成本 | D12: 33130.63 | H12: 7月 | I12: 58956.58 | J12: 84819.52 | K12: 36020.94 | L12: 29547.34 | M12: 209344.38
A13: 6月 | B13: 航运部 | C13: 人工成本 | D13: 35551.38 | H13: 总计 | I13: 488988.62 | J13: 279014.78 | K13: 382464.77 | L13: 271452.21 | M13: 1421920.38
A14: 1月 | B14: 市场部 | C14: 人工成本 | D14: 37055.98
A15: 2月 | B15: 市场部 | C15: 人工成本 | D15: 41006.24
A16: 3月 | B16: 市场部 | C16: 人工成本 | D16: 40355.89
A17: 4月 | B17: 市场部 | C17: 人工成本 | D17: 42282.08
A18: 5月 | B18: 市场部 | C18: 人工成本 | D18: 43839.48
A19: 6月 | B19: 市场部 | C19: 人工成本 | D19: 37365.2
A20: 1月 | B20: 管理部 | C20: 人工成本 | D20: 55025.57
A21: 2月 | B21: 管理部 | C21: 人工成本 | D21: 56747.57
A22: 3月 | B22: 管理部 | C22: 人工成本 | D22: 105323
A23: 4月 | B23: 管理部 | C23: 人工成本 | D23: 72158.69
A24: 5月 | B24: 管理部 | C24: 人工成本 | D24: 68317.47
A25: 6月 | B25: 管理部 | C25: 人工成本 | D25: 72459.74
A26: 7月 | B26: 管理部 | C26: 人工成本 | D26: 58956.58
A27: 7月 | B27: 航运部 | C27: 人工成本 | D27: 84819.52
A28: 7月 | B28: 汽运部 | C28: 人工成本 | D28: 36020.94
A29: 7月 | B29: 市场部 | C29: 人工成本 | D29: 29547.34

Sheet 自有船单载成本
A1: 月份 | B1: 新通河3301 | C1: 新通河3303 | D1: 新通河3308 | E1: 小计 | H1: 月份 | I1: 新通河3301 | J1: 新通河3303 | K1: 新通河3308 | L1: 小计
A2: 1月 | B2: 144036.54 | C2: 117133.31 | D2: 102199.3666 | E2: =SUM(B2:D2) -> 363369.2166 | H2: 1月 | I2: 6 | J2: 9 | K2: 4 | L2: =SUM(I2:K2) -> 19
A3: 2月 | B3: 134347.4811 | C3: 74705.62404 | D3: 66703.3883 | E3: =SUM(B3:D3) -> 275756.4934 | H3: 2月 | I3: 5 | J3: 3 | K3: 3 | L3: =SUM(I3:K3) -> 11
A4: 3月 | B4: 120096.5474 | C4: 86861.31085 | D4: 87857.75404 | E4: 294815.6123 | H4: 3月 | I4: 4 | J4: 8 | K4: 6 | L4: 18
A5: 4月 | B5: 143851.0894 | C5: 94233.77 | D5: 79061.84723 | E5: 317146.7066 | H5: 4月 | I5: 3 | J5: 5 | K5: 4 | L5: 12
A6: 5月 | B6: 151890.284 | C6: 85444.86894 | D6: 82984.51128 | E6: 320319.6643 | H6: 5月 | I6: 3 | J6: 7 | K6: 5 | L6: 15
A7: 6月 | B7: 174659.213 | C7: 99033.11915 | D7: 113728.3185 | E7: 387420.6506 | H7: 6月 | I7: 5 | J7: 4 | K7: 3 | L7: 12
A8: 7月 | B8: 159583.5406 | C8: 108699.9774 | D8: 91649.30468 | E8: 359932.8228 | H8: 7月 | I8: 3 | J8: 6 | K8: 5 | L8: 14
A9: 8月 | B9: 61453.4 | C9: 14250 | D9: 14408.33 | E9: 90111.73 | H9: 小计 | I9: =SUM(I2:I8) -> 29 | J9: =SUM(J2:J8) -> 42 | K9: 30 | L9: 101
A10: 9月 | B10: 61453.4 | C10: 14250 | D10: 14408.33 | E10: 90111.73
A11: 小计 | B11: =SUM(B2:B10) -> 1151371.496 | C11: =SUM(C2:C10) -> 694611.9804 | D11: 653001.1506 | E11: =SUM(B11:D11) -> 2498984.627
A14: 单载成本
A15: 月份 | B15: 新通河3301 | C15: 新通河3303 | D15: 新通河3308
A16: 1月 | B16: 24006.09 | C16: 13014.81222 | D16: 25549.84165
A17: 2月 | B17: 26869.49621 | C17: 24901.87468 | D17: 22234.46277
A18: 3月 | B18: 30024.13686 | C18: 10857.66386 | D18: 14642.95901
A19: 4月 | B19: 47950.36312 | C19: 18846.754 | D19: 19765.46181
A20: 5月 | B20: 50630.09468 | C20: 12206.40985 | D20: 16596.90226
A21: 6月 | B21: 34931.8426 | C21: 24758.27979 | D21: 37909.4395
A22: 7月 | B22: 53194.51355 | C22: 18116.66291 | D22: 18329.86094
A26: 业务量（吨）
A27: 月份 | B27: 新通河3301 | C27: 新通河3303 | D27: 新通河3308 | E27: 总计
A28: 1月 | B28: 14273.848 | C28: 11799.179 | D28: 5973.221 | E28: 32046.248
A29: 2月 | B29: 12393.517 | C29: 3990.3 | D29: 4609 | E29: 20992.817
A30: 3月 | B30: 9321.854 | C30: 11942.148 | D30: 8975.43 | E30: 30239.432
A31: 4月 | B31: 6426.082 | C31: 7337.59 | D31: 5784.914 | E31: 19548.586
A32: 5月 | B32: 6880.23 | C32: 9957.65 | D32: 7273.5 | E32: 24111.38
A33: 6月 | B33: 11703.547 | C33: 6027 | D33: 4500 | E33: 22230.547
A34: 7月 | B34: 6950 | C34: 9774.979 | D34: 8158.495 | E34: 24883.474
A35: 总计 | B35: 67949.078 | C35: 60828.846 | D35: 45274.56 | E35: 174052.484

Sheet 整体情况
A1: 月份 | B1: 版块 | C1: 柜量/艘次 | D1: 业务量 | E1: 收入 | F1: 成本 | G1: 毛利 | H1: 其他费用 | I1: 资金利息 | J1: 毛利1
A2: 1月 | B2: 集装箱 | C2: 2592 | D2: 47181.832 | E2: 1440066.35 | F2: 1323945.95 | G2: 116120.4 | H2: 6300 | I2: 8279.207 | J2: 101541.193
A3: 2月 | B3: 集装箱 | C3: 821 | D3: 15164.601 | E3: 460683.01 | F3: 443737.37 | G3: 16945.64 | H3: 1710 | I3: 585.7768 | J3: 14649.8632 | L3: 行标签 | M3: 求和项:柜量/艘次 | N3: 求和项:业务量 | O3: 求和项:收入 | P3: 求和项:成本 | Q3: 求和项:毛利 | R3: 求和项:其他费用 | S3: 求和项:资金利息 | T3: 求和项:实际毛利
A4: 3月 | B4: 集装箱 | C4: 1691 | D4: 17023.091 | E4: 1066185.78 | F4: 1015075.47 | G4: 51110.31 | H4: 4230 | I4: 2120.3306 | J4: 44759.9794 | L4: 集装箱 | M4: 11146 | N4: 250231.204 | O4: 6768157.73 | P4: 6408972.41 | Q4: 359185.32 | R4: 17820 | S4: 22297.2982 | T4: 319068.0218
A5: 4月 | B5: 集装箱 | C5: 1478 | D5: 25448.606 | E5: 917059.76 | F5: 874601.09 | G5: 42458.67 | H5: 1620 | I5: 944.6472 | J5: 39894.0228 | L5: 1月 | M5: 2592 | N5: 47181.832 | O5: 1440066.35 | P5: 1323945.95 | Q5: 116120.4 | R5: 6300 | S5: 8279.207 | T5: 101541.193
A6: 5月 | B6: 集装箱 | C6: 1657 | D6: 22424.14 | E6: 965499.06 | F6: 917611.21 | G6: 47887.85 | H6: 3960 | I6: 4944.6812 | J6: 38983.1688 | L6: 2月 | M6: 821 | N6: 15164.601 | O6: 460683.01 | P6: 443737.37 | Q6: 16945.64 | R6: 1710 | S6: 585.7768 | T6: 14649.8632
A7: 6月 | B7: 集装箱 | C7: 1692 | D7: 69245.119 | E7: 1087716.23 | F7: 1031874.29 | G7: 55841.94 | I7: 4482.8446 | J7: 51359.0954 | L7: 3月 | M7: 1691 | N7: 17023.091 | O7: 1066185.78 | P7: 1015075.47 | Q7: 51110.31 | R7: 4230 | S7: 2120.3306 | T7: 44759.9794
A8: 7月 | B8: 集装箱 | C8: 1215 | D8: 53743.815 | E8: 830947.54 | F8: 802127.03 | G8: 28820.51 | I8: 939.8108 | J8: 27880.6992 | L8: 4月 | M8: 1478 | N8: 25448.606 | O8: 917059.76 | P8: 874601.09 | Q8: 42458.67 | R8: 1620 | S8: 944.6472 | T8: 39894.0228
A9: 1月 | B9: 散货 | D9: 32314.71 | E9: 1058123.14 | F9: 1001001.59 | G9: 57121.55 | I9: 15300.15605 | J9: 41821.39395 | L9: 5月 | M9: 1657 | N9: 22424.14 | O9: 965499.06 | P9: 917611.21 | Q9: 47887.85 | R9: 3960 | S9: 4944.6812 | T9: 38983.1688
A10: 2月 | B10: 散货 | D10: 22780.71 | E10: 901404.02 | F10: 831915.24 | G10: 69488.78 | H10: 892.8181818 | I10: 5317.043261 | J10: 63278.91856 | L10: 6月 | M10: 1692 | N10: 69245.119 | O10: 1087716.23 | P10: 1031874.29 | Q10: 55841.94 | S10: 4482.8446 | T10: 51359.0954
A11: 3月 | B11: 散货 | D11: 31768.028 | E11: 844502.85 | F11: 780764.28 | G11: 63738.57 | H11: 3075.247706 | I11: 13616.67706 | J11: 47046.64523 | L11: 7月 | M11: 1215 | N11: 53743.815 | O11: 830947.54 | P11: 802127.03 | Q11: 28820.51 | S11: 939.8108 | T11: 27880.6992
A12: 4月 | B12: 散货 | D12: 17981.175 | E12: 930582.1 | F12: 891078.44 | G12: 39503.66 | H12: 3604.605505 | J12: 35899.0545 | L12: 散货 | N12: 197388.381 | O12: 6615556.49 | P12: 6170808.9 | Q12: 444747.59 | R12: 7572.671393 | S12: 49621.6849 | T12: 387553.2337
A13: 5月 | B13: 散货 | D13: 25723.73 | E13: 1513914.35 | F13: 1457233.19 | G13: 56681.16 | I13: 1828.788991 | J13: 54852.37101 | L13: 1月 | N13: 32314.71 | O13: 1058123.14 | P13: 1001001.59 | Q13: 57121.55 | S13: 15300.15605 | T13: 41821.39395
A14: 6月 | B14: 散货 | D14: 31163.665 | E14: 715231.95 | F14: 603871.69 | G14: 111360.26 | I14: 13529.90433 | J14: 97830.35567 | L14: 2月 | N14: 22780.71 | O14: 901404.02 | P14: 831915.24 | Q14: 69488.78 | R14: 892.8181818 | S14: 5317.043261 | T14: 63278.91856
A15: 7月 | B15: 散货 | D15: 35656.363 | E15: 651798.08 | F15: 604944.47 | G15: 46853.61 | I15: 29.1152 | J15: 46824.4948 | L15: 3月 | N15: 31768.028 | O15: 844502.85 | P15: 780764.28 | Q15: 63738.57 | R15: 3075.247706 | S15: 13616.67706 | T15: 47046.64523
A16: 1月 | B16: 自有船 | C16: 19 | D16: 32046.248 | E16: 437552.1 | F16: 411374.1889 | G16: 26177.91114 | H16: 1188.24 | I16: 2128.3646 | J16: 22861.30654 | L16: 4月 | N16: 17981.175 | O16: 930582.1 | P16: 891078.44 | Q16: 39503.66 | R16: 3604.605505 | T16: 35899.0545
A17: 2月 | B17: 自有船 | C17: 11 | D17: 20992.817 | E17: 293130.37 | F17: 303858.6689 | G17: -10728.29886 | I17: 2601.72 | J17: -13330.01886 | L17: 5月 | N17: 25723.73 | O17: 1513914.35 | P17: 1457233.19 | Q17: 56681.16 | S17: 1828.788991 | T17: 54852.37101
A18: 3月 | B18: 自有船 | C18: 18 | D18: 30239.432 | E18: 443469.49 | F18: 340958.8947 | G18: 102510.5953 | H18: 1298.927 | I18: 4653.0772 | J18: 96558.59106 | L18: 6月 | N18: 31163.665 | O18: 715231.95 | P18: 603871.69 | Q18: 111360.26 | S18: 13529.90433 | T18: 97830.35567
A19: 4月 | B19: 自有船 | C19: 12 | D19: 19548.586 | E19: 286535.94 | F19: 342892.1974 | G19: -56356.25742 | H19: 642.457 | I19: 2593.0732 | J19: -59591.78762 | L19: 7月 | N19: 35656.363 | O19: 651798.08 | P19: 604944.47 | Q19: 46853.61 | S19: 29.1152 | T19: 46824.4948
A20: 5月 | B20: 自有船 | C20: 15 | D20: 24111.38 | E20: 378896.51 | F20: 360912.9299 | G20: 17983.58006 | H20: 2790.68 | I20: 3207.5996 | J20: 11985.30046 | L20: 外包船 | M20: 351 | N20: 458270.03 | O20: 9682980.16 | P20: 8962634.04 | Q20: 720346.12 | R20: 120794.9346 | S20: 14601.8542 | T20: 584949.3312
A21: 6月 | B21: 自有船 | C21: 12 | D21: 22230.547 | E21: 392288.33 | F21: 422855.3102 | G21: -30566.98018 | I21: 2615.6698 | J21: -33182.64998 | L21: 1月 | M21: 45 | N21: 56057.231 | O21: 1537965.76 | P21: 1463637.29 | Q21: 74328.47 | R21: 19613.3325 | S21: 2138.978 | T21: 52576.1595
A22: 7月 | B22: 自有船 | C22: 14 | D22: 24883.474 | E22: 657175.46 | F22: 608521.4367 | G22: 48654.02329 | I22: 2363.907 | J22: 46290.11629 | L22: 2月 | M22: 31 | N22: 40402.638 | O22: 711616.59 | P22: 619692.44 | Q22: 91924.15 | R22: 14346.199 | S22: 1015.4284 | T22: 76562.5226
A23: 1月 | B23: 外包船 | C23: 45 | D23: 56057.231 | E23: 1537965.76 | F23: 1463637.29 | G23: 74328.47 | H23: 19613.3325 | I23: 2138.978 | J23: 52576.1595 | L23: 3月 | M23: 58 | N23: 77109.225 | O23: 1808037.9 | P23: 1694627.75 | Q23: 113410.15 | R23: 27308.7573 | S23: 2285.6998 | T23: 83815.6929
A24: 2月 | B24: 外包船 | C24: 31 | D24: 40402.638 | E24: 711616.59 | F24: 619692.44 | G24: 91924.15 | H24: 14346.199 | I24: 1015.4284 | J24: 76562.5226 | L24: 4月 | M24: 44 | N24: 62062.272 | O24: 1368043.56 | P24: 1249140.24 | Q24: 118903.32 | R24: 28289.1395 | S24: 422.215 | T24: 90191.9655
A25: 3月 | B25: 外包船 | C25: 58 | D25: 77109.225 | E25: 1808037.9 | F25: 1694627.75 | G25: 113410.15 | H25: 27308.7573 | I25: 2285.6998 | J25: 83815.6929 | L25: 5月 | M25: 54 | N25: 68466.07 | O25: 1402535.25 | P25: 1305439.76 | Q25: 97095.49 | R25: 18953.116 | S25: 4019.9564 | T25: 74122.4176
A26: 4月 | B26: 外包船 | C26: 44 | D26: 62062.272 | E26: 1368043.56 | F26: 1249140.24 | G26: 118903.32 | H26: 28289.1395 | I26: 422.215 | J26: 90191.9655 | L26: 6月 | M26: 57 | N26: 73362.846 | O26: 1081340.1 | P26: 971066.81 | Q26: 110273.29 | R26: 12284.3903 | S26: 2008.389 | T26: 95980.5107
A27: 5月 | B27: 外包船 | C27: 54 | D27: 68466.07 | E27: 1402535.25 | F27: 1305439.76 | G27: 97095.49 | H27: 18953.116 | I27: 4019.9564 | J27: 74122.4176 | L27: 7月 | M27: 62 | N27: 80809.748 | O27: 1773441 | P27: 1659029.75 | Q27: 114411.25 | S27: 2711.1876 | T27: 111700.0624
A28: 6月 | B28: 外包船 | C28: 57 | D28: 73362.846 | E28: 1081340.1 | F28: 971066.81 | G28: 110273.29 | H28: 12284.3903 | I28: 2008.389 | J28: 95980.5107 | L28: 自有船 | M28: 101 | N28: 174052.484 | O28: 2889048.2 | P28: 2791373.627 | Q28: 97674.5733 | R28: 5920.304 | S28: 20163.4114 | T28: 71590.8579
A29: 7月 | B29: 外包船 | C29: 62 | D29: 80809.748 | E29: 1773441 | F29: 1659029.75 | G29: 114411.25 | I29: 2711.1876 | J29: 111700.0624 | L29: 1月 | M29: 19 | N29: 32046.248 | O29: 437552.1 | P29: 411374.1889 | Q29: 26177.91114 | R29: 1188.24 | S29: 2128.3646 | T29: 22861.30654
L30: 2月 | M30: 11 | N30: 20992.817 | O30: 293130.37 | P30: 303858.6689 | Q30: -10728.29886 | S30: 2601.72 | T30: -13330.01886
L31: 3月 | M31: 18 | N31: 30239.432 | O31: 443469.49 | P31: 340958.8947 | Q31: 102510.5953 | R31: 1298.927 | S31: 4653.0772 | T31: 96558.59106
L32: 4月 | M32: 12 | N32: 19548.586 | O32: 286535.94 | P32: 342892.1974 | Q32: -56356.25742 | R32: 642.457 | S32: 2593.0732 | T32: -59591.78762
L33: 5月 | M33: 15 | N33: 24111.38 | O33: 378896.51 | P33: 360912.9299 | Q33: 17983.58006 | R33: 2790.68 | S33: 3207.5996 | T33: 11985.30046
L34: 6月 | M34: 12 | N34: 22230.547 | O34: 392288.33 | P34: 422855.3102 | Q34: -30566.98018 | S34: 2615.6698 | T34: -33182.64998
L35: 7月 | M35: 14 | N35: 24883.474 | O35: 657175.46 | P35: 608521.4367 | Q35: 48654.02329 | S35: 2363.907 | T35: 46290.11629
L36: 总计 | M36: 11598 | N36: 1079942.099 | O36: 25955742.58 | P36: 24333788.98 | Q36: 1621953.603 | R36: 152107.91 | S36: 106684.2487 | T36: 1363161.445

Sheet 整体情况1
A1: 月份 | B1: 收入 | C1: 成本 | D1: 毛利 | E1: 其他费用 | F1: 资金利息 | G1: 毛利1 | H1: 人工成本 | I1: 报销费用 | J1: 利润1 （人工、报销、资金、其他） | K1: 利润2 （人工、报销）
A2: 1月 | B2: 4473707.35 | C2: 4199959.019 | D2: 273748.3311 | E2: 27101.5725 | F2: 27846.70565 | G2: 218800.053 | H2: 220406.77 | I2: 119632.59 | J2: =G2-H2-I2 -> -121239.307 | K2: =D2-H2-I2 -> -66291.02886
A3: 2月 | B3: 2366833.99 | C3: 2199203.719 | D3: 167630.2711 | E3: 16949.01718 | F3: 9519.968461 | G3: 141161.2855 | H3: 172848.19 | I3: 43432.5 | J3: =G3-H3-I3 -> -75119.4045 | K3: =D3-H3-I3 -> -48650.41886
A4: 3月 | B4: 4162196.02 | C4: 3831426.395 | D4: 330769.6253 | E4: 35912.93201 | F4: 22675.78466 | G4: 272180.9086 | H4: 247298.88 | I4: 57762.52 | J4: =G4-H4-I4 -> -32880.49141 | K4: 25708.22526
A5: 4月 | B5: 3502221.36 | C5: 3357711.967 | D5: 144509.3926 | E5: 34156.202 | F5: 3959.9354 | G5: 106393.2552 | H5: 192825.99 | I5: 93376.25 | J5: =G5-H5-I5 -> -179808.9848 | K5: -141692.8474
A6: 5月 | B6: 4260845.17 | C6: 4041197.09 | D6: 219648.0801 | E6: 25703.796 | F6: 14001.02619 | G6: 179943.2579 | H6: 190957.67 | I6: 81460.51 | J6: =G6-H6-I6 -> -92474.92213 | K6: -52770.09994
A7: 6月 | B7: 3276576.61 | C7: 3029668.1 | D7: 246908.5098 | E7: 12284.3903 | F7: 22636.80773 | G7: 211987.3118 | H7: 188238.5 | I7: 73278.98 | J7: =G7-H7-I7 -> -49530.16821 | K7: -14608.97018
A8: 7月 | B8: 3913362.08 | C8: 3674622.687 | D8: 238739.3933 | F8: 6044.0206 | G8: 232695.3727 | H8: 209344.38 | I8: 69141.81 | J8: =G8-H8-I8 -> -45790.81731 | K8: -39746.79671
A9: 总计 | B9: 25955742.58 | C9: 24333788.98 | D9: 1621953.603 | E9: 152107.91 | F9: 106684.2487 | G9: 1363161.445 | H9: 1421920.38 | I9: 538085.16 | J9: -596844.0954 | K9: -338051.9367

Sheet 完成情况
A1: 板块 | B1: 分类 | C1: 年度预算 | F1: 本年累计完成 | I1: 累计完成预算（%）
C2: 货量 | D2: 收入 (万元） | E2: 净利 (万元） | F2: 货量 | G2: 收入 (万元） | H2: 净利 (万元） | I2: 货量 | J2: 收入 | K2: 净利
A3: 汽运 | B3: 集装箱(柜） | C3: 31100 | D3: 2451.82 | E3: 100 | F3: 11146 | G3: 1338.371422 | H3: -33.80519367 | I3: 0.358392283 | J3: 0.5458685474 | K3: -0.3380519367
B4: 散杂货（吨） | C4: 700000 | F4: 197388.381 | I4: 0.2819834014
A5: 航运 | B5: 自有船 | C5: 1500000 | D5: 1970.91 | F5: 174052.484 | G5: 1257.202836 | I5: 0.4215483427 | J5: 0.6378793735
B6: 外包船 | F6: 458270.03
A10: 月份 | B10: 柜量 | C10: 货量 | D10: 收入 | E10: 成本 | F10: 毛利
A11: 1月 | B11: 2592 | C11: 47181.832 | D11: 1440066.35 | E11: 1323945.95 | F11: 116120.4
A12: 2月 | B12: 821 | C12: 15164.601 | D12: 460683.01 | E12: 443737.37 | F12: 16945.64
A13: 3月 | B13: 1691 | C13: 17023.091 | D13: 1066185.78 | E13: 1015075.47 | F13: 51110.31
A14: 4月 | B14: 1478 | C14: 25448.606 | D14: 917059.76 | E14: 874601.09 | F14: 42458.67
A15: 5月 | B15: 1657 | C15: 22424.14 | D15: 965499.06 | E15: 917611.21 | F15: 47887.85
A16: 6月 | B16: 1692 | C16: 69245.119 | D16: 1087716.23 | E16: 1031874.29 | F16: 55841.94
A17: 7月 | B17: 1215 | C17: 53743.815 | D17: 830947.54 | E17: 802127.03 | F17: 28820.51
A18: 集装箱 | B18: 11146 | C18: 250231.204 | D18: 6768157.73 | E18: 6408972.41 | F18: 359185.32
A20: 月份 | C20: 货量 | D20: 收入 | E20: 成本 | F20: 毛利
A21: 1月 | C21: 32314.71 | D21: 1058123.14 | E21: 1001001.59 | F21: 57121.55
A22: 2月 | C22: 22780.71 | D22: 901404.02 | E22: 831915.24 | F22: 69488.78
A23: 3月 | C23: 31768.028 | D23: 844502.85 | E23: 780764.28 | F23: 63738.57
A24: 4月 | C24: 17981.175 | D24: 930582.1 | E24: 891078.44 | F24: 39503.66
A25: 5月 | C25: 25723.73 | D25: 1513914.35 | E25: 1457233.19 | F25: 56681.16
A26: 6月 | C26: 31163.665 | D26: 715231.95 | E26: 603871.69 | F26: 111360.26
A27: 7月 | C27: 35656.363 | D27: 651798.08 | E27: 604944.47 | F27: 46853.61
A28: 散货 | C28: 197388.381 | D28: 6615556.49 | E28: 6170808.9 | F28: 444747.59
A30: 月份 | B30: 艘次 | C30: 货量 | D30: 收入 | E30: 成本 | F30: 毛利
A31: 1月 | B31: 45 | C31: 56057.231 | D31: 1537965.76 | E31: 1463637.29 | F31: 74328.47
A32: 2月 | B32: 31 | C32: 40402.638 | D32: 711616.59 | E32: 619692.44 | F32: 91924.15
A33: 3月 | B33: 58 | C33: 77109.225 | D33: 1808037.9 | E33: 1694627.75 | F33: 113410.15
A34: 4月 | B34: 44 | C34: 62062.272 | D34: 1368043.56 | E34: 1249140.24 | F34: 118903.32
A35: 5月 | B35: 54 | C35: 68466.07 | D35: 1402535.25 | E35: 1305439.76 | F35: 97095.49
A36: 6月 | B36: 57 | C36: 73362.846 | D36: 1081340.1 | E36: 971066.81 | F36: 110273.29
A37: 7月 | B37: 62 | C37: 80809.748 | D37: 1773441 | E37: 1659029.75 | F37: 114411.25
A38: 外包船 | B38: 351 | C38: 458270.03 | D38: 9682980.16 | E38: 8962634.04 | F38: 720346.12
A40: 月份 | B40: 艘次 | C40: 货量 | D40: 收入 | E40: 成本 | F40: 毛利
A41: 1月 | B41: 19 | C41: 32046.248 | D41: 437552.1 | E41: 411374.1889 | F41: 26177.91114
A42: 2月 | B42: 11 | C42: 20992.817 | D42: 293130.37 | E42: 303858.6689 | F42: -10728.29886
A43: 3月 | B43: 18 | C43: 30239.432 | D43: 443469.49 | E43: 340958.8947 | F43: 102510.5953
A44: 4月 | B44: 12 | C44: 19548.586 | D44: 286535.94 | E44: 342892.1974 | F44: -56356.25742
A45: 5月 | B45: 15 | C45: 24111.38 | D45: 378896.51 | E45: 360912.9299 | F45: 17983.58006
A46: 6月 | B46: 12 | C46: 22230.547 | D46: 392288.33 | E46: 422855.3102 | F46: -30566.98018
A47: 7月 | B47: 14 | C47: 24883.474 | D47: 657175.46 | E47: 608521.4367 | F47: 48654.02329
A48: 自有船 | B48: 101 | C48: 174052.484 | D48: 2889048.2 | E48: 2791373.627 | F48: 97674.5733

Sheet 收款情况
A3: 求和项:金额 | B3: 列标签
A4: 行标签 | B4: 货代集运业务 | C4: 内部关联交易 | D4: 押金退款 | E4: 主营业务收入 | F4: 总计
A5: 2019-1 | D5: 34395 | E5: 4270565.8 | F5: 4304960.8
A6: 2019-2 | C6: 2431520 | E6: 1182620.54 | F6: 3614140.54
A7: 2019-3 | C7: 703249.44 | D7: 14707 | E7: 1883871.18 | F7: 2601827.62
A8: 2019-4 | B8: 863905.24 | C8: 501798.03 | D8: 42796 | E8: 5603696.21 | F8: 7012195.48
A9: 2019-5 | D9: 418246 | E9: 3853369.37 | F9: 4271615.37
A10: 2019-6 | C10: 519028.75 | D10: 500 | E10: 1264821.88 | F10: 1784350.63
A11: 2019-7 | C11: 844307.44 | D11: 23866.69 | E11: 3723513.47 | F11: 4591687.6
A12: 总计 | B12: 863905.24 | C12: 4999903.66 | D12: 534510.69 | E12: 21782458.45 | F12: 28180778.04

Sheet 收款情况-按客户
A9: 求和项:金额 | B9: 列标签
A10: 行标签 | B10: 2019-1 | C10: 2019-2 | D10: 2019-3 | E10: 2019-4 | F10: 2019-5 | G10: 2019-6 | H10: 2019-7 | I10: 总计
A11: 广东双水码头有限公司 | B11: 584252.36 | D11: 502306.23 | E11: 489783.48 | F11: 384108.62 | G11: 315137.23 | H11: 215879.96 | I11: 2491467.88
A12: 赤峰佰惠生仓储物流有限公司 | E12: 650000 | F12: 1412255 | I12: 2062255
A13: 辽宁瑞鸿贸易有限公司 | B13: 741187.42 | C13: 573675.82 | E13: 571104.76 | I13: 1885968
A14: 广州市粮食集团有限责任公司 | B14: 604841.04 | E14: 316903.3 | H14: 507494.05 | I14: 1429238.39
A15: 广州益嘉物流有限公司 | E15: 397624.91 | F15: 317206.39 | H15: 362587.87 | I15: 1077419.17
A16: 东莞市制糖厂有限公司 | B16: 134951.76 | D16: 100000 | E16: 100000 | F16: 250000 | H16: 477629.71 | I16: 1062581.47
A17: 深圳市海之峰国际货运代理有限公司 | B17: 416272.8 | C17: 87240.89 | D17: 299196.38 | F17: 93710.54 | G17: 73423.92 | I17: 969844.53
A18: 舟山海耘船务有限公司 | D18: 301959.46 | F18: 184967.43 | H18: 369252.29 | I18: 856179.18
A19: 广州泰来国际货运代理有限公司 | B19: 75098.26 | D19: 214592.25 | E19: 79366.23 | F19: 112955.49 | G19: 99448.03 | H19: 186097.4 | I19: 767557.66
A20: 常熟市港顺货运有限公司 | B20: 161144.94 | D20: 64750 | E20: 148339.06 | F20: 193255.25 | G20: 96000 | H20: 78537 | I20: 742026.25
A21: 双胞胎饲料有限公司 | E21: 693797.53 | I21: 693797.53
A22: 广东良运谷物有限公司 | E22: 559099.63 | G22: 54696.93 | I22: 613796.56
A23: 鞍钢联众（广州）不锈钢有限公司 | H23: 538497.01 | I23: 538497.01
A24: 广州启润实业有限公司 | C24: 142607.02 | E24: 135992.12 | G24: 242891.3 | I24: 521490.44
A25: 广州市骏宝饲料有限公司 | B25: 92200.12 | C25: 90000 | E25: 81300 | F25: 142874.62 | H25: 98100 | I25: 504474.74
A26: 肇庆市福加德面粉有限公司 | E26: 496659.46 | I26: 496659.46
A27: 江苏华穗粮食有限公司 | B27: 483237.1 | G27: 12600 | I27: 495837.1
A28: 浙江利远海运有限公司 | D28: 169004.7 | E28: 72292.08 | F28: 116703.15 | H28: 56823.92 | I28: 414823.85
A29: 广州美豆生物技术有限公司 | E29: 374580 | I29: 374580
A30: 广州港船务有限公司 | F30: 69413.87 | H30: 225671.6 | I30: 295085.47
A31: 深圳市福加德谷物有限公司 | B31: 227211.61 | H31: 44139.24 | I31: 271350.85
A32: 广州港物流有限公司 | B32: 204504.89 | F32: 27608.76 | I32: 232113.65
A33: 东莞顶志食品有限公司 | B33: 200800 | I33: 200800
A34: 广西金苹果饲料有限公司 | F34: 124559.57 | G34: 64691.94 | I34: 189251.51
A35: 大连海大容川贸易有限公司 | D35: 114957.17 | E35: 16496 | F35: 46523 | G35: 4610 | I35: 182586.17
A36: 广州昊勤贸易有限公司 | C36: 169284.16 | I36: 169284.16
A37: 东莞市华升造纸材料贸易有限公司 | C37: 17840 | E37: 59981 | G37: 86161 | I37: 163982
A38: 广州市华壬谷物贸易有限公司 | F38: 147500.48 | I38: 147500.48
A39: 广州广禾农副产品有限公司 | E39: 100000 | G39: 40654 | I39: 140654
A40: 金钱（珠海）有限公司 | H40: 113562.6 | I40: 113562.6
A41: 肇庆市现代谷物有限公司 | H41: 112876.19 | I41: 112876.19
A42: 广州港股份有限公司新港港务分公司 | F42: 107086.67 | I42: 107086.67
A43: 建发（北京）有限公司 | E43: 106619.7 | I43: 106619.7
A44: 广东东方面粉有限公司 | B44: 97787.2 | I44: 97787.2
A45: 东莞市森糖贸易有限公司 | D45: 60000 | E45: 30000 | I45: 90000
A46: 中央储备粮江门直属库有限公司 | H46: 83700 | I46: 83700
A47: 广州市亿创物资有限公司 | E47: 80990.58 | I47: 80990.58
A48: 东莞市怀美贸易有限公司 | F48: 33375 | G48: 22390 | H48: 24725 | I48: 80490
A49: 广州长晟物流有限公司 | E49: 34136.37 | F49: 46077.9 | I49: 80214.27
A50: 中山新纪元面粉有限公司 | H50: 77087.54 | I50: 77087.54
A51: 广州市京盛供应链管理有限公司 | B51: 72351.3 | I51: 72351.3
A52: 广东佰利源化工有限公司 | B52: 30200 | H52: 36750 | I52: 66950
A53: 广州市汉存贸易有限公司 | C53: 61603.73 | I53: 61603.73
A54: 隆安县浦通船务有限公司 | G54: 53222.4 | I54: 53222.4
A55: 广州裕全润贸易有限公司 | B55: 49907.25 | I55: 49907.25
A56: 珠海粤裕丰钢铁有限公司 | D56: 49411.99 | I56: 49411.99
A57: 柳州双胞胎饲料有限公司 | G57: 48820.13 | I57: 48820.13
A58: 江门海大饲料有限公司 | B58: 45476.4 | I58: 45476.4
A59: 佛山市储备粮管理总公司 | H59: 45396.65 | I59: 45396.65
A60: 广州市中川货运运输代理有限公司 | G60: 45125 | I60: 45125
A61: 广州百勤贸易有限公司 | C61: 40368.92 | I61: 40368.92
A62: 厦门市陆源物流有限公司 | F62: 32787.63 | I62: 32787.63
A63: 广东通威饲料有限公司 | H63: 29550.84 | I63: 29550.84
A64: 广州粤钛隆贸易有限公司 | B64: 20463.1 | I64: 20463.1
A65: 广州市润煦贸易有限公司 | B65: 18634.5 | I65: 18634.5
A66: 中钢国际货运广东有限责任公司 | H66: 18280.8 | I66: 18280.8
A67: 中国人民财产保险股份有限公司广东省分公司 | H67: 10605 | I67: 10605
A68: 惠州市惠宝佳牧饲料有限公司 | F68: 10400 | I68: 10400
A69: 广州中远海运国际货运有限公司 | H69: 9013 | I69: 9013
A70: 广州市旭禾国际货运代理有限公司 | E70: 8630 | I70: 8630
A71: 惠州市惠粮物流有限公司 | B71: 8586.2 | I71: 8586.2
A72: 广州市中荣糖业有限公司 | D72: 7693 | I72: 7693
A73: 东莞市顺凯纸业有限公司 | G73: 4950 | I73: 4950
A74: 广州千千钢贸易有限公司 | B74: 1457.55 | I74: 1457.55
A75: 东莞市海大饲料有限公司 | H75: 1255.8 | I75: 1255.8
A76: 总计 | B76: 4270565.8 | C76: 1182620.54 | D76: 1883871.18 | E76: 5603696.21 | F76: 3853369.37 | G76: 1264821.88 | H76: 3723513.47 | I76: 21782458.45

Sheet 付款情况
A3: 求和项:金额 | B3: 列标签
A4: 行标签 | B4: 应付款 | C4: 预付款 | D4: 总计
A5: 2019-1 | B5: 4408155.29 | C5: 801070.31 | D5: 5209225.6
A6: 2019-2 | B6: 2120465.46 | C6: 412080.03 | D6: 2532545.49
A7: 2019-3 | B7: 2465057.7 | C7: 388620.68 | D7: 2853678.38
A8: 2019-4 | B8: 5622565.38 | C8: 292794.82 | D8: 5915360.2
A9: 2019-5 | B9: 3417749.64 | C9: 291730.23 | D9: 3709479.87
A10: 2019-6 | B10: 2281903.69 | C10: 259045.32 | D10: 2540949.01
A11: 2019-7 | B11: 3835530.4 | C11: 85658.97 | D11: 3921189.37
A12: 总计 | B12: 24151427.56 | C12: 2531000.36 | D12: 26682427.92

Sheet 付款情况-按供应商
A1: 类型 | B1: (全部)
A3: 行标签 | B3: 求和项:金额
A4: 2019-1 | B4: 5209225.6
A5: 营口怡海物流有限公司 | B5: 1211347
A6: 隆安县浦通船务有限公司 | B6: 923781.31
A7: 东莞市臻凯航运有限公司 | B7: 688764.94
A8: 广州市永盈物流有限公司 | B8: 668181.4
A9: 广州港股份有限公司新港港务分公司 | B9: 310518
A10: 广州联业物流有限公司 | B10: 308667.1
A11: 广州市天邦物流服务有限公司 | B11: 267995.2
A12: 广州市泓鼎国际货运代理有限公司 | B12: 139249
A13: 鞍钢联众（广州）不锈钢有限公司 | B13: 121854
A14: 中国石化销售有限公司广东广州石油分公司 | B14: 100440
A15: 广州珉丰集装箱服务有限公司 | B15: 60000
A16: 广州市七星岗加油站有限公司 | B16: 55599
A17: 广州港物流有限公司 | B17: 50063.78
A18: 广州港股份有限公司黄埔港务分公司 | B18: 48100
A19: 广州市和埔汽车运输有限公司 | B19: 47200
A20: 广州市宇轩物流有限公司 | B20: 44220
A21: 广东中外运船务有限公司 | B21: 35155.53
A22: 中国广州外轮代理有限公司 | B22: 33000
A23: 中国石化销售有限公司广东江门石油分公司 | B23: 31080
A24: 广东安通国际船舶代理有限公司 | B24: 22658.64
A25: 广州市黄埔天翔储运有限公司 | B25: 20000
A26: 上海中谷新良物流有限公司 | B26: 5616
A27: 深圳赤湾港航股份有限公司 | B27: 5018.24
A28: 广州润盛船务代理有限公司 | B28: 3743.81
A29: 广州市黄埔区建达汽车修配厂 | B29: 2900
A30: 临时供应商 | B30: 2000
A31: 广东南洋国际物流有限公司 | B31: 814
A32: 广东双水码头有限公司 | B32: 720
A33: 世天威物流（广州）有限公司 | B33: 361.33
A34: 珠海国际货柜码头（高栏）有限公司 | B34: 177.32
A35: 2019-2 | B35: 2532545.49
A36: 隆安县浦通船务有限公司 | B36: 797681.91
A37: 桂平市宏远船务有限公司 | B37: 476888.17
A38: 广州港股份有限公司黄埔港务分公司 | B38: 333896
A39: 东莞市臻凯航运有限公司 | B39: 315293.42
A40: 广西侨益物流有限公司 | B40: 271533
A41: 广州松木货运代理有限公司 | B41: 137600
A42: 广州市黄埔威盛运输服务部 | B42: 56389
A43: 广州港物流有限公司 | B43: 45798.9
A44: 广州珉丰集装箱服务有限公司 | B44: 21486.55
A45: 中国石化销售有限公司广东广州石油分公司 | B45: 12648
A46: 恩平市华誉货运物流有限公司 | B46: 10037.5
A47: 中华人民共和国贵港海事局 | B47: 9869
A48: 广州市弘运物流服务有限公司 | B48: 9755.5
A49: 广州市黄埔天翔储运有限公司 | B49: 9690.22
A50: 广州市高畅船务代理有限公司 | B50: 8134.04
A51: 临时供应商 | B51: 6983
A52: 广州市黄埔区达海五金店 | B52: 3401
A53: 广东中外运船务有限公司 | B53: 3121
A54: 珠海国际货柜码头（高栏）有限公司 | B54: 601.28
A55: 广东双水码头有限公司 | B55: 480
A56: 广州广裕仓码有限公司 | B56: 400
A57: 广东新会港国际货运码头有限公司 | B57: 350
A58: 招商局港口集团股份有限公司 | B58: 300
A59: 世天威物流（广州）有限公司 | B59: 150
A60: 中华人民共和国广州海事局 | B60: 58
A61: 2019-3 | B61: 2853678.38
A62: 东莞市臻凯航运有限公司 | B62: 835542.68
A63: 广州军诚物流有限公司 | B63: 318250.76
A64: 隆安县浦通船务有限公司 | B64: 268738.19
A65: 广州市宇轩物流有限公司 | B65: 261250
A66: 广州市永盈物流有限公司 | B66: 213838.1
A67: 赤峰佰惠生仓储物流有限公司 | B67: 150000
A68: 广州松木货运代理有限公司 | B68: 149830
A69: 广州港股份有限公司黄埔港务分公司 | B69: 115600
A70: 临时供应商 | B70: 97355.44
A71: 广州市众泰物流有限公司 | B71: 81390
A72: 广州市本港集装箱工程技术服务有限公司 | B72: 57255
A73: 中国石化销售有限公司广东广州石油分公司 | B73: 51120
A74: 广州市和埔汽车运输有限公司 | B74: 45670
A75: 广州珉丰集装箱服务有限公司 | B75: 40672.5
A76: 广州捷运通物流有限公司 | B76: 37480
A77: 广州市振威运输有限公司 | B77: 36970
A78: 广州市福骏运输服务有限公司 | B78: 21750
A79: 恩平市华誉货运物流有限公司 | B79: 17000
A80: 广州中远海运国际货运有限公司 | B80: 9013
A81: 广州市黄埔区建达汽车修配厂 | B81: 7343
A82: 广州中阳国际货运代理有限公司 | B82: 6780
A83: 广东南洋国际物流有限公司 | B83: 6120
A84: 广州港物流有限公司 | B84: 5960.18
A85: 远方供应链科技（广州）股份有限公司 | B85: 5330
A86: 广州市高畅船务代理有限公司 | B86: 4444.13
A87: 东莞市嵘沣物流有限公司 | B87: 3479.4
A88: 中华人民共和国贵港海事局 | B88: 1100
A89: 珠海港航经营有限公司 | B89: 997.76
A90: 东莞深赤湾港务有限公司 | B90: 937
A91: 中华人民共和国东莞海事局 | B91: 860
A92: 珠海国际货柜码头（高栏）有限公司 | B92: 831.24
A93: 广州广裕仓码有限公司 | B93: 400
A94: 广东双水码头有限公司 | B94: 240
A95: 云浮新港港务有限公司 | B95: 100
A96: 中华人民共和国广州海事局 | B96: 30
A97: 2019-4 | B97: 5915360.2
A98: 东莞市臻凯航运有限公司 | B98: 1256339.83
A99: 广州军诚物流有限公司 | B99: 901821.26
A100: 营口怡海物流有限公司 | B100: 855600.4
A101: 广州市永盈物流有限公司 | B101: 620656.38
A102: 广州松木货运代理有限公司 | B102: 495465
A103: 广州市众泰物流有限公司 | B103: 393760
A104: 广州港股份有限公司新港港务分公司 | B104: 220800
A105: 四会市南北江运输有限公司 | B105: 219243.1
A106: 江门市源标船舶修造有限公司 | B106: 214188
A107: 恩平市华誉货运物流有限公司 | B107: 133191.5
A108: 东莞市宏顺物流有限公司 | B108: 122930.28
A109: 广州旭晨物流有限公司 | B109: 96070
A110: 中国石化销售有限公司广东广州石油分公司 | B110: 74976
A111: 中国石化销售有限公司广东江门石油分公司 | B111: 62880
A112: 广州港股份有限公司黄埔港务分公司 | B112: 62000
A113: 广州市和埔汽车运输有限公司 | B113: 49520
A114: 中国人民财产保险股份有限公司广州市分公司 | B114: 39210
A115: 广州恒冠物流有限公司 | B115: 20242.23
A116: 临时供应商 | B116: 17790.24
A117: 广州港物流有限公司 | B117: 10509.82
A118: 广州市旭禾国际货运代理有限公司 | B118: 8630
A119: 中华人民共和国贵港海事局 | B119: 7637
A120: 广州市凯懿达物流有限公司 | B120: 6320
A121: 广州市本港集装箱工程技术服务有限公司 | B121: 5145
A122: 中华人民共和国东莞海事局 | B122: 4249
A123: 深圳市俊励国际船舶代理有限公司广州分公司 | B123: 4004
A124: 广州捷运通物流有限公司 | B124: 3330
A125: 广州市神鹏物流有限公司 | B125: 2665
A126: 中国人民财产保险股份有限公司东莞市分公司 | B126: 2169
A127: 中华人民共和国清远海事局 | B127: 1000
A128: 珠海国际货柜码头（高栏）有限公司 | B128: 769.16
A129: 中华人民共和国广州海事局 | B129: 608
A130: 广东双水码头有限公司 | B130: 600
A131: 广东中外运黄埔仓码有限公司 | B131: 480
A132: 广东新会港国际货运码头有限公司 | B132: 360
A133: 云浮新港港务有限公司 | B133: 200
A134: 2019-5 | B134: 3709479.87
A135: 广州军诚物流有限公司 | B135: 1281048.92
A136: 东莞市臻凯航运有限公司 | B136: 1156294.29
A137: 广州誉高船舶代理有限公司 | B137: 259335
A138: 广州松木货运代理有限公司 | B138: 203265
A139: 广州港秀物流有限公司 | B139: 170208.51
A140: 广州捷运通物流有限公司 | B140: 136090
A141: 中国石化销售有限公司广东江门石油分公司 | B141: 84864
A142: 隆安县浦通船务有限公司 | B142: 76989.62
A143: 广州市宇轩物流有限公司 | B143: 52120
A144: 广州市黄埔威盛运输服务部 | B144: 49828.08
A145: 广州市俊泰物流有限公司 | B145: 47626.86
A146: 东莞市宏顺物流有限公司 | B146: 32136.49
A147: 江门市新会区骏利物流运输有限公司 | B147: 29160
A148: 广州港物流有限公司 | B148: 23971.57
A149: 中华人民共和国广州海事局 | B149: 20827.04
A150: 广州威恒国际货运代理有限公司 | B150: 8626
A151: 深圳市俊励国际船舶代理有限公司广州分公司 | B151: 8264
A152: 广州秋盈金属面处理有限公司 | B152: 7969
A153: 临时供应商 | B153: 7875.47
A154: 中华人民共和国贵港海事局 | B154: 6350
A155: 广州君博物流有限公司 | B155: 6245.28
A156: 广州港发货运有限公司 | B156: 5843.04
A157: 广东南洋国际物流有限公司 | B157: 5053
A158: 广州港南沙港务有限公司 | B158: 4610
A159: 中国广州外轮代理公司南沙有限公司 | B159: 4132
A160: 广东中外运船务有限公司 | B160: 3059
A161: 广东安通国际船舶代理有限公司 | B161: 3044.66
A162: 达飞轮船（中国）有限公司广州分公司 | B162: 2800
A163: 中华人民共和国佛山海事局 | B163: 1944
A164: 广州市天邦物流服务有限公司 | B164: 1900
A165: 广东海安水运技术服务有限公司茂名分公司 | B165: 1875
A166: 珠海国际货柜码头（高栏）有限公司 | B166: 1175.04
A167: 广东双水码头有限公司 | B167: 960
A168: 广州坚信集装箱维修服务有限公司 | B168: 940
A169: 中华人民共和国清远海事局 | B169: 924
A170: 中华人民共和国东莞海事局 | B170: 840
A171: 广州市弘运物流服务有限公司 | B171: 505
A172: 中国广州外轮代理有限公司 | B172: 500
A173: 云浮新港港务有限公司 | B173: 200
A174: 招商局港口集团股份有限公司 | B174: 80
A175: 2019-6 | B175: 2540949.01
A176: 广州市永盈物流有限公司 | B176: 653148.33
A177: 广州军诚物流有限公司 | B177: 423801
A178: 东莞市臻凯航运有限公司 | B178: 377289.97
A179: 广州市众泰物流有限公司 | B179: 235630
A180: 广州港股份有限公司黄埔港务分公司 | B180: 169096
A181: 广州旭晨物流有限公司 | B181: 146050
A182: 广州松木货运代理有限公司 | B182: 126880
A183: 中国石化销售股份有限公司广东江门石油分公司 | B183: 65280
A184: 广州市宇轩物流有限公司 | B184: 57770
A185: 广州市和埔汽车运输有限公司 | B185: 53120
A186: 恩平市华誉货运物流有限公司 | B186: 43612.33
A187: 广州市弘运物流服务有限公司 | B187: 35740.88
A188: 中国石化销售有限公司广东广州石油分公司 | B188: 29880
A189: 广州港物流有限公司 | B189: 28673.8
A190: 广州市本港集装箱工程技术服务有限公司 | B190: 15070
A191: 达飞轮船（中国）有限公司广州分公司 | B191: 13091.94
A192: 广州恒冠物流有限公司 | B192: 9231.76
A193: 广州市黄埔天翔储运有限公司 | B193: 7199.74
A194: 广州市高畅船务代理有限公司 | B194: 7136.24
A195: 佛山市易封锁塑料科技有限公司 | B195: 6500
A196: 广州市黄埔区达海五金店 | B196: 5603.5
A197: 深圳市俊励国际船舶代理有限公司广州分公司 | B197: 5320
A198: 广州中集集装箱维修服务有限公司 | B198: 4700
A199: 中国人民财产保险股份有限公司武汉市分公司 | B199: 4551.6
A200: 广东南洋国际物流有限公司 | B200: 3248
A201: 中华人民共和国东莞海事局 | B201: 2517
... 48 more rows

Sheet 资金占用情况
A1: 资金占用情况
A2: 月份 | B2: 资金流入 | C2: 资金流出 | D2: 管理成本 | E2: 自有船人工成本 | F2: 报销费用 | G2: 资金占用 | H2: 内部关联交易 | I2: 实际占用
A3: 1月 | B3: 4304960.8 | C3: 5209225.6 | D3: 220406.77 | E3: 172379.04 | F3: 78138.59 | G3: =B3-C3-D3-E3-F3 -> -1375189.2 | I3: =G3-H3 -> -1375189.2
A4: 2月 | B4: 3614140.54 | C4: 2532545.49 | D4: 172848.19 | E4: 113974.1887 | F4: 75430 | G4: =B4-C4-D4-E4-F4 -> 719342.6713 | H4: 2431520 | I4: =G4-H4 -> -1712177.329
A5: 3月 | B5: 2601827.62 | C5: 2853678.38 | D5: 247298.88 | E5: 126112.28 | F5: 41098.5 | G5: -666360.42 | H5: 703249.44 | I5: -1369609.86
A6: 4月 | B6: 7012195.48 | C6: 5915360.2 | D6: 192825.99 | E6: 134015.81 | F6: 118135.78 | G6: 651857.7 | H6: 501798.03 | I6: 150059.67
A7: 5月 | B7: 4271615.37 | C7: 3709479.87 | D7: 190957.67 | E7: 122917.66 | F7: 78179.53 | G7: 170080.64 | I7: 170080.64
A8: 6月 | B8: 1784350.63 | C8: 2540949.01 | D8: 188238.5 | E8: 123186.3 | F8: 29666.97 | G8: -1097690.15 | H8: 519028.75 | I8: -1616718.9
A9: 7月 | B9: 4591687.6 | C9: 3921189.37 | D9: 209344.38 | E9: 123346.46 | F9: 121820.69 | G9: 215986.7 | H9: 844307.44 | I9: -628320.74
A10: 总计 | B10: 28180778.04 | C10: 26682427.92 | D10: 1421920.38 | E10: 915931.7387 | F10: 542470.06 | G10: -1381972.059 | H10: 4999903.66 | I10: -6381875.719
